Date,Service,Beneficiary,Purpose,Amount, Vat non-recoverable ,Merchant Category
12/03/2020,Housing HRA,Injectorseal Preservation Ltd,Building Defects - Damp,"1,980.00 ",n/a,Management and Administrative Services
14/07/2020,Governance,The Livewire Trust,Investment in Arts,"4,185.00 ",n/a,Organisations and Clubs
07/08/2020,Governance,Corbeau Procurement Supplies Ltd,Paper Costs,548.00 ,n/a,Office Equipment and Stationery
01/10/2020,Finance,Borough Of Broxbourne,External Contracts,"31,800.00 ",n/a,Staff
07/12/2020,Community Wellbeing GF,Trowers & Hamlins,Legal Costs,"2,514.50 ",n/a,Legal Services
01/01/2021,Finance,Borough Of Broxbourne,External Contracts,"31,800.00 ",n/a,Staff
02/01/2021,Finance,Springclay Services Ltd,Service Charges - Landlord,"5,144.75 ",n/a,Management and Administrative Services
11/01/2021,Housing HRA,Stace LLP,Outside Contractors,"1,700.00 ",n/a,Management and Administrative Services
27/01/2021,Managing Director & Services,East of England Local Govt Association,Consultancy Fees & Consultation costs,"5,000.00 ",n/a,Organisations and Clubs
03/02/2021,Environment and Planning,Osborne Richardson,Contract & Agency Staff,560.00 ,n/a,Staff Agencies and Consultants
09/02/2021,Finance,Hillmoore Fire Protection Limited,Professional Fees,"6,965.08 ",n/a,Building Construction and Maintenance
25/02/2021,Finance,Borough Of Broxbourne,Contract & Agency Staff,"16,970.00 ",n/a,Staff
26/02/2021,Finance,BDO LLP,District Audit,"6,750.00 ",n/a,Financial Services
27/02/2021,Housing HRA,Washco Ltd,Laundry Services,"1,370.00 ",n/a,"Domestic Appliances and Supplies, Jewellers"
28/02/2021,Community Wellbeing GF,Hammond Vets Ltd,Veterinary Fees,"1,190.95 ",n/a,Plants Animals Gardens Farming
01/03/2021,Governance,Essex County Council,Training Course Personal Expenses - Travel etc,"2,000.00 ",n/a,Organisations and Clubs
05/03/2021,Housing HRA,Essential Group,"Alarm Maintenance Burglar & Fire, Compliance","1,140.00 ",n/a,"Security and Safety Equipment, Lighting"
05/03/2021,Housing HRA,Essential Group,"Alarm Maintenance Burglar & Fire, Compliance","1,315.00 ",n/a,"Security and Safety Equipment, Lighting"
15/03/2021,Housing GF,John Stanleys Care Agency Ltd - Manorcourt,Out of Hours Response Fee,"12,500.00 ",n/a,Healthcare Medical
31/03/2021,Housing HRA,JBA Management Ltd trading as John Burke Associate,Outside Contractors,503.25 ,n/a,Building Construction and Maintenance
31/03/2021,Housing HRA,JBA Management Ltd trading as John Burke Associate,Outside Contractors,503.25 ,n/a,Building Construction and Maintenance
31/03/2021,Finance,R J Lift Services Ltd,Maintenance Buildings - External Contracts,685.00 ,n/a,Building Construction and Maintenance
31/03/2021,Housing HRA,JBA Management Ltd trading as John Burke Associate,Outside Contractors,"1,475.00 ",n/a,Building Construction and Maintenance
31/03/2021,Housing HRA,JBA Management Ltd trading as John Burke Associate,Outside Contractors,"1,475.00 ",n/a,Building Construction and Maintenance
31/03/2021,Housing HRA,JBA Management Ltd trading as John Burke Associate,Outside Contractors,"1,837.00 ",n/a,Building Construction and Maintenance
31/03/2021,Housing HRA,JBA Management Ltd trading as John Burke Associate,Outside Contractors,"1,837.00 ",n/a,Building Construction and Maintenance
31/03/2021,Housing HRA,JBA Management Ltd trading as John Burke Associate,Outside Contractors,"1,837.00 ",n/a,Building Construction and Maintenance
31/03/2021,Housing HRA,JBA Management Ltd trading as John Burke Associate,Outside Contractors,"2,500.00 ",n/a,Building Construction and Maintenance
31/03/2021,Housing HRA,JBA Management Ltd trading as John Burke Associate,Outside Contractors,"3,000.00 ",n/a,Building Construction and Maintenance
31/03/2021,Housing HRA,JBA Management Ltd trading as John Burke Associate,Outside Contractors,"3,250.00 ",n/a,Building Construction and Maintenance
31/03/2021,Housing HRA,JBA Management Ltd trading as John Burke Associate,Outside Contractors,"4,320.00 ",n/a,Building Construction and Maintenance
31/03/2021,Housing HRA,JBA Management Ltd trading as John Burke Associate,Outside Contractors,"6,000.00 ",n/a,Building Construction and Maintenance
31/03/2021,Housing HRA,JBA Management Ltd trading as John Burke Associate,Outside Contractors,"18,000.00 ",n/a,Building Construction and Maintenance
01/04/2021,Governance,Thomson Reuters,"Books, Magazines and Publications","7,057.00 ",n/a,Publishing and Advertising
01/04/2021,Finance,Borough Of Broxbourne,External Contracts,"31,800.00 ",n/a,Staff
06/04/2021,Housing HRA,Power Property Services Ltd,Building Defects - Damp,585.00 ,n/a,Building Construction and Maintenance
07/04/2021,Housing GF,James Andrew Recruitment Solutions Ltd,Contract & Agency Staff,810.00 ,n/a,Staff Agencies and Consultants
07/04/2021,Housing GF,James Andrew Recruitment Solutions Ltd,Contract & Agency Staff,931.50 ,n/a,Staff Agencies and Consultants
08/04/2021,Governance,Essex County Council,Consultancy Fees & Consultation costs,"1,331.33 ",n/a,Organisations and Clubs
13/04/2021,Housing GF,James Andrew Recruitment Solutions Ltd,Contract & Agency Staff,810.00 ,n/a,Staff Agencies and Consultants
13/04/2021,Housing GF,James Andrew Recruitment Solutions Ltd,Contract & Agency Staff,810.00 ,n/a,Staff Agencies and Consultants
16/04/2021,Housing HRA,Access Talent Group Ltd,Contract & Agency Staff,"1,200.00 ",n/a,Staff Agencies and Consultants
20/04/2021,Housing GF,James Andrew Recruitment Solutions Ltd,Contract & Agency Staff,"1,012.50 ",n/a,Staff Agencies and Consultants
21/04/2021,Community Wellbeing GF,Aon UK Ltd,Insurance,"3,438.96 ",n/a,Financial Services
21/04/2021,Community Wellbeing GF,Aon UK Ltd,Insurance,"28,658.00 ",n/a,Financial Services
23/04/2021,Housing HRA,Access Talent Group Ltd,Contract & Agency Staff,"1,500.00 ",n/a,Staff Agencies and Consultants
26/04/2021,Environment and Planning,Wicksteed Leisure Ltd,Equipment,"1,528.50 ",n/a,Sports and Recreational
27/04/2021,Housing HRA,Happy Moves,Moving Incentives,510.00 ,n/a,Transport Storage and Mail Services
27/04/2021,Housing GF,James Andrew Recruitment Solutions Ltd,Contract & Agency Staff,"1,012.50 ",n/a,Staff Agencies and Consultants
27/04/2021,Housing GF,James Andrew Recruitment Solutions Ltd,Contract & Agency Staff,"1,012.50 ",n/a,Staff Agencies and Consultants
30/04/2021,Community Wellbeing GF,Farm & Country Supplies Ltd,Outside Contractors,532.10 ,n/a,Plants Animals Gardens Farming
30/04/2021,Housing HRA,Access Talent Group Ltd,Contract & Agency Staff,"1,320.00 ",n/a,Staff Agencies and Consultants
30/04/2021,Community Wellbeing GF,Derrick Wade Waters Ltd,Professional Fees,"3,052.50 ",n/a,Management and Administrative Services
30/04/2021,Housing HRA,Churchill Environmental Services,Water Hygiene Contract,"4,764.83 ",n/a,Engineering and Research
30/04/2021,Finance,David Miles & Partners Ltd,Professional Fees,"5,876.02 ",n/a,Building Construction and Maintenance
30/04/2021,Finance,HTS (Property & Environment) Ltd,HTS Pension Charge,"61,608.00 ",n/a,Building Construction and Maintenance
01/05/2021,Finance,R J Lift Services Ltd,Maintenance Buildings - External Contracts,982.45 ,n/a,Building Construction and Maintenance
01/05/2021,Finance,HTS (Property & Environment) Ltd,Routine Maintenance of Buildings,"14,236.98 ",n/a,Building Construction and Maintenance
03/05/2021,Environment and Planning,Friends of Harlow Pets Corner,Equipment Materials & Maintenance incl.Lighting,"1,600.00 ",n/a,Organisations and Clubs
05/05/2021,Housing HRA,Power Property Services Ltd,Building Defects - Damp,520.00 ,n/a,Building Construction and Maintenance
05/05/2021,Housing GF,James Andrew Recruitment Solutions Ltd,Contract & Agency Staff,"1,012.50 ",n/a,Staff Agencies and Consultants
05/05/2021,Housing GF,James Andrew Recruitment Solutions Ltd,Contract & Agency Staff,"1,012.50 ",n/a,Staff Agencies and Consultants
05/05/2021,Housing HRA,Power Property Services Ltd,Building Defects - Damp,"1,140.00 ",n/a,Building Construction and Maintenance
08/05/2021,Housing HRA,AIM Windows Ltd,Outside Contractors,"2,990.00 ",n/a,Building Construction and Maintenance
10/05/2021,Housing HRA,Power Property Services Ltd,Building Defects - Damp,"1,100.00 ",n/a,Building Construction and Maintenance
11/05/2021,Governance,Vine HR Ltd,Course Fees,560.00 ,n/a,Management and Administrative Services
11/05/2021,Housing GF,James Andrew Recruitment Solutions Ltd,Contract & Agency Staff,810.00 ,n/a,Staff Agencies and Consultants
11/05/2021,Housing GF,James Andrew Recruitment Solutions Ltd,Contract & Agency Staff,810.00 ,n/a,Staff Agencies and Consultants
12/05/2021,Community Wellbeing GF,Sevenoaks Environmental Consultancy Ltd,Outside Contractors,"1,395.00 ",n/a,Engineering and Research
13/05/2021,Finance,LOCTA Ltd,Software Licences,"2,664.00 ",n/a,IT Services and Supplies
13/05/2021,Housing HRA,Durkan Ltd,Outside Contractors,"59,630.81 ",n/a,Building Construction and Maintenance
13/05/2021,Environment and Planning,Vinci UK Developments Ltd,Outside Contractors,"1,578,371.88 ",n/a,Building Construction and Maintenance
14/05/2021,Housing HRA,First Prospect Ltd,Building Defects - Damp,540.00 ,n/a,Building Construction and Maintenance
14/05/2021,Environment and Planning,Stannah Stairlifts,Outside Contractors,"7,561.00 ",n/a,Building Construction and Maintenance
14/05/2021,Governance,Insight Direct UK Ltd,Software Licences,"21,478.62 ",n/a,IT Services and Supplies
16/05/2021,Housing HRA,R J Lift Services Ltd,Lift Repair Costs,703.80 ,n/a,Building Construction and Maintenance
18/05/2021,Environment and Planning,Daniel Robinson & Sons Ltd,Health Act Burial,525.00 ,n/a,Environmental Services
18/05/2021,Housing HRA,Aston Group,Building Defects - Damp,589.50 ,n/a,Building Construction and Maintenance
18/05/2021,Housing GF,James Andrew Recruitment Solutions Ltd,Contract & Agency Staff,"1,012.50 ",n/a,Staff Agencies and Consultants
19/05/2021,Unallocated,Aston Group,Retentions,"1,382.89 ",n/a,Building Construction and Maintenance
19/05/2021,Housing HRA,Aston Group,Outside Contractors,"1,599.03 ",n/a,Building Construction and Maintenance
19/05/2021,Housing HRA,Tann Synchronome Limited,"Alarm Maintenance Burglar & Fire, Compliance","1,720.00 ",n/a,Building Construction and Maintenance
19/05/2021,Housing HRA,Injectorseal Preservation Ltd,Outside Contractors,"4,946.00 ",n/a,Management and Administrative Services
19/05/2021,Housing HRA,Aston Group,Outside Contractors,"30,381.53 ",n/a,Building Construction and Maintenance
20/05/2021,Housing HRA,EMS Lifts Ltd,Outside Contractors,"5,350.00 ",n/a,Building Construction and Maintenance
24/05/2021,Housing HRA,Aston Group,HHRS Repairs,"4,908.57 ",n/a,Building Construction and Maintenance
25/05/2021,Housing HRA,Power Property Services Ltd,Building Defects - Damp,580.00 ,n/a,Building Construction and Maintenance
25/05/2021,Housing HRA,Power Property Services Ltd,Building Defects - Damp,580.00 ,n/a,Building Construction and Maintenance
25/05/2021,Housing HRA,Power Property Services Ltd,Building Defects - Damp,580.00 ,n/a,Building Construction and Maintenance
25/05/2021,Housing HRA,Power Property Services Ltd,Building Defects - Damp,580.00 ,n/a,Building Construction and Maintenance
25/05/2021,Community Wellbeing GF,Centre Security Innovations Ltd,CCTV (Corporate),680.00 ,n/a,"Security and Safety Equipment, Lighting"
25/05/2021,Finance,R B Whitbread (Plant Hire) Ltd,ECC Highways Rangers,790.74 ,n/a,Building Construction and Maintenance
25/05/2021,Housing HRA,Power Property Services Ltd,Building Defects - Damp,820.00 ,n/a,Building Construction and Maintenance
25/05/2021,Housing HRA,Power Property Services Ltd,Building Defects - Damp,850.00 ,n/a,Building Construction and Maintenance
25/05/2021,Housing HRA,Power Property Services Ltd,Building Defects - Damp,905.00 ,n/a,Building Construction and Maintenance
25/05/2021,Housing HRA,Essex County Council,"Books, Magazines and Publications","1,000.00 ",n/a,Organisations and Clubs
25/05/2021,Housing GF,James Andrew Recruitment Solutions Ltd,Contract & Agency Staff,"1,012.50 ",n/a,Staff Agencies and Consultants
25/05/2021,Housing HRA,MMP Consultancy Ltd,Contract & Agency Staff,"1,349.85 ",n/a,Staff Agencies and Consultants
26/05/2021,Environment and Planning,GB Adaptions Ltd,Outside Contractors,"6,621.00 ",n/a,Building Construction and Maintenance
27/05/2021,Governance,Browne Jacobson LLP,Legal Costs,"2,355.00 ",n/a,Legal Services
27/05/2021,Finance,HTS (Property & Environment) Ltd,HTS Pension Charge,"51,750.00 ",n/a,Building Construction and Maintenance
28/05/2021,Housing GF,Tunstall Response Ltd,Tunstall Maintenance,525.20 ,n/a,Utilities
28/05/2021,Housing HRA,AIM Windows Ltd,"Alarm Maintenance Burglar & Fire, Compliance",750.00 ,n/a,Building Construction and Maintenance
28/05/2021,Housing HRA,Ridge & Partners LLP,Building Defects - Damp,"1,000.00 ",n/a,"Security and Safety Equipment, Lighting"
28/05/2021,Environment and Planning,Stannah Stairlifts,Outside Contractors,"6,771.00 ",n/a,Building Construction and Maintenance
30/05/2021,Housing HRA,R J Lift Services Ltd,Lift Repair Costs,886.65 ,n/a,Building Construction and Maintenance
31/05/2021,Housing HRA,The Harlow Hotel by AccorHotels,Compensation to Tenants - General,533.33 ,n/a,Temporary Accomodation
31/05/2021,Finance,Allpay,Post Office & Paypoint Payments,554.13 ,n/a,Financial Services
31/05/2021,Governance,Zunoma Ltd,"Advertising, Marketing, Publicity & Printing",953.06 ,n/a,Printing and Signage
31/05/2021,Governance,Zunoma Ltd,"Advertising, Marketing, Publicity & Printing",953.06 ,n/a,Printing and Signage
31/05/2021,Governance,Zunoma Ltd,"Advertising, Marketing, Publicity & Printing",981.94 ,n/a,Printing and Signage
31/05/2021,Finance,Barclay Card Merchant Services (Global Payment),Bank Charges,"6,498.56 ",n/a,Financial Services
31/05/2021,Finance,HTS (Property & Environment) Ltd,Professional Fees,"9,456.00 ",n/a,Building Construction and Maintenance
31/05/2021,Finance,Barclay Card Merchant Services (Global Payment),Bank Charges,"10,337.93 ",n/a,Financial Services
31/05/2021,Finance,Orchard Information Systems Ltd,Software Licences,"83,263.77 ",n/a,IT Services and Supplies
01/06/2021,General Fund Summary Items,General Security Services Ltd,Contract & Agency Staff,"1,122.00 ",n/a,"Security and Safety Equipment, Lighting"
01/06/2021,Housing HRA,MMP Consultancy Ltd,Contract & Agency Staff,"1,353.90 ",n/a,Staff Agencies and Consultants
01/06/2021,Finance,Pristine Washroom Services,Rental and Leasing costs of Vending Machines,"1,365.00 ",n/a,Cleaning Equipment and Supplies
01/06/2021,Community Wellbeing GF,T Loughman & Co,Outside Contractors,"1,700.34 ",n/a,Building Construction and Maintenance
01/06/2021,Finance,8x8 UK Limited,"Rental,Maintenance & Call Charges for Phone System","8,926.92 ",n/a,Utilities
01/06/2021,Community Wellbeing GF,T Loughman & Co,Outside Contractors,"66,313.39 ",n/a,Building Construction and Maintenance
02/06/2021,Housing HRA,Power Property Services Ltd,Building Defects - Damp,850.00 ,n/a,Building Construction and Maintenance
02/06/2021,Housing HRA,James Andrew Recruitment Solutions Ltd,Contract & Agency Staff,"1,012.32 ",n/a,Staff Agencies and Consultants
02/06/2021,Housing GF,James Andrew Recruitment Solutions Ltd,Contract & Agency Staff,"1,012.50 ",n/a,Staff Agencies and Consultants
02/06/2021,Housing GF,James Andrew Recruitment Solutions Ltd,Contract & Agency Staff,"1,076.40 ",n/a,Staff Agencies and Consultants
02/06/2021,Housing GF,James Andrew Recruitment Solutions Ltd,Contract & Agency Staff,"1,170.00 ",n/a,Staff Agencies and Consultants
02/06/2021,Housing GF,James Andrew Recruitment Solutions Ltd,Contract & Agency Staff,"1,170.00 ",n/a,Staff Agencies and Consultants
02/06/2021,Housing GF,James Andrew Recruitment Solutions Ltd,Contract & Agency Staff,"1,260.00 ",n/a,Staff Agencies and Consultants
02/06/2021,Housing HRA,James Andrew Recruitment Solutions Ltd,Contract & Agency Staff,"1,350.00 ",n/a,Staff Agencies and Consultants
03/06/2021,Governance,Insight Direct UK Ltd,Software Licences,"1,770.00 ",n/a,IT Services and Supplies
04/06/2021,Housing GF,Agincare Live in Care,Extra Care Provider,538.20 ,n/a,Healthcare Medical
07/06/2021,Housing HRA,Withers Thomas,Legal Costs,600.00 ,n/a,Legal Services
07/06/2021,Housing HRA,Kings Transport Services Ltd,Tenants Removal Expenses,680.00 ,n/a,Transport Storage and Mail Services
07/06/2021,Housing HRA,Courtenay Building Contractors,Outside Contractors,"1,647.79 ",n/a,Building Construction and Maintenance
08/06/2021,Housing GF,James Andrew Recruitment Solutions Ltd,Contract & Agency Staff,607.50 ,n/a,Staff Agencies and Consultants
08/06/2021,Housing GF,James Andrew Recruitment Solutions Ltd,Contract & Agency Staff,810.00 ,n/a,Staff Agencies and Consultants
08/06/2021,Housing HRA,James Andrew Recruitment Solutions Ltd,Contract & Agency Staff,"1,080.00 ",n/a,Staff Agencies and Consultants
08/06/2021,Housing HRA,Carolyn Lovel T/A Quality Independence,Occupational Therapist Costs,"1,440.00 ",n/a,Management and Administrative Services
08/06/2021,Housing HRA,Rextec UK Ltd,Equipment Materials & Maintenance incl.Lighting,"8,364.50 ",n/a,Cleaning Equipment and Supplies
09/06/2021,Environment and Planning,Osborne Richardson,Contract & Agency Staff,570.00 ,n/a,Staff Agencies and Consultants
09/06/2021,Environment and Planning,Osborne Richardson,Contract & Agency Staff,590.00 ,n/a,Staff Agencies and Consultants
09/06/2021,Environment and Planning,Cornerstone Barristers,Legal Costs,750.00 ,n/a,Legal Services
09/06/2021,Environment and Planning,Stannah Stairlifts,Outside Contractors,"2,475.00 ",n/a,Building Construction and Maintenance
09/06/2021,Housing HRA,Lamya Construction Ltd,Outside Contractors,"17,202.00 ",n/a,Building Construction and Maintenance
10/06/2021,Finance,Mr CA & WJ Hill,Equipment Materials & Maintenance incl.Lighting,675.00 ,n/a,Plants Animals Gardens Farming
10/06/2021,Housing HRA,Davies Burton Sweetlove Ltd,Outside Contractors,900.00 ,n/a,Engineering and Research
10/06/2021,Housing HRA,Davies Burton Sweetlove Ltd,Outside Contractors,"1,179.43 ",n/a,Engineering and Research
10/06/2021,Finance,CIPFA Business Ltd,Subscriptions to Organisations & Periodicals,"1,500.00 ",n/a,Financial Services
10/06/2021,Finance,Derrick Wade Waters Ltd,Valuation of Assets Fees,"13,333.33 ",n/a,Management and Administrative Services
10/06/2021,Housing HRA,HTS (Property & Environment) Ltd,Outside Contractors,"39,856.00 ",n/a,Building Construction and Maintenance
11/06/2021,Finance,Actual Support Services Ltd,Maintenance Buildings - External Contracts,665.00 ,n/a,Building Construction and Maintenance
11/06/2021,Housing HRA,Injectorseal Preservation Ltd,Building Defects - Damp,"2,250.00 ",n/a,Management and Administrative Services
11/06/2021,Environment and Planning,Stannah Stairlifts,Outside Contractors,"2,631.00 ",n/a,Building Construction and Maintenance
11/06/2021,Environment and Planning,GB Adaptions Ltd,Outside Contractors,"3,918.00 ",n/a,Building Construction and Maintenance
11/06/2021,Environment and Planning,Uttlesford District Council,Consultancy Fees & Consultation costs,"6,000.00 ",n/a,Organisations and Clubs
12/06/2021,Housing HRA,AIM Windows Ltd,Outside Contractors,"1,700.00 ",n/a,Building Construction and Maintenance
12/06/2021,Housing HRA,AIM Windows Ltd,Outside Contractors,"4,200.00 ",n/a,Building Construction and Maintenance
14/06/2021,Governance,GBN Services Ltd,Hire of Skips,580.00 ,n/a,Environmental Services
14/06/2021,Governance,PK Refrigeration,Maintenance Buildings - External Contracts,580.00 ,n/a,Building Construction and Maintenance
14/06/2021,Governance,Royal Mail Group Plc,Postage,679.16 ,n/a,Transport Storage and Mail Services
14/06/2021,Environment and Planning,Park Avenue Recruitment,Contract & Agency Staff,"1,480.00 ",n/a,Staff Agencies and Consultants
14/06/2021,Finance,Strettons,Valuation of Assets Fees,"4,009.93 ",n/a,Management and Administrative Services
14/06/2021,Housing HRA,Lamya Construction Ltd,Outside Contractors,"7,900.00 ",n/a,Building Construction and Maintenance
14/06/2021,Housing HRA,Lamya Construction Ltd,Outside Contractors,"7,900.00 ",n/a,Building Construction and Maintenance
14/06/2021,Housing HRA,Lamya Construction Ltd,Outside Contractors,"9,045.02 ",n/a,Building Construction and Maintenance
14/06/2021,Finance,Strettons,Valuation of Assets Fees,"13,333.33 ",n/a,Management and Administrative Services
14/06/2021,Housing HRA,Lamya Construction Ltd,Outside Contractors,"16,000.00 ",n/a,Building Construction and Maintenance
15/06/2021,Housing HRA,Aston Group,Building Defects - Damp,601.09 ,n/a,Building Construction and Maintenance
15/06/2021,Housing HRA,HTS (Property & Environment) Ltd,Outside Contractors,875.49 ,n/a,Building Construction and Maintenance
15/06/2021,Housing HRA,Aston Group,Building Defects - Damp,979.43 ,n/a,Building Construction and Maintenance
15/06/2021,Housing GF,James Andrew Recruitment Solutions Ltd,Contract & Agency Staff,"1,012.50 ",n/a,Staff Agencies and Consultants
15/06/2021,Housing GF,James Andrew Recruitment Solutions Ltd,Contract & Agency Staff,"1,012.50 ",n/a,Staff Agencies and Consultants
15/06/2021,Environment and Planning,BritishBins Ltd,Bins for Flats,"1,018.50 ",n/a,Environmental Services
15/06/2021,Housing HRA,James Andrew Recruitment Solutions Ltd,Contract & Agency Staff,"1,080.00 ",n/a,Staff Agencies and Consultants
15/06/2021,Housing HRA,HTS (Property & Environment) Ltd,Outside Contractors,"1,111.32 ",n/a,Building Construction and Maintenance
15/06/2021,Housing HRA,James Andrew Recruitment Solutions Ltd,Contract & Agency Staff,"1,256.96 ",n/a,Staff Agencies and Consultants
15/06/2021,Environment and Planning,Gardenscape Ltd,Biodiversity Landscaping Improvements,"1,310.00 ",n/a,Plants Animals Gardens Farming
15/06/2021,Housing HRA,HTS (Property & Environment) Ltd,Outside Contractors,"2,001.44 ",n/a,Building Construction and Maintenance
15/06/2021,Housing HRA,HTS (Property & Environment) Ltd,Outside Contractors,"2,610.69 ",n/a,Building Construction and Maintenance
15/06/2021,Housing HRA,HTS (Property & Environment) Ltd,Outside Contractors,"3,787.38 ",n/a,Building Construction and Maintenance
15/06/2021,Housing HRA,HTS (Property & Environment) Ltd,Outside Contractors,"3,849.54 ",n/a,Building Construction and Maintenance
15/06/2021,Housing HRA,HTS (Property & Environment) Ltd,Outside Contractors,"3,943.66 ",n/a,Building Construction and Maintenance
15/06/2021,Housing HRA,HTS (Property & Environment) Ltd,Outside Contractors,"4,259.03 ",n/a,Building Construction and Maintenance
15/06/2021,Housing HRA,HTS (Property & Environment) Ltd,Outside Contractors,"4,905.98 ",n/a,Building Construction and Maintenance
15/06/2021,Housing HRA,HTS (Property & Environment) Ltd,Outside Contractors,"5,081.85 ",n/a,Building Construction and Maintenance
15/06/2021,Housing HRA,HTS (Property & Environment) Ltd,Outside Contractors,"7,521.24 ",n/a,Building Construction and Maintenance
15/06/2021,Housing HRA,HTS (Property & Environment) Ltd,Outside Contractors,"8,698.69 ",n/a,Building Construction and Maintenance
15/06/2021,Housing HRA,HTS (Property & Environment) Ltd,Outside Contractors,"10,201.31 ",n/a,Building Construction and Maintenance
15/06/2021,Housing GF,Tunstall Response Ltd,Tunstall Maintenance,"19,156.68 ",n/a,Utilities
15/06/2021,Community Wellbeing GF,T Loughman & Co,Outside Contractors,"19,499.03 ",n/a,Building Construction and Maintenance
15/06/2021,Housing HRA,Durkan Ltd,Outside Contractors,"146,498.72 ",n/a,Building Construction and Maintenance
16/06/2021,Environment and Planning,Osborne Richardson,Contract & Agency Staff,510.00 ,n/a,Staff Agencies and Consultants
16/06/2021,Housing HRA,Kendal Tree Surgery Ltd,Outside Contractors - Housing,785.00 ,n/a,Plants Animals Gardens Farming
16/06/2021,Housing GF,The Oyster Partnership Ltd,Contract & Agency Staff,"1,143.75 ",n/a,Staff Agencies and Consultants
16/06/2021,Finance,HTS (Property & Environment) Ltd,Cleaning Contract,"1,462.00 ",n/a,Building Construction and Maintenance
16/06/2021,Housing HRA,Hays Plc,Contract & Agency Staff,"2,000.00 ",n/a,Staff Agencies and Consultants
16/06/2021,Finance,HTS (Property & Environment) Ltd,Cleaning Contract,"2,480.00 ",n/a,Building Construction and Maintenance
16/06/2021,Housing HRA,HTS (Property & Environment) Ltd,Outside Contractors,"10,123.01 ",n/a,Building Construction and Maintenance
16/06/2021,Finance,HTS (Property & Environment) Ltd,Outside Contractors,"106,069.44 ",n/a,Building Construction and Maintenance
17/06/2021,Finance,Wilks Head & Eve,Valuation of Assets Fees,500.00 ,n/a,Legal Services
17/06/2021,Finance,Wilks Head & Eve,Valuation of Assets Fees,500.00 ,n/a,Legal Services
17/06/2021,Housing HRA,Aran Insulation Ltd,Building Defects - Damp,538.11 ,n/a,Building Construction and Maintenance
17/06/2021,Housing HRA,Apetito Ltd,Lunch Services Expenses,539.95 ,n/a,Food and Drink
17/06/2021,Finance,Withers Thomas,Valuation of Assets Fees,615.00 ,n/a,Legal Services
17/06/2021,Housing HRA,Mac Environmental Ltd,Outside Contractors,630.00 ,n/a,Building Construction and Maintenance
17/06/2021,Housing HRA,R J Lift Services Ltd,Lift Repair Costs,696.40 ,n/a,Building Construction and Maintenance
17/06/2021,Housing HRA,Mac Environmental Ltd,Outside Contractors,733.50 ,n/a,Building Construction and Maintenance
17/06/2021,Housing HRA,Aran Insulation Ltd,Building Defects - Damp,749.10 ,n/a,Building Construction and Maintenance
17/06/2021,Environment and Planning,Hays Plc,Contract & Agency Staff,932.26 ,n/a,Staff Agencies and Consultants
17/06/2021,Housing HRA,Mac Environmental Ltd,Outside Contractors,"1,200.00 ",n/a,Building Construction and Maintenance
17/06/2021,Environment and Planning,Hays Plc,Contract & Agency Staff,"1,398.39 ",n/a,Staff Agencies and Consultants
17/06/2021,Environment and Planning,Hays Plc,Contract & Agency Staff,"1,505.04 ",n/a,Staff Agencies and Consultants
17/06/2021,Environment and Planning,Hays Plc,Contract & Agency Staff,"1,505.04 ",n/a,Staff Agencies and Consultants
17/06/2021,Environment and Planning,Enable Access,Outside Contractors,"2,549.00 ",n/a,Building Construction and Maintenance
17/06/2021,Finance,HTS (Property & Environment) Ltd,Routine Maintenance of Buildings,"11,054.70 ",n/a,Building Construction and Maintenance
18/06/2021,Community Wellbeing GF,Courtenay Building Contractors,Outside Contractors,842.26 ,n/a,Building Construction and Maintenance
18/06/2021,Finance,Civica UK Ltd,Software Licences,917.65 ,n/a,IT Services and Supplies
18/06/2021,Housing GF,Tunstall Telecom Ltd,Tunstall Purchases,"1,124.10 ",n/a,Utilities
18/06/2021,Housing HRA,Rhodar Ltd,Outside Contractors,"7,141.00 ",n/a,Building Construction and Maintenance
18/06/2021,Community Wellbeing GF,Courtenay Building Contractors,Outside Contractors,"16,003.22 ",n/a,Building Construction and Maintenance
20/06/2021,Housing HRA,Southern Electric,Electricity,"1,107.61 ",n/a,Utilities
21/06/2021,Housing HRA,Signs Express,Outside Contractors - Housing,675.00 ,n/a,Printing and Signage
21/06/2021,Governance,Mosaic Recruitment,Contract & Agency Staff,692.01 ,n/a,Staff Agencies and Consultants
21/06/2021,Housing HRA,Power Property Services Ltd,Building Defects - Damp,850.00 ,n/a,Building Construction and Maintenance
21/06/2021,Housing HRA,Power Property Services Ltd,Building Defects - Damp,"1,110.00 ",n/a,Building Construction and Maintenance
21/06/2021,Housing HRA,Power Property Services Ltd,Building Defects - Damp,"1,170.00 ",n/a,Building Construction and Maintenance
21/06/2021,Environment and Planning,Park Avenue Recruitment,Contract & Agency Staff,"1,480.00 ",n/a,Staff Agencies and Consultants
21/06/2021,Environment and Planning,Frame Projects Ltd,Legal Costs,"2,500.00 ",n/a,Management and Administrative Services
21/06/2021,Housing HRA,Urban Change Group Ltd,Outside Contractors,"8,200.00 ",n/a,Building Construction and Maintenance
21/06/2021,Housing HRA,Borras Construction Ltd,Outside Contractors,"299,578.64 ",n/a,Building Construction and Maintenance
22/06/2021,Housing HRA,James Andrew Recruitment Solutions Ltd,Contract & Agency Staff,925.00 ,n/a,Staff Agencies and Consultants
22/06/2021,Housing HRA,James Andrew Recruitment Solutions Ltd,Contract & Agency Staff,975.00 ,n/a,Staff Agencies and Consultants
22/06/2021,Housing GF,James Andrew Recruitment Solutions Ltd,Contract & Agency Staff,"1,012.50 ",n/a,Staff Agencies and Consultants
22/06/2021,Housing GF,James Andrew Recruitment Solutions Ltd,Contract & Agency Staff,"1,012.50 ",n/a,Staff Agencies and Consultants
22/06/2021,Housing GF,James Andrew Recruitment Solutions Ltd,Contract & Agency Staff,"1,123.20 ",n/a,Staff Agencies and Consultants
22/06/2021,Housing HRA,James Andrew Recruitment Solutions Ltd,Contract & Agency Staff,"1,148.16 ",n/a,Staff Agencies and Consultants
22/06/2021,Housing HRA,MMP Consultancy Ltd,Contract & Agency Staff,"1,162.50 ",n/a,Staff Agencies and Consultants
22/06/2021,Housing GF,James Andrew Recruitment Solutions Ltd,Contract & Agency Staff,"1,170.00 ",n/a,Staff Agencies and Consultants
22/06/2021,Housing GF,James Andrew Recruitment Solutions Ltd,Contract & Agency Staff,"1,170.00 ",n/a,Staff Agencies and Consultants
22/06/2021,Housing GF,James Andrew Recruitment Solutions Ltd,Contract & Agency Staff,"1,260.00 ",n/a,Staff Agencies and Consultants
22/06/2021,Housing HRA,MMP Consultancy Ltd,Contract & Agency Staff,"1,339.50 ",n/a,Staff Agencies and Consultants
22/06/2021,Housing HRA,James Andrew Recruitment Solutions Ltd,Contract & Agency Staff,"1,350.00 ",n/a,Staff Agencies and Consultants
22/06/2021,Housing HRA,MMP Consultancy Ltd,Contract & Agency Staff,"1,750.00 ",n/a,Staff Agencies and Consultants
22/06/2021,Housing HRA,HTS (Property & Environment) Ltd,Outside Contractors,"27,915.95 ",n/a,Building Construction and Maintenance
22/06/2021,Housing HRA,HTS (Property & Environment) Ltd,Outside Contractors,"66,882.10 ",n/a,Building Construction and Maintenance
22/06/2021,Housing HRA,HTS (Property & Environment) Ltd,Outside Contractors,"89,486.30 ",n/a,Building Construction and Maintenance
22/06/2021,Finance,HTS (Property & Environment) Ltd,Outside Contractors,"191,164.62 ",n/a,Building Construction and Maintenance
23/06/2021,Environment and Planning,Osborne Richardson,Contract & Agency Staff,620.00 ,n/a,Staff Agencies and Consultants
23/06/2021,Housing GF,The Oyster Partnership Ltd,Contract & Agency Staff,915.00 ,n/a,Staff Agencies and Consultants
23/06/2021,Finance,The Oyster Partnership Ltd,Contract & Agency Staff,"1,335.45 ",n/a,Staff Agencies and Consultants
23/06/2021,Environment and Planning,Tim Moya  Associates,Contract & Agency Staff,"1,458.33 ",n/a,Plants Animals Gardens Farming
23/06/2021,Housing HRA,Marks Consulting Partners Ltd,Contract & Agency Staff,"1,584.45 ",n/a,Staff Agencies and Consultants
23/06/2021,Environment and Planning,Stannah Stairlifts,Outside Contractors,"2,913.00 ",n/a,Building Construction and Maintenance
23/06/2021,Housing HRA,UK Power Networks,Outside Contractors,"3,580.33 ",n/a,Utilities
23/06/2021,Housing HRA,HTS (Property & Environment) Ltd,Outside Contractors,"16,621.89 ",n/a,Building Construction and Maintenance
23/06/2021,Finance,HTS (Property & Environment) Ltd,HTS Pension Charge,"53,636.00 ",n/a,Building Construction and Maintenance
23/06/2021,Environment and Planning,Vinci UK Developments Ltd,Outside Contractors,"57,859.93 ",n/a,Building Construction and Maintenance
24/06/2021,Governance,Canon UK Ltd,Colour Copier,746.11 ,n/a,Office Equipment and Stationery
24/06/2021,Environment and Planning,Veolia Es UK Ltd,External Contracts,"2,248.38 ",n/a,Utilities
24/06/2021,Environment and Planning,Veolia Es UK Ltd,External Contracts,"2,248.39 ",n/a,Utilities
24/06/2021,Unallocated,SJP Mechanical Services Ltd,Retentions,"2,648.17 ",n/a,Building Construction and Maintenance
24/06/2021,Finance,Springclay Services Ltd,Rent,"2,843.75 ",n/a,Management and Administrative Services
24/06/2021,Environment and Planning,Veolia Es UK Ltd,External Contracts,"3,454.57 ",n/a,Utilities
24/06/2021,Environment and Planning,Veolia Es UK Ltd,External Contracts,"3,454.57 ",n/a,Utilities
24/06/2021,Housing GF,Tunstall Telecom Ltd,Tunstall Purchases,"3,997.00 ",n/a,Utilities
24/06/2021,Environment and Planning,Veolia Es UK Ltd,External Contracts,"13,505.74 ",n/a,Utilities
24/06/2021,Environment and Planning,Veolia Es UK Ltd,External Contracts,"13,505.74 ",n/a,Utilities
24/06/2021,Housing GF,Locata (Housing Services) Ltd,Choice Based Lettings,"17,000.00 ",n/a,Management and Administrative Services
24/06/2021,Housing HRA,Lamya Construction Ltd,Outside Contractors,"29,040.00 ",n/a,Building Construction and Maintenance
24/06/2021,Housing HRA,Lamya Construction Ltd,Outside Contractors,"29,040.00 ",n/a,Building Construction and Maintenance
24/06/2021,Environment and Planning,Veolia Es UK Ltd,External Contracts,"38,655.95 ",n/a,Utilities
24/06/2021,Environment and Planning,Veolia Es UK Ltd,External Contracts,"40,437.50 ",n/a,Utilities
24/06/2021,Environment and Planning,Veolia Es UK Ltd,External Contracts,"70,111.39 ",n/a,Utilities
24/06/2021,Environment and Planning,Veolia Es UK Ltd,External Contracts,"70,111.39 ",n/a,Utilities
24/06/2021,Environment and Planning,Veolia Es UK Ltd,External Contracts,"130,431.82 ",n/a,Utilities
24/06/2021,Environment and Planning,Veolia Es UK Ltd,External Contracts,"130,431.82 ",n/a,Utilities
25/06/2021,Finance,HTS (Property & Environment) Ltd,Cleaning Contract,537.42 ,n/a,Building Construction and Maintenance
25/06/2021,Governance,Newsquest London & Essex Ltd,Statutory Advertising - use by Communications only,701.40 ,n/a,Publishing and Advertising
25/06/2021,Housing HRA,Mac Environmental Ltd,Outside Contractors,702.00 ,n/a,Building Construction and Maintenance
25/06/2021,Housing HRA,R J Lift Services Ltd,Lift Repair Costs,950.00 ,n/a,Building Construction and Maintenance
25/06/2021,Governance,Newsquest London & Essex Ltd,Statutory Advertising - use by Communications only,"1,052.10 ",n/a,Publishing and Advertising
25/06/2021,Community Wellbeing GF,HTS (Property & Environment) Ltd,Cleaning Contract,"1,129.33 ",n/a,Building Construction and Maintenance
25/06/2021,Housing HRA,Mac Environmental Ltd,Outside Contractors,"1,260.00 ",n/a,Building Construction and Maintenance
25/06/2021,Housing HRA,McBains Ltd,Professional Fees,"1,270.00 ",n/a,Building Construction and Maintenance
25/06/2021,Housing HRA,First Prospect Ltd,Energy Certificates,"1,400.00 ",n/a,Building Construction and Maintenance
25/06/2021,Finance,Paystream My Max 3 Ltd,Contract & Agency Staff,"1,500.00 ",n/a,Staff Agencies and Consultants
25/06/2021,Community Wellbeing GF,McBains Ltd,Consultant Architects,"1,650.00 ",n/a,Building Construction and Maintenance
25/06/2021,Finance,HTS (Property & Environment) Ltd,Cleaning Contract,"1,665.99 ",n/a,Building Construction and Maintenance
25/06/2021,Environment and Planning,BritishBins Ltd,Bins for Flats,"1,739.80 ",n/a,Environmental Services
25/06/2021,Housing HRA,Axis Mobility,Stair Lift Maintenance,"1,877.25 ",n/a,Healthcare Medical
25/06/2021,Environment and Planning,HTS (Property & Environment) Ltd,Subscriptions to Organisations & Periodicals,"1,996.00 ",n/a,Building Construction and Maintenance
25/06/2021,Environment and Planning,Hilson Moran Partnership Ltd,Professional Fees,"2,250.00 ",n/a,Management and Administrative Services
25/06/2021,Finance,HTS (Property & Environment) Ltd,Cleaning Contract,"3,009.53 ",n/a,Building Construction and Maintenance
25/06/2021,Community Wellbeing GF,Sevenoaks Environmental Consultancy Ltd,Outside Contractors,"3,445.00 ",n/a,Engineering and Research
25/06/2021,Housing HRA,McBains Ltd,Professional Fees,"3,867.00 ",n/a,Building Construction and Maintenance
25/06/2021,Finance,Zurich Management Services Ltd,Insurance,"5,000.00 ",n/a,Financial Services
25/06/2021,Community Wellbeing GF,McBains Ltd,Consultancy Fees & Consultation costs,"7,450.00 ",n/a,Building Construction and Maintenance
25/06/2021,Finance,HTS (Property & Environment) Ltd,Cleaning Contract,"7,685.06 ",n/a,Building Construction and Maintenance
25/06/2021,Community Wellbeing GF,McBains Ltd,Consultancy Fees & Consultation costs,"11,150.00 ",n/a,Building Construction and Maintenance
25/06/2021,Finance,Trustmarque Solutions Ltd,Software Licences,"14,538.16 ",n/a,IT Services and Supplies
25/06/2021,Finance,CBT Electrical Ltd,Outside Contractors,"18,738.52 ",n/a,Building Construction and Maintenance
25/06/2021,Housing HRA,McBains Ltd,Professional Fees,"21,294.00 ",n/a,Building Construction and Maintenance
25/06/2021,Finance,Zurich Municipal,Insurance,"26,193.01 ",n/a,Financial Services
25/06/2021,Finance,Zurich Municipal,Insurance,"290,842.98 ",n/a,Financial Services
25/06/2021,Finance,Arthur J Gallagher,Insurance,"493,039.98 ",n/a,Financial Services
26/06/2021,Housing HRA,First Prospect Ltd,Building Defects - Damp,"1,600.00 ",n/a,Building Construction and Maintenance
27/06/2021,Finance,Morgan Hunt Public Sector Ltd,Contract & Agency Staff,"1,351.40 ",n/a,Staff Agencies and Consultants
27/06/2021,Environment and Planning,DP Builders Disabled Adaptions Ltd,Outside Contractors,"4,433.88 ",n/a,Building Construction and Maintenance
27/06/2021,Environment and Planning,DP Builders Disabled Adaptions Ltd,Outside Contractors,"6,085.00 ",n/a,Building Construction and Maintenance
28/06/2021,Governance,Mosaic Recruitment,Contract & Agency Staff,692.01 ,n/a,Staff Agencies and Consultants
28/06/2021,Finance,Derrick Wade Waters Ltd,Consultancy Fees & Consultation costs,850.00 ,n/a,Management and Administrative Services
28/06/2021,Housing HRA,Sevenoaks Environmental Consultancy Ltd,Professional Fees,895.00 ,n/a,Engineering and Research
28/06/2021,Housing HRA,Sevenoaks Environmental Consultancy Ltd,Professional Fees,895.00 ,n/a,Engineering and Research
28/06/2021,Environment and Planning,Park Avenue Recruitment,Contract & Agency Staff,"1,480.00 ",n/a,Staff Agencies and Consultants
28/06/2021,Housing HRA,Rhodar Ltd,Asbestos Revenue,"2,393.50 ",n/a,Building Construction and Maintenance
28/06/2021,Environment and Planning,Stannah Stairlifts,Outside Contractors,"2,670.00 ",n/a,Building Construction and Maintenance
28/06/2021,Housing HRA,Lamya Construction Ltd,Outside Contractors,"9,680.00 ",n/a,Building Construction and Maintenance
28/06/2021,Housing HRA,Lamya Construction Ltd,Outside Contractors,"9,680.00 ",n/a,Building Construction and Maintenance
28/06/2021,Housing HRA,Lamya Construction Ltd,Outside Contractors,"9,680.00 ",n/a,Building Construction and Maintenance
28/06/2021,Housing HRA,Lamya Construction Ltd,Outside Contractors,"9,680.00 ",n/a,Building Construction and Maintenance
28/06/2021,Housing HRA,Lamya Construction Ltd,Outside Contractors,"9,680.00 ",n/a,Building Construction and Maintenance
28/06/2021,Housing HRA,Rhodar Ltd,Outside Contractors,"13,165.00 ",n/a,Building Construction and Maintenance
29/06/2021,Governance,Brian Thomas Photography,"Advertising, Marketing, Publicity & Printing",518.00 ,n/a,Publishing and Advertising
29/06/2021,Housing GF,Tunstall Response Ltd,Tunstall Maintenance,552.38 ,n/a,Utilities
29/06/2021,Community Wellbeing GF,Trowers & Hamlins,Legal Costs,637.50 ,n/a,Legal Services
29/06/2021,Housing HRA,AK Design Partnership LLP,Outside Contractors,640.00 ,n/a,Building Construction and Maintenance
29/06/2021,Housing HRA,Power Property Services Ltd,Building Defects - Damp,650.00 ,n/a,Building Construction and Maintenance
29/06/2021,Finance,Monowa Operable Wall Systems Ltd,Maintenance Buildings - External Contracts,695.00 ,n/a,Building Construction and Maintenance
29/06/2021,Housing GF,Nickolds HMO Management & Maintenance Ltd,Bed & Breakfast & Other Expenses,720.00 ,n/a,Management and Administrative Services
29/06/2021,Housing HRA,Cundall Johnston & Partners LLP,Consultancy Fees & Consultation costs,754.00 ,n/a,Building Construction and Maintenance
29/06/2021,Housing HRA,AK Design Partnership LLP,Outside Contractors,920.00 ,n/a,Building Construction and Maintenance
29/06/2021,Housing HRA,James Andrew Recruitment Solutions Ltd,Contract & Agency Staff,925.00 ,n/a,Staff Agencies and Consultants
29/06/2021,Housing HRA,James Andrew Recruitment Solutions Ltd,Contract & Agency Staff,937.50 ,n/a,Staff Agencies and Consultants
29/06/2021,Housing GF,James Andrew Recruitment Solutions Ltd,Contract & Agency Staff,"1,012.50 ",n/a,Staff Agencies and Consultants
29/06/2021,Housing GF,James Andrew Recruitment Solutions Ltd,Contract & Agency Staff,"1,029.60 ",n/a,Staff Agencies and Consultants
29/06/2021,Housing HRA,James Andrew Recruitment Solutions Ltd,Contract & Agency Staff,"1,080.00 ",n/a,Staff Agencies and Consultants
29/06/2021,Environment and Planning,RCA Structures Ltd,Consultancy Fees & Consultation costs,"1,120.00 ",n/a,Management and Administrative Services
29/06/2021,Housing HRA,James Andrew Recruitment Solutions Ltd,Contract & Agency Staff,"1,148.16 ",n/a,Staff Agencies and Consultants
29/06/2021,Housing HRA,MMP Consultancy Ltd,Contract & Agency Staff,"1,162.50 ",n/a,Staff Agencies and Consultants
29/06/2021,Housing GF,James Andrew Recruitment Solutions Ltd,Contract & Agency Staff,"1,170.00 ",n/a,Staff Agencies and Consultants
29/06/2021,Housing GF,James Andrew Recruitment Solutions Ltd,Contract & Agency Staff,"1,170.00 ",n/a,Staff Agencies and Consultants
29/06/2021,Housing GF,James Andrew Recruitment Solutions Ltd,Contract & Agency Staff,"1,260.00 ",n/a,Staff Agencies and Consultants
29/06/2021,Housing GF,Nickolds HMO Management & Maintenance Ltd,Bed & Breakfast & Other Expenses,"1,320.00 ",n/a,Management and Administrative Services
29/06/2021,Housing HRA,James Andrew Recruitment Solutions Ltd,Contract & Agency Staff,"1,350.00 ",n/a,Staff Agencies and Consultants
29/06/2021,Housing HRA,MMP Consultancy Ltd,Contract & Agency Staff,"1,352.55 ",n/a,Staff Agencies and Consultants
29/06/2021,Finance,Contract Security Services Ltd,Security Fees,"1,449.55 ",n/a,"Security and Safety Equipment, Lighting"
29/06/2021,Housing HRA,MMP Consultancy Ltd,Contract & Agency Staff,"1,750.00 ",n/a,Staff Agencies and Consultants
29/06/2021,Housing HRA,Actual Support Services Ltd,Window Cleaning,"1,950.00 ",n/a,Building Construction and Maintenance
29/06/2021,Housing HRA,AK Design Partnership LLP,Cyclical Maintenance,"2,180.00 ",n/a,Building Construction and Maintenance
29/06/2021,Governance,Solar Shield Ltd,Outside Contractors,"2,220.00 ",n/a,Building Construction and Maintenance
29/06/2021,Finance,NJ Solutions (UK) Ltd,Maintenance Buildings - External Contracts,"2,387.00 ",n/a,Building Construction and Maintenance
29/06/2021,Housing HRA,AK Design Partnership LLP,Outside Contractors,"2,500.00 ",n/a,Building Construction and Maintenance
29/06/2021,Finance,Zurich Municipal,Policy Excesses,"2,880.00 ",n/a,Financial Services
29/06/2021,Housing GF,Nickolds HMO Management & Maintenance Ltd,Bed & Breakfast & Other Expenses,"2,970.00 ",n/a,Management and Administrative Services
29/06/2021,Finance,SRMcHugh Limited,Security Fees,"3,019.32 ",n/a,Building Construction and Maintenance
29/06/2021,Environment and Planning,Browne Jacobson LLP,Legal Costs,"3,190.00 ",n/a,Legal Services
29/06/2021,Community Wellbeing GF,Centre for Local Economic Strategies,Development Work,"3,926.67 ",n/a,Management and Administrative Services
29/06/2021,Unallocated,Anglian Windows,Retentions,"4,429.24 ",n/a,Building Construction and Maintenance
29/06/2021,Finance,Eden London UK Ltd,Outside Contractors,"4,581.67 ",n/a,Building Construction and Maintenance
30/06/2021,Finance,HTS (Property & Environment) Ltd,"Alarm Maintenance Burglar & Fire, Compliance",505.00 ,n/a,Building Construction and Maintenance
30/06/2021,Finance,Chess Ltd,External Contracts,545.50 ,n/a,Utilities
30/06/2021,Finance,Allpay,Post Office & Paypoint Payments,547.80 ,n/a,Financial Services
30/06/2021,Housing HRA,Phoenix Bird Control Services Ltd,HHRS Repairs,575.00 ,n/a,Environmental Services
30/06/2021,Finance,Greenhalgh Kerr,Legal Costs,590.00 ,n/a,Legal Services
30/06/2021,Finance,HTS (Property & Environment) Ltd,Payment for Fuel,667.41 ,n/a,Building Construction and Maintenance
30/06/2021,Community Wellbeing GF,Derrick Wade Waters Ltd,Professional Fees,787.50 ,n/a,Management and Administrative Services
30/06/2021,Governance,Scutum South East Ltd,"Alarm Maintenance Burglar & Fire, Compliance",820.09 ,n/a,"Security and Safety Equipment, Lighting"
30/06/2021,Finance,Veolia Es UK Ltd,Trade Refuse Collection,874.95 ,n/a,Utilities
30/06/2021,Community Wellbeing GF,Derrick Wade Waters Ltd,Professional Fees,"1,040.00 ",n/a,Management and Administrative Services
30/06/2021,Finance,HTS (Property & Environment) Ltd,Maintenance Buildings - External Contracts,"1,088.00 ",n/a,Building Construction and Maintenance
30/06/2021,Housing HRA,Sycous Ltd,Postage,"1,125.00 ",n/a,Management and Administrative Services
30/06/2021,Finance,Civica UK Ltd,Software Licences,"1,147.14 ",n/a,IT Services and Supplies
30/06/2021,Environment and Planning,Urban Initiatives Studio,"Books, Magazines and Publications","1,150.00 ",n/a,Publishing and Advertising
30/06/2021,Housing HRA,Omnisoft Designs Ltd,RTB Admin - Plans,"1,160.00 ",n/a,Building Construction and Maintenance
30/06/2021,Finance,Civica UK Ltd,Software Licences,"1,225.55 ",n/a,IT Services and Supplies
30/06/2021,Finance,Softcat,Software Licences,"1,250.00 ",n/a,IT Services and Supplies
30/06/2021,Governance,Harlow Occupational Health Service Ltd,"Employee Welfare-EyeTests,Medicals,Physio,Counsell","1,250.28 ",n/a,Healthcare Medical
30/06/2021,Governance,Zunoma Ltd,"Advertising, Marketing, Publicity & Printing","1,258.00 ",n/a,Printing and Signage
30/06/2021,Finance,Veolia Es UK Ltd,Trade Refuse Collection,"1,265.50 ",n/a,Utilities
30/06/2021,Housing HRA,Ridge & Partners LLP,Outside Contractors,"1,320.00 ",n/a,"Security and Safety Equipment, Lighting"
30/06/2021,Finance,The Oyster Partnership Ltd,Contract & Agency Staff,"1,331.45 ",n/a,Staff Agencies and Consultants
30/06/2021,Housing HRA,JBA Management Ltd trading as John Burke Associate,Outside Contractors,"1,400.00 ",n/a,Building Construction and Maintenance
30/06/2021,Housing HRA,JBA Management Ltd trading as John Burke Associate,Outside Contractors,"1,400.00 ",n/a,Building Construction and Maintenance
30/06/2021,Finance,Bluefort Security Ltd,Software Licences,"1,500.00 ",n/a,IT Services and Supplies
30/06/2021,Finance,Chess Ltd,Disaster Recovery,"1,527.49 ",n/a,Utilities
30/06/2021,Housing HRA,JBA Management Ltd trading as John Burke Associate,Outside Contractors,"1,530.00 ",n/a,Building Construction and Maintenance
30/06/2021,Environment and Planning,Park Avenue Recruitment,Contract & Agency Staff,"1,542.55 ",n/a,Staff Agencies and Consultants
30/06/2021,Housing HRA,Marks Consulting Partners Ltd,Contract & Agency Staff,"1,580.40 ",n/a,Staff Agencies and Consultants
30/06/2021,Housing HRA,JBA Management Ltd trading as John Burke Associate,Outside Contractors,"1,687.50 ",n/a,Building Construction and Maintenance
30/06/2021,Housing HRA,Omnisoft Designs Ltd,Consultancy Fees & Consultation costs,"1,760.00 ",n/a,Building Construction and Maintenance
30/06/2021,Community Wellbeing GF,Browne Jacobson LLP,Consultancy Fees & Consultation costs,"1,777.50 ",n/a,Legal Services
30/06/2021,Housing HRA,JBA Management Ltd trading as John Burke Associate,Outside Contractors,"1,800.00 ",n/a,Building Construction and Maintenance
30/06/2021,Housing HRA,Ridge & Partners LLP,Outside Contractors,"1,980.00 ",n/a,"Security and Safety Equipment, Lighting"
30/06/2021,Finance,Civica UK Ltd,Software Licences,"2,000.00 ",n/a,IT Services and Supplies
30/06/2021,Community Wellbeing GF,Writtle College,Professional Fees,"2,000.00 ",n/a,Education Training Interpreting
30/06/2021,Finance,Flowbird Smart City Ltd,Equipment Materials & Maintenance incl.Lighting,"2,050.80 ",n/a,Printing and Signage
30/06/2021,Housing GF,Locata (Housing Services) Ltd,Choice Based Lettings,"2,100.00 ",n/a,Management and Administrative Services
30/06/2021,Finance,Softcat,Software Licences,"2,500.00 ",n/a,IT Services and Supplies
30/06/2021,Housing HRA,JBA Management Ltd trading as John Burke Associate,Outside Contractors,"2,655.00 ",n/a,Building Construction and Maintenance
30/06/2021,Environment and Planning,Stannah Stairlifts,Outside Contractors,"2,871.00 ",n/a,Building Construction and Maintenance
30/06/2021,Housing HRA,Ridge & Partners LLP,Outside Contractors,"3,571.20 ",n/a,"Security and Safety Equipment, Lighting"
30/06/2021,Governance,General Security Services Ltd,Security Fees,"4,118.29 ",n/a,"Security and Safety Equipment, Lighting"
30/06/2021,Environment and Planning,Vivid Resourcing,Contract & Agency Staff,"4,292.00 ",n/a,Staff Agencies and Consultants
30/06/2021,Finance,Softcat,Software Licences,"4,500.00 ",n/a,IT Services and Supplies
30/06/2021,Housing HRA,C & W (UK) Ltd LLP,Outside Contractors,"4,600.00 ",n/a,Management and Administrative Services
30/06/2021,Housing HRA,JBA Management Ltd trading as John Burke Associate,Outside Contractors,"4,815.00 ",n/a,Building Construction and Maintenance
30/06/2021,Housing HRA,JBA Management Ltd trading as John Burke Associate,Outside Contractors,"5,595.00 ",n/a,Building Construction and Maintenance
30/06/2021,Finance,Barclay Card Merchant Services (Global Payment),Bank Charges,"5,969.80 ",n/a,Financial Services
30/06/2021,Finance,DSI Billing Services Ltd,Postage,"6,628.18 ",n/a,Transport Storage and Mail Services
30/06/2021,Housing HRA,Omnisoft Designs Ltd,Consultancy Fees & Consultation costs,"6,880.00 ",n/a,Building Construction and Maintenance
30/06/2021,Finance,Orchard Information Systems Ltd,Software Licences,"6,932.83 ",n/a,IT Services and Supplies
30/06/2021,Environment and Planning,HSG Facilities Management t/a National Enforcement Solutions,Professional Fees,"7,668.80 ",n/a,"Security and Safety Equipment, Lighting"
30/06/2021,Finance,Keep IT Simple Stationery Ltd,Equipment,"8,835.00 ",n/a,IT Services and Supplies
30/06/2021,Finance,Barclay Card Merchant Services (Global Payment),Bank Charges,"9,973.22 ",n/a,Financial Services
30/06/2021,Finance,Simon Wasteney Consulting Ltd,Contract & Agency Staff,"11,550.00 ",n/a,Management and Administrative Services
30/06/2021,Housing GF,The Rent Guarantee Company Ltd,Bed & Breakfast & Other Expenses,"22,315.69 ",n/a,Temporary Accomodation
30/06/2021,Housing HRA,The Rent Guarantee Company Ltd,Bed & Breakfast & Other Expenses,"31,850.85 ",n/a,Temporary Accomodation
01/07/2021,Finance,Withers Thomas,Valuation of Assets Fees,616.00 ,n/a,Legal Services
01/07/2021,Governance,Vine HR Ltd,Course Fees,897.00 ,n/a,Management and Administrative Services
01/07/2021,Finance,General Security Services Ltd,Security Fees,918.00 ,n/a,"Security and Safety Equipment, Lighting"
01/07/2021,Finance,Security Image Solutions Ltd,Maintenance Buildings - External Contracts,950.00 ,n/a,"Security and Safety Equipment, Lighting"
01/07/2021,Environment and Planning,Thomson Reuters,Subscriptions to Organisations & Periodicals,"1,040.00 ",n/a,Publishing and Advertising
01/07/2021,Finance,Security Image Solutions Ltd,Equipment Materials & Maintenance incl.Lighting,"1,404.00 ",n/a,"Security and Safety Equipment, Lighting"
01/07/2021,Finance,T Loughman & Co,Footpath Maintenance,"1,594.93 ",n/a,Building Construction and Maintenance
01/07/2021,Environment and Planning,Hays Plc,Contract & Agency Staff,"1,678.07 ",n/a,Staff Agencies and Consultants
01/07/2021,Environment and Planning,Hays Plc,Contract & Agency Staff,"2,175.27 ",n/a,Staff Agencies and Consultants
01/07/2021,Finance,Auditel Rental & Service Ltd,Maintenance Buildings - External Contracts,"2,380.00 ",n/a,Furniture Furnishings Decorating
01/07/2021,Housing HRA,R J Lift Services Ltd,Lift Contract Costs,"2,576.83 ",n/a,Building Construction and Maintenance
01/07/2021,Housing HRA,General Security Services Ltd,Void Security,"4,131.00 ",n/a,"Security and Safety Equipment, Lighting"
01/07/2021,Community Wellbeing GF,General Security Services Ltd,Security Fees,"4,131.00 ",n/a,"Security and Safety Equipment, Lighting"
01/07/2021,Finance,T Loughman & Co,Footpath Maintenance,"4,219.64 ",n/a,Building Construction and Maintenance
01/07/2021,Housing HRA,Injectorseal Preservation Ltd,Building Defects - Damp,"5,190.00 ",n/a,Management and Administrative Services
01/07/2021,Environment and Planning,Stannah Stairlifts,Outside Contractors,"5,295.00 ",n/a,Building Construction and Maintenance
01/07/2021,Housing HRA,Washco Ltd,General Purchases,"6,075.83 ",n/a,"Domestic Appliances and Supplies, Jewellers"
01/07/2021,Finance,T Loughman & Co,Highway Maintenance,"7,351.95 ",n/a,Building Construction and Maintenance
01/07/2021,Housing GF,Future Let Property Management,Bed & Breakfast & Other Expenses,"8,029.40 ",n/a,Temporary Accomodation
01/07/2021,Housing HRA,Future Let Property Management,Bed & Breakfast & Other Expenses,"8,740.49 ",n/a,Temporary Accomodation
01/07/2021,Finance,8x8 UK Limited,"Rental,Maintenance & Call Charges for Phone System","9,159.42 ",n/a,Utilities
01/07/2021,Housing HRA,General Security Services Ltd,Void Security,"9,180.00 ",n/a,"Security and Safety Equipment, Lighting"
01/07/2021,Finance,Love Accounting Ltd,Consultancy Fees & Consultation costs,"10,762.50 ",n/a,Staff Agencies and Consultants
01/07/2021,Finance,Colchester Borough Council,External Contracts,"19,750.00 ",n/a,Management and Administrative Services
01/07/2021,Finance,Borough Of Broxbourne,External Contracts,"32,436.00 ",n/a,Staff
01/07/2021,Housing HRA,Lengard Ltd,Outside Contractors,"132,157.32 ",n/a,Building Construction and Maintenance
02/07/2021,Environment and Planning,Daniel Robinson & Sons Ltd,Health Act Burial,525.00 ,n/a,Environmental Services
02/07/2021,Governance,Newsquest London & Essex Ltd,Statutory Advertising - use by Communications only,561.12 ,n/a,Publishing and Advertising
02/07/2021,Governance,Pristine Washroom Services,Cleaning & Disposals,574.02 ,n/a,Cleaning Equipment and Supplies
02/07/2021,Housing HRA,Hays Plc,Recruitment Costs Including Police Checks,979.00 ,n/a,Staff Agencies and Consultants
02/07/2021,Finance,Pristine Washroom Services,Rental and Leasing costs of Vending Machines,"1,500.00 ",n/a,Cleaning Equipment and Supplies
02/07/2021,Housing HRA,Marks Consulting Partners Ltd,Contract & Agency Staff,"1,580.40 ",n/a,Staff Agencies and Consultants
02/07/2021,Finance,Pristine Washroom Services,Maintenance Buildings - External Contracts,"1,789.20 ",n/a,Cleaning Equipment and Supplies
02/07/2021,Housing HRA,AIM Windows Ltd,Outside Contractors,"2,750.00 ",n/a,Building Construction and Maintenance
02/07/2021,Housing GF,Caridon Management,Bed & Breakfast & Other Expenses,"2,920.00 ",n/a,Temporary Accomodation
02/07/2021,Environment and Planning,DP Builders Disabled Adaptions Ltd,Outside Contractors,"4,287.53 ",n/a,Building Construction and Maintenance
02/07/2021,Housing HRA,AIM Windows Ltd,Outside Contractors,"5,300.00 ",n/a,Building Construction and Maintenance
02/07/2021,Housing HRA,Caridon Management,Bed & Breakfast & Other Expenses,"8,676.80 ",n/a,Temporary Accomodation
03/07/2021,Governance,Glenn Blakeborough Ltd,Maintenance Buildings - External Contracts,"1,634.00 ",n/a,"Security and Safety Equipment, Lighting"
04/07/2021,Finance,Morgan Hunt Public Sector Ltd,Contract & Agency Staff,"1,343.76 ",n/a,Staff Agencies and Consultants
04/07/2021,Housing HRA,United Living (South)  Ltd,Outside Contractors,"105,308.25 ",n/a,Building Construction and Maintenance
05/07/2021,Housing HRA,J A Riley,Maintenance Buildings - External Contracts,525.00 ,n/a,Building Construction and Maintenance
05/07/2021,Housing HRA,Power Property Services Ltd,Building Defects - Damp,580.00 ,n/a,Building Construction and Maintenance
05/07/2021,Housing HRA,Power Property Services Ltd,Building Defects - Damp,580.00 ,n/a,Building Construction and Maintenance
05/07/2021,Housing HRA,Power Property Services Ltd,Building Defects - Damp,580.00 ,n/a,Building Construction and Maintenance
05/07/2021,Housing HRA,Power Property Services Ltd,Building Defects - Damp,630.00 ,n/a,Building Construction and Maintenance
05/07/2021,Governance,Mosaic Recruitment,Contract & Agency Staff,692.01 ,n/a,Staff Agencies and Consultants
05/07/2021,Community Wellbeing GF,Roots to Wellbeing,Development Work,750.00 ,n/a,Organisations and Clubs
05/07/2021,Housing HRA,Power Property Services Ltd,Building Defects - Damp,890.00 ,n/a,Building Construction and Maintenance
05/07/2021,Housing HRA,Power Property Services Ltd,Building Defects - Damp,"1,110.00 ",n/a,Building Construction and Maintenance
05/07/2021,Environment and Planning,Hays Plc,Contract & Agency Staff,"1,371.25 ",n/a,Staff Agencies and Consultants
05/07/2021,Environment and Planning,Hays Plc,Contract & Agency Staff,"1,505.04 ",n/a,Staff Agencies and Consultants
05/07/2021,Finance,Hays Plc,Contract & Agency Staff,"1,935.00 ",n/a,Staff Agencies and Consultants
05/07/2021,Finance,Hays Plc,Contract & Agency Staff,"2,006.00 ",n/a,Staff Agencies and Consultants
05/07/2021,Finance,Hays Plc,Contract & Agency Staff,"2,150.00 ",n/a,Staff Agencies and Consultants
05/07/2021,Finance,Hays Plc,Contract & Agency Staff,"2,150.00 ",n/a,Staff Agencies and Consultants
05/07/2021,Finance,Hays Plc,Contract & Agency Staff,"2,256.75 ",n/a,Staff Agencies and Consultants
05/07/2021,Housing HRA,J A Riley,Maintenance Buildings - External Contracts,"2,370.00 ",n/a,Building Construction and Maintenance
05/07/2021,Finance,Hays Plc,Contract & Agency Staff,"2,507.50 ",n/a,Staff Agencies and Consultants
05/07/2021,Finance,Hays Plc,Contract & Agency Staff,"2,507.50 ",n/a,Staff Agencies and Consultants
06/07/2021,Governance,HTS (Property & Environment) Ltd,Outside Contractors,600.00 ,n/a,Building Construction and Maintenance
06/07/2021,Environment and Planning,BritishBins Ltd,Bins for Flats,679.00 ,n/a,Environmental Services
06/07/2021,Housing HRA,James Andrew Recruitment Solutions Ltd,Contract & Agency Staff,810.00 ,n/a,Staff Agencies and Consultants
06/07/2021,Housing HRA,James Andrew Recruitment Solutions Ltd,Contract & Agency Staff,925.00 ,n/a,Staff Agencies and Consultants
06/07/2021,Housing HRA,James Andrew Recruitment Solutions Ltd,Contract & Agency Staff,937.50 ,n/a,Staff Agencies and Consultants
06/07/2021,Governance,MWDW Sound,Pantomime Production,"1,000.00 ",n/a,Entertainment Services
06/07/2021,Housing GF,James Andrew Recruitment Solutions Ltd,Contract & Agency Staff,"1,012.50 ",n/a,Staff Agencies and Consultants
06/07/2021,Housing GF,James Andrew Recruitment Solutions Ltd,Contract & Agency Staff,"1,012.50 ",n/a,Staff Agencies and Consultants
06/07/2021,Housing HRA,Carolyn Lovel T/A Quality Independence,Occupational Therapist Costs,"1,080.00 ",n/a,Management and Administrative Services
06/07/2021,Housing GF,James Andrew Recruitment Solutions Ltd,Contract & Agency Staff,"1,123.20 ",n/a,Staff Agencies and Consultants
06/07/2021,Housing HRA,MMP Consultancy Ltd,Contract & Agency Staff,"1,162.50 ",n/a,Staff Agencies and Consultants
06/07/2021,Housing GF,James Andrew Recruitment Solutions Ltd,Contract & Agency Staff,"1,170.00 ",n/a,Staff Agencies and Consultants
06/07/2021,Housing GF,James Andrew Recruitment Solutions Ltd,Contract & Agency Staff,"1,170.00 ",n/a,Staff Agencies and Consultants
06/07/2021,Housing HRA,MMP Consultancy Ltd,Contract & Agency Staff,"1,215.20 ",n/a,Staff Agencies and Consultants
06/07/2021,Housing GF,James Andrew Recruitment Solutions Ltd,Contract & Agency Staff,"1,260.00 ",n/a,Staff Agencies and Consultants
06/07/2021,Housing GF,Caridon Management,Bed & Breakfast & Other Expenses,"1,300.00 ",n/a,Temporary Accomodation
06/07/2021,Housing HRA,James Andrew Recruitment Solutions Ltd,Contract & Agency Staff,"1,350.00 ",n/a,Staff Agencies and Consultants
06/07/2021,Housing HRA,MMP Consultancy Ltd,Contract & Agency Staff,"1,750.00 ",n/a,Staff Agencies and Consultants
06/07/2021,Housing GF,Caridon Management,Bed & Breakfast & Other Expenses,"2,245.76 ",n/a,Temporary Accomodation
06/07/2021,Housing GF,Caridon Management,Bed & Breakfast & Other Expenses,"2,572.00 ",n/a,Temporary Accomodation
06/07/2021,Unallocated,Gunning London Ltd,Retentions,"2,874.88 ",n/a,Building Construction and Maintenance
06/07/2021,Environment and Planning,Enable Access,Outside Contractors,"4,297.00 ",n/a,Building Construction and Maintenance
06/07/2021,Environment and Planning,Mynott & Son,Outside Contractors,"5,561.43 ",n/a,Plants Animals Gardens Farming
06/07/2021,Unallocated,Aon Limited,Group Household Insurance,"5,986.29 ",n/a,Financial Services
06/07/2021,Housing HRA,Caridon Management,Bed & Breakfast & Other Expenses,"6,378.72 ",n/a,Temporary Accomodation
06/07/2021,Housing HRA,Caridon Management,Bed & Breakfast & Other Expenses,"6,452.96 ",n/a,Temporary Accomodation
06/07/2021,Housing HRA,Caridon Management,Bed & Breakfast & Other Expenses,"7,290.08 ",n/a,Temporary Accomodation
06/07/2021,Environment and Planning,Vinci UK Developments Ltd,Outside Contractors,"133,578.49 ",n/a,Building Construction and Maintenance
07/07/2021,Finance,R J Lift Services Ltd,Maintenance Buildings - External Contracts,581.20 ,n/a,Building Construction and Maintenance
07/07/2021,Housing HRA,First Prospect Ltd,Building Defects - Damp,675.00 ,n/a,Building Construction and Maintenance
07/07/2021,Finance,Rentokil Initial Uk Ltd,Equipment Materials & Maintenance incl.Lighting,747.50 ,n/a,Environmental Services
07/07/2021,Housing GF,Nickolds HMO Management & Maintenance Ltd,Bed & Breakfast & Other Expenses,996.00 ,n/a,Management and Administrative Services
07/07/2021,Housing HRA,Aston Group,Building Defects - Damp,"1,079.00 ",n/a,Building Construction and Maintenance
07/07/2021,Housing GF,The Oyster Partnership Ltd,Contract & Agency Staff,"1,143.75 ",n/a,Staff Agencies and Consultants
07/07/2021,Housing HRA,First Prospect Ltd,Outside Contractors,"1,262.50 ",n/a,Building Construction and Maintenance
07/07/2021,Finance,Hays Plc,Contract & Agency Staff,"2,006.00 ",n/a,Staff Agencies and Consultants
07/07/2021,Environment and Planning,Stannah Stairlifts,Outside Contractors,"2,571.00 ",n/a,Building Construction and Maintenance
08/07/2021,Housing HRA,Apetito Ltd,Lunch Services Expenses,506.28 ,n/a,Food and Drink
08/07/2021,Governance,Browne Jacobson LLP,Legal Costs,547.50 ,n/a,Legal Services
08/07/2021,Finance,Keep IT Simple Stationery Ltd,External Contracts,589.00 ,n/a,IT Services and Supplies
08/07/2021,Housing HRA,Browne Jacobson LLP,Legal Costs,"1,800.00 ",n/a,Legal Services
08/07/2021,Finance,Hays Plc,Contract & Agency Staff,"2,150.00 ",n/a,Staff Agencies and Consultants
08/07/2021,Governance,Lacons Brewery Ltd,Bar & Vending Costs,"2,202.45 ",n/a,Food and Drink
08/07/2021,Housing HRA,CBT Electrical Ltd,Outside Contractors,"5,417.54 ",n/a,Building Construction and Maintenance
08/07/2021,Environment and Planning,EMS Lifts Ltd,Outside Contractors,"10,000.00 ",n/a,Building Construction and Maintenance
08/07/2021,Environment and Planning,Essex County Council,Outside Contractors,"29,382.03 ",n/a,Organisations and Clubs
09/07/2021,Housing HRA,Mac Environmental Ltd,Outside Contractors,840.00 ,n/a,Building Construction and Maintenance
09/07/2021,Environment and Planning,Blue Lamp Trust (Services) Ltd,Course Fees,899.88 ,n/a,Education Training Interpreting
09/07/2021,Housing HRA,Mac Environmental Ltd,Outside Contractors,"2,550.00 ",n/a,Building Construction and Maintenance
09/07/2021,Environment and Planning,Stannah Stairlifts,Outside Contractors,"2,671.00 ",n/a,Building Construction and Maintenance
09/07/2021,Housing HRA,J A Riley,Maintenance Buildings - External Contracts,"2,721.00 ",n/a,Building Construction and Maintenance
09/07/2021,Housing HRA,Lamya Construction Ltd,Outside Contractors,"3,000.00 ",n/a,Building Construction and Maintenance
09/07/2021,Finance,SRMcHugh Limited,Security Fees,"3,019.32 ",n/a,Building Construction and Maintenance
09/07/2021,Environment and Planning,Stannah Stairlifts,Outside Contractors,"3,155.00 ",n/a,Building Construction and Maintenance
09/07/2021,Housing HRA,Chas Berger,Outside Contractors,"4,444.43 ",n/a,Building Construction and Maintenance
09/07/2021,Housing HRA,Chas Berger,Outside Contractors,"84,444.43 ",n/a,Building Construction and Maintenance
11/07/2021,Finance,Morgan Hunt Public Sector Ltd,Contract & Agency Staff,"1,336.13 ",n/a,Staff Agencies and Consultants
12/07/2021,Housing HRA,Keep IT Simple Stationery Ltd,Equipment Materials & Maintenance incl.Lighting,589.00 ,n/a,IT Services and Supplies
12/07/2021,Housing HRA,Power Property Services Ltd,Building Defects - Damp,640.00 ,n/a,Building Construction and Maintenance
12/07/2021,Governance,Mosaic Recruitment,Contract & Agency Staff,692.01 ,n/a,Staff Agencies and Consultants
12/07/2021,Governance,YOURTHURROCK.com,"Advertising, Marketing, Publicity & Printing","1,100.00 ",n/a,Publishing and Advertising
12/07/2021,Environment and Planning,Park Avenue Recruitment,Contract & Agency Staff,"1,480.00 ",n/a,Staff Agencies and Consultants
12/07/2021,Finance,TRG UK Ltd,Contract & Agency Staff,"2,160.00 ",n/a,Staff Agencies and Consultants
12/07/2021,Environment and Planning,Veolia Es UK Ltd,External Contracts,"21,394.99 ",n/a,Utilities
12/07/2021,Environment and Planning,Veolia Es UK Ltd,External Contracts,"48,217.68 ",n/a,Utilities
12/07/2021,Environment and Planning,ROYAL BANK OF SCOTLAND,Equipment Materials & Maintenance incl.Lighting,518.33 ,n/a,Financial Services
13/07/2021,Housing HRA,Gough Square Chambers,Legal Costs,500.00 ,n/a,Legal Services
13/07/2021,Environment and Planning,Omnisoft Designs Ltd,Outside Contractors,600.00 ,n/a,Building Construction and Maintenance
13/07/2021,Finance,T Loughman & Co,Highway Maintenance,676.30 ,n/a,Building Construction and Maintenance
13/07/2021,Housing HRA,BritishBins Ltd,Maintenance Buildings - External Contracts,685.00 ,n/a,Environmental Services
13/07/2021,Finance,Keep IT Simple Stationery Ltd,External Contracts,717.00 ,n/a,IT Services and Supplies
13/07/2021,Housing GF,The Harlow Hotel by AccorHotels,Bed & Breakfast & Other Expenses,910.00 ,n/a,Temporary Accomodation
13/07/2021,Housing GF,The Harlow Hotel by AccorHotels,Bed & Breakfast & Other Expenses,910.00 ,n/a,Temporary Accomodation
13/07/2021,Housing HRA,MMP Consultancy Ltd,Contract & Agency Staff,"1,162.50 ",n/a,Staff Agencies and Consultants
13/07/2021,Housing HRA,R J Lift Services Ltd,Lift Repair Costs,"1,252.32 ",n/a,Building Construction and Maintenance
13/07/2021,Housing HRA,MMP Consultancy Ltd,Contract & Agency Staff,"1,341.30 ",n/a,Staff Agencies and Consultants
13/07/2021,Housing HRA,MMP Consultancy Ltd,Contract & Agency Staff,"1,750.00 ",n/a,Staff Agencies and Consultants
13/07/2021,Governance,Carve Productions - ACDE Media Ltd,"Advertising, Marketing, Publicity & Printing","2,200.00 ",n/a,Publishing and Advertising
13/07/2021,Environment and Planning,Bridge Fibre Ltd,Outside Contractors,"4,200.00 ",n/a,Management and Administrative Services
14/07/2021,Environment and Planning,Osborne Richardson,Contract & Agency Staff,530.10 ,n/a,Staff Agencies and Consultants
14/07/2021,Environment and Planning,Osborne Richardson,Contract & Agency Staff,652.50 ,n/a,Staff Agencies and Consultants
14/07/2021,Housing HRA,J A Riley,Outside Contractors,683.00 ,n/a,Building Construction and Maintenance
14/07/2021,Housing GF,The Oyster Partnership Ltd,Contract & Agency Staff,686.25 ,n/a,Staff Agencies and Consultants
14/07/2021,Environment and Planning,Osborne Richardson,Contract & Agency Staff,690.00 ,n/a,Staff Agencies and Consultants
14/07/2021,Housing HRA,J A Riley,Maintenance Buildings - External Contracts,730.00 ,n/a,Building Construction and Maintenance
14/07/2021,Housing HRA,James Andrew Recruitment Solutions Ltd,Contract & Agency Staff,925.00 ,n/a,Staff Agencies and Consultants
14/07/2021,Housing HRA,James Andrew Recruitment Solutions Ltd,Contract & Agency Staff,937.50 ,n/a,Staff Agencies and Consultants
14/07/2021,Housing GF,James Andrew Recruitment Solutions Ltd,Contract & Agency Staff,"1,123.20 ",n/a,Staff Agencies and Consultants
14/07/2021,Housing GF,James Andrew Recruitment Solutions Ltd,Contract & Agency Staff,"1,146.60 ",n/a,Staff Agencies and Consultants
14/07/2021,Housing GF,James Andrew Recruitment Solutions Ltd,Contract & Agency Staff,"1,170.00 ",n/a,Staff Agencies and Consultants
14/07/2021,Finance,CIPFA Business Ltd,Consultancy Fees & Consultation costs,"1,250.00 ",n/a,Financial Services
14/07/2021,Housing GF,James Andrew Recruitment Solutions Ltd,Contract & Agency Staff,"1,260.00 ",n/a,Staff Agencies and Consultants
14/07/2021,Housing HRA,James Andrew Recruitment Solutions Ltd,Contract & Agency Staff,"1,304.16 ",n/a,Staff Agencies and Consultants
14/07/2021,Housing HRA,James Andrew Recruitment Solutions Ltd,Contract & Agency Staff,"1,312.20 ",n/a,Staff Agencies and Consultants
14/07/2021,Housing HRA,James Andrew Recruitment Solutions Ltd,Contract & Agency Staff,"1,350.00 ",n/a,Staff Agencies and Consultants
14/07/2021,Housing HRA,James Andrew Recruitment Solutions Ltd,Contract & Agency Staff,"1,350.00 ",n/a,Staff Agencies and Consultants
14/07/2021,Housing HRA,Marks Consulting Partners Ltd,Contract & Agency Staff,"1,581.30 ",n/a,Staff Agencies and Consultants
14/07/2021,Housing HRA,James Andrew Recruitment Solutions Ltd,Contract & Agency Staff,"1,640.25 ",n/a,Staff Agencies and Consultants
14/07/2021,Housing HRA,Hays Plc,Contract & Agency Staff,"2,000.00 ",n/a,Staff Agencies and Consultants
14/07/2021,Housing HRA,Hays Plc,Contract & Agency Staff,"2,000.00 ",n/a,Staff Agencies and Consultants
14/07/2021,Housing HRA,Hays Plc,Contract & Agency Staff,"2,000.00 ",n/a,Staff Agencies and Consultants
14/07/2021,Housing HRA,Hays Plc,Contract & Agency Staff,"2,000.00 ",n/a,Staff Agencies and Consultants
14/07/2021,Housing HRA,J A Riley,Maintenance Buildings - External Contracts,"2,530.00 ",n/a,Building Construction and Maintenance
14/07/2021,Housing HRA,Rhodar Ltd,Outside Contractors,"2,850.00 ",n/a,Building Construction and Maintenance
14/07/2021,Finance,SRMcHugh Limited,Security Fees,"3,019.32 ",n/a,Building Construction and Maintenance
14/07/2021,Environment and Planning,Vivid Resourcing,Contract & Agency Staff,"4,292.00 ",n/a,Staff Agencies and Consultants
14/07/2021,Housing HRA,Urban Change Group Ltd,Outside Contractors,"5,300.00 ",n/a,Building Construction and Maintenance
14/07/2021,Environment and Planning,Stannah Stairlifts,Outside Contractors,"7,582.00 ",n/a,Building Construction and Maintenance
14/07/2021,Finance,IEG4 Ltd,Software Licences,"11,888.00 ",n/a,IT Services and Supplies
14/07/2021,Housing GF,The Rent Guarantee Company Ltd,Bed & Breakfast & Other Expenses,"21,188.44 ",n/a,Temporary Accomodation
14/07/2021,Housing HRA,The Rent Guarantee Company Ltd,Bed & Breakfast & Other Expenses,"27,521.44 ",n/a,Temporary Accomodation
15/07/2021,Housing HRA,Davies Burton Sweetlove Ltd,Maintenance Buildings - External Contracts,550.00 ,n/a,Engineering and Research
15/07/2021,Housing HRA,Apetito Ltd,Lunch Services Expenses,558.78 ,n/a,Food and Drink
15/07/2021,Finance,Keep IT Simple Stationery Ltd,Equipment Materials & Maintenance incl.Lighting,641.25 ,n/a,IT Services and Supplies
15/07/2021,Finance,Civica UK Ltd,Bank Bureau Charges,744.71 ,n/a,IT Services and Supplies
15/07/2021,Finance,Zoocha Limited,Software Licences,"1,100.00 ",n/a,IT Services and Supplies
15/07/2021,Environment and Planning,Tim Moya  Associates,Contract & Agency Staff,"1,458.33 ",n/a,Plants Animals Gardens Farming
15/07/2021,Housing HRA,Gunning London Ltd,Outside Contractors,"5,060.41 ",n/a,Building Construction and Maintenance
15/07/2021,Housing HRA,HTS (Property & Environment) Ltd,Outside Contractors,"66,298.56 ",n/a,Building Construction and Maintenance
16/07/2021,Housing HRA,Mac Environmental Ltd,Outside Contractors,630.00 ,n/a,Building Construction and Maintenance
16/07/2021,Housing HRA,Mac Environmental Ltd,"Alarm Maintenance Burglar & Fire, Compliance",800.00 ,n/a,Building Construction and Maintenance
16/07/2021,Finance,Nominet UK,"Rental,Maintenance & Call Charges for Phone System","1,009.61 ",n/a,IT Services and Supplies
16/07/2021,Housing HRA,James Andrew Recruitment Solutions Ltd,Contract & Agency Staff,"1,148.16 ",n/a,Staff Agencies and Consultants
16/07/2021,Housing HRA,Holiday Inn Express,Compensation to Tenants - General,"1,878.10 ",n/a,Temporary Accomodation
16/07/2021,Housing HRA,First Prospect Ltd,Job Codes Loss of Insurance,"2,214.19 ",n/a,Building Construction and Maintenance
16/07/2021,Housing HRA,Mac Environmental Ltd,Outside Contractors,"2,250.00 ",n/a,Building Construction and Maintenance
16/07/2021,Governance,Swan Print Limited,Statutory Advertising - use by Communications only,"4,626.00 ",n/a,Printing and Signage
16/07/2021,Housing HRA,78 Ltd,Outside Contractors,"10,500.00 ",n/a,Management and Administrative Services
16/07/2021,Housing HRA,Durkan Ltd,Outside Contractors,"152,600.48 ",n/a,Building Construction and Maintenance
17/07/2021,Housing HRA,AIM Windows Ltd,Outside Contractors,865.00 ,n/a,Building Construction and Maintenance
18/07/2021,Finance,UK Power Networks,Outside Contractors,677.00 ,n/a,Utilities
18/07/2021,Finance,Morgan Hunt Public Sector Ltd,Contract & Agency Staff,"1,290.32 ",n/a,Staff Agencies and Consultants
19/07/2021,Governance,Corbeau Procurement Supplies Ltd,Paper Costs,528.00 ,n/a,Office Equipment and Stationery
19/07/2021,Governance,Mosaic Recruitment,Contract & Agency Staff,629.97 ,n/a,Staff Agencies and Consultants
19/07/2021,Housing HRA,Kendal Tree Surgery Ltd,Building Defects - Damp,850.00 ,n/a,Plants Animals Gardens Farming
19/07/2021,Finance,IDOX Software Ltd,Software Licences,"1,900.00 ",n/a,IT Services and Supplies
19/07/2021,Community Wellbeing GF,T Loughman & Co,Outside Contractors,"2,293.16 ",n/a,Building Construction and Maintenance
19/07/2021,Housing HRA,Lamya Construction Ltd,Maintenance Buildings - External Contracts,"2,330.00 ",n/a,Building Construction and Maintenance
19/07/2021,Housing HRA,Lamya Construction Ltd,Outside Contractors,"2,810.00 ",n/a,Building Construction and Maintenance
19/07/2021,Finance,IDOX Software Ltd,Software Licences,"5,700.00 ",n/a,IT Services and Supplies
19/07/2021,Community Wellbeing GF,Deyton Bell Ltd,Consultancy Fees & Consultation costs,"10,000.00 ",n/a,Management and Administrative Services
19/07/2021,Environment and Planning,Veolia Es UK Ltd,External Contracts,"10,642.81 ",n/a,Utilities
19/07/2021,Housing HRA,Lamya Construction Ltd,Outside Contractors,"13,320.00 ",n/a,Building Construction and Maintenance
19/07/2021,Environment and Planning,Veolia Es UK Ltd,External Contracts,"13,505.74 ",n/a,Utilities
19/07/2021,Housing HRA,Lamya Construction Ltd,Outside Contractors,"14,541.00 ",n/a,Building Construction and Maintenance
19/07/2021,Housing HRA,Lamya Construction Ltd,Outside Contractors,"15,762.00 ",n/a,Building Construction and Maintenance
19/07/2021,Housing HRA,Lamya Construction Ltd,Outside Contractors,"15,762.00 ",n/a,Building Construction and Maintenance
19/07/2021,Environment and Planning,Veolia Es UK Ltd,External Contracts,"45,009.97 ",n/a,Utilities
19/07/2021,Environment and Planning,Veolia Es UK Ltd,External Contracts,"70,111.39 ",n/a,Utilities
19/07/2021,Community Wellbeing GF,T Loughman & Co,Outside Contractors,"89,433.15 ",n/a,Building Construction and Maintenance
19/07/2021,Environment and Planning,Veolia Es UK Ltd,External Contracts,"130,431.82 ",n/a,Utilities
20/07/2021,Housing HRA,Power Property Services Ltd,Building Defects - Damp,580.00 ,n/a,Building Construction and Maintenance
20/07/2021,Governance,Konica Minolta,Mono Copier,820.47 ,n/a,Printing and Signage
20/07/2021,Finance,Civica UK Ltd,Software Licences,839.10 ,n/a,IT Services and Supplies
20/07/2021,Environment and Planning,Hays Plc,Contract & Agency Staff,852.85 ,n/a,Staff Agencies and Consultants
20/07/2021,Finance,Civica UK Ltd,Software Licences,980.49 ,n/a,IT Services and Supplies
20/07/2021,Housing HRA,Power Property Services Ltd,Building Defects - Damp,"1,125.00 ",n/a,Building Construction and Maintenance
20/07/2021,Housing HRA,MMP Consultancy Ltd,Contract & Agency Staff,"1,162.50 ",n/a,Staff Agencies and Consultants
20/07/2021,Housing HRA,MMP Consultancy Ltd,Contract & Agency Staff,"1,312.50 ",n/a,Staff Agencies and Consultants
20/07/2021,Environment and Planning,Hays Plc,Contract & Agency Staff,"1,367.32 ",n/a,Staff Agencies and Consultants
20/07/2021,Environment and Planning,Park Avenue Recruitment,Contract & Agency Staff,"1,480.00 ",n/a,Staff Agencies and Consultants
20/07/2021,Environment and Planning,Hays Plc,Contract & Agency Staff,"1,505.04 ",n/a,Staff Agencies and Consultants
20/07/2021,Environment and Planning,Hays Plc,Contract & Agency Staff,"1,505.04 ",n/a,Staff Agencies and Consultants
20/07/2021,Housing HRA,MMP Consultancy Ltd,Contract & Agency Staff,"1,750.00 ",n/a,Staff Agencies and Consultants
20/07/2021,Environment and Planning,Hays Plc,Contract & Agency Staff,"1,988.81 ",n/a,Staff Agencies and Consultants
20/07/2021,Environment and Planning,Hays Plc,Contract & Agency Staff,"2,113.12 ",n/a,Staff Agencies and Consultants
20/07/2021,Finance,Hays Plc,Contract & Agency Staff,"2,507.50 ",n/a,Staff Agencies and Consultants
20/07/2021,Finance,Hays Plc,Contract & Agency Staff,"2,507.50 ",n/a,Staff Agencies and Consultants
20/07/2021,Finance,SRMcHugh Limited,Security Fees,"3,019.32 ",n/a,Building Construction and Maintenance
20/07/2021,Finance,Hays Plc,Contract & Agency Staff,"3,175.00 ",n/a,Staff Agencies and Consultants
20/07/2021,Finance,Hays Plc,Contract & Agency Staff,"3,175.00 ",n/a,Staff Agencies and Consultants
20/07/2021,Housing HRA,Borras Construction Ltd,Outside Contractors,"5,342.87 ",n/a,Building Construction and Maintenance
20/07/2021,Finance,Civica UK Ltd,Software Licences,"8,237.18 ",n/a,IT Services and Supplies
20/07/2021,Finance,Civica UK Ltd,Software Licences,"44,108.64 ",n/a,IT Services and Supplies
20/07/2021,Housing HRA,Borras Construction Ltd,Outside Contractors,"101,514.44 ",n/a,Building Construction and Maintenance
21/07/2021,Housing GF,The Oyster Partnership Ltd,Contract & Agency Staff,686.25 ,n/a,Staff Agencies and Consultants
21/07/2021,Governance,Recognising Excellence Ltd,Subscriptions to Organisations & Periodicals,750.00 ,n/a,Management and Administrative Services
21/07/2021,Finance,HTS (Property & Environment) Ltd,Maintenance Buildings - External Contracts,840.00 ,n/a,Building Construction and Maintenance
21/07/2021,Housing HRA,James Andrew Recruitment Solutions Ltd,Contract & Agency Staff,925.00 ,n/a,Staff Agencies and Consultants
21/07/2021,Housing HRA,James Andrew Recruitment Solutions Ltd,Contract & Agency Staff,937.50 ,n/a,Staff Agencies and Consultants
21/07/2021,Housing GF,James Andrew Recruitment Solutions Ltd,Contract & Agency Staff,"1,005.75 ",n/a,Staff Agencies and Consultants
21/07/2021,Housing GF,James Andrew Recruitment Solutions Ltd,Contract & Agency Staff,"1,012.50 ",n/a,Staff Agencies and Consultants
21/07/2021,Housing HRA,James Andrew Recruitment Solutions Ltd,Contract & Agency Staff,"1,080.00 ",n/a,Staff Agencies and Consultants
21/07/2021,Housing HRA,James Andrew Recruitment Solutions Ltd,Contract & Agency Staff,"1,080.00 ",n/a,Staff Agencies and Consultants
21/07/2021,Housing HRA,James Andrew Recruitment Solutions Ltd,Contract & Agency Staff,"1,148.16 ",n/a,Staff Agencies and Consultants
21/07/2021,Housing GF,James Andrew Recruitment Solutions Ltd,Contract & Agency Staff,"1,170.00 ",n/a,Staff Agencies and Consultants
21/07/2021,Housing GF,James Andrew Recruitment Solutions Ltd,Contract & Agency Staff,"1,170.00 ",n/a,Staff Agencies and Consultants
21/07/2021,Housing GF,James Andrew Recruitment Solutions Ltd,Contract & Agency Staff,"1,170.00 ",n/a,Staff Agencies and Consultants
21/07/2021,Housing GF,James Andrew Recruitment Solutions Ltd,Contract & Agency Staff,"1,260.00 ",n/a,Staff Agencies and Consultants
21/07/2021,Housing HRA,Marks Consulting Partners Ltd,Contract & Agency Staff,"1,538.40 ",n/a,Staff Agencies and Consultants
21/07/2021,Housing HRA,James Andrew Recruitment Solutions Ltd,Contract & Agency Staff,"1,749.45 ",n/a,Staff Agencies and Consultants
21/07/2021,Housing HRA,HTS (Property & Environment) Ltd,Outside Contractors,"2,249.00 ",n/a,Building Construction and Maintenance
21/07/2021,Housing HRA,HTS (Property & Environment) Ltd,Outside Contractors,"2,249.00 ",n/a,Building Construction and Maintenance
21/07/2021,Housing HRA,HTS (Property & Environment) Ltd,Outside Contractors,"2,302.00 ",n/a,Building Construction and Maintenance
21/07/2021,Environment and Planning,Farm & Country Supplies Ltd,Outside Contractors,"2,602.00 ",n/a,Plants Animals Gardens Farming
21/07/2021,Housing HRA,HTS (Property & Environment) Ltd,Outside Contractors,"3,627.00 ",n/a,Building Construction and Maintenance
21/07/2021,Housing HRA,HTS (Property & Environment) Ltd,Outside Contractors,"3,894.97 ",n/a,Building Construction and Maintenance
21/07/2021,Housing HRA,HTS (Property & Environment) Ltd,Outside Contractors,"4,365.08 ",n/a,Building Construction and Maintenance
21/07/2021,Housing HRA,HTS (Property & Environment) Ltd,Outside Contractors,"4,445.11 ",n/a,Building Construction and Maintenance
21/07/2021,Housing HRA,Pellings,Professional Fees,"4,991.67 ",n/a,Management and Administrative Services
21/07/2021,Housing HRA,Capita Property & Infrastructure Ltd,Consultancy Fees & Consultation costs,"5,000.00 ",n/a,Management and Administrative Services
21/07/2021,Housing HRA,HTS (Property & Environment) Ltd,Outside Contractors,"5,505.11 ",n/a,Building Construction and Maintenance
21/07/2021,Housing HRA,HTS (Property & Environment) Ltd,Outside Contractors,"6,355.55 ",n/a,Building Construction and Maintenance
21/07/2021,Housing HRA,HTS (Property & Environment) Ltd,Outside Contractors,"6,595.32 ",n/a,Building Construction and Maintenance
21/07/2021,Housing GF,Tunstall Response Ltd,24 Hour alarm monitoring,"8,708.70 ",n/a,Utilities
21/07/2021,Housing HRA,HTS (Property & Environment) Ltd,Outside Contractors,"9,901.46 ",n/a,Building Construction and Maintenance
21/07/2021,Housing HRA,HTS (Property & Environment) Ltd,Outside Contractors,"10,525.80 ",n/a,Building Construction and Maintenance
21/07/2021,Housing HRA,Lamya Construction Ltd,Outside Contractors,"15,640.00 ",n/a,Building Construction and Maintenance
21/07/2021,Housing HRA,Besure Building & maintenance Services Ltd,Job Codes Loss of Insurance,"16,086.00 ",n/a,Building Construction and Maintenance
21/07/2021,Housing HRA,HTS (Property & Environment) Ltd,Outside Contractors,"28,210.40 ",n/a,Building Construction and Maintenance
21/07/2021,Housing HRA,Lamya Construction Ltd,Outside Contractors,"34,805.00 ",n/a,Building Construction and Maintenance
21/07/2021,Finance,HTS (Property & Environment) Ltd,Outside Contractors,"112,704.39 ",n/a,Building Construction and Maintenance
22/07/2021,Housing HRA,Mac Environmental Ltd,Outside Contractors,500.00 ,n/a,Building Construction and Maintenance
22/07/2021,Housing HRA,Sycous Ltd,Postage,680.00 ,n/a,Management and Administrative Services
22/07/2021,Environment and Planning,Gardenscape Ltd,Outside Contractors,800.00 ,n/a,Plants Animals Gardens Farming
22/07/2021,Community Wellbeing GF,Trowers & Hamlins,Legal Costs,858.00 ,n/a,Legal Services
22/07/2021,Finance,Hays Plc,Contract & Agency Staff,"1,720.00 ",n/a,Staff Agencies and Consultants
22/07/2021,Finance,Hays Plc,Contract & Agency Staff,"1,935.00 ",n/a,Staff Agencies and Consultants
22/07/2021,Housing HRA,Churchill Environmental Services,Water Hygiene Contract,"1,935.80 ",n/a,Engineering and Research
22/07/2021,Environment and Planning,Stannah Stairlifts,Outside Contractors,"3,009.00 ",n/a,Building Construction and Maintenance
22/07/2021,Environment and Planning,Gardenscape Ltd,Outside Contractors,"4,825.00 ",n/a,Plants Animals Gardens Farming
22/07/2021,Community Wellbeing GF,Vinci UK Construction UK Ltd-Facilities,Outside Contractors,"120,718.46 ",n/a,Management and Administrative Services
22/07/2021,Community Wellbeing GF,Vinci UK Construction UK Ltd-Facilities,Outside Contractors,"354,872.77 ",n/a,Management and Administrative Services
23/07/2021,Governance,Newsquest London & Essex Ltd,Statutory Advertising - use by Communications only,526.05 ,n/a,Publishing and Advertising
23/07/2021,Finance,HTS (Property & Environment) Ltd,Cleaning Contract,537.42 ,n/a,Building Construction and Maintenance
23/07/2021,Finance,HTS (Property & Environment) Ltd,Routine Maintenance of Buildings,696.33 ,n/a,Building Construction and Maintenance
23/07/2021,Housing HRA,Corporate Document Services Ltd,"Advertising, Marketing, Publicity & Printing",914.14 ,n/a,Printing and Signage
23/07/2021,Housing HRA,Corporate Document Services Ltd,Postage,948.41 ,n/a,Printing and Signage
23/07/2021,Community Wellbeing GF,HTS (Property & Environment) Ltd,Cleaning Contract,"1,129.33 ",n/a,Building Construction and Maintenance
23/07/2021,Governance,Hawkesworth Appliance Testing Ltd,Maintenance Buildings - External Contracts,"1,374.65 ",n/a,"Security and Safety Equipment, Lighting"
23/07/2021,Finance,HTS (Property & Environment) Ltd,Cleaning Contract,"1,665.99 ",n/a,Building Construction and Maintenance
23/07/2021,Environment and Planning,HTS (Property & Environment) Ltd,External Contracts,"3,000.00 ",n/a,Building Construction and Maintenance
23/07/2021,Finance,HTS (Property & Environment) Ltd,Cleaning Contract,"3,009.53 ",n/a,Building Construction and Maintenance
23/07/2021,Housing HRA,Corporate Document Services Ltd,Postage,"3,532.36 ",n/a,Printing and Signage
23/07/2021,Finance,HTS (Property & Environment) Ltd,Routine Maintenance of Buildings,"6,098.25 ",n/a,Building Construction and Maintenance
23/07/2021,Finance,HTS (Property & Environment) Ltd,Cleaning Contract,"7,685.06 ",n/a,Building Construction and Maintenance
23/07/2021,Finance,HTS (Property & Environment) Ltd,HTS Pension Charge,"54,403.00 ",n/a,Building Construction and Maintenance
25/07/2021,Housing HRA,Mac Environmental Ltd,Outside Contractors,900.00 ,n/a,Building Construction and Maintenance
25/07/2021,Finance,Morgan Hunt Public Sector Ltd,Contract & Agency Staff,"1,145.25 ",n/a,Staff Agencies and Consultants
26/07/2021,Housing HRA,Power Property Services Ltd,Building Defects - Damp,570.00 ,n/a,Building Construction and Maintenance
26/07/2021,Housing HRA,Power Property Services Ltd,Building Defects - Damp,580.00 ,n/a,Building Construction and Maintenance
26/07/2021,Housing HRA,Power Property Services Ltd,Building Defects - Damp,580.00 ,n/a,Building Construction and Maintenance
26/07/2021,Governance,Mosaic Recruitment,Contract & Agency Staff,692.01 ,n/a,Staff Agencies and Consultants
26/07/2021,Governance,EMTSS Ltd,Outside Contractors,775.00 ,n/a,Building Construction and Maintenance
26/07/2021,Community Wellbeing GF,Modes Users Association,Course Fees,855.00 ,n/a,Organisations and Clubs
26/07/2021,Housing HRA,Power Property Services Ltd,Building Defects - Damp,875.00 ,n/a,Building Construction and Maintenance
26/07/2021,Governance,Institute of Licensing (Events) Ltd,Course Fees,950.00 ,n/a,Organisations and Clubs
26/07/2021,Housing GF,James Andrew Recruitment Solutions Ltd,Contract & Agency Staff,"1,012.50 ",n/a,Staff Agencies and Consultants
26/07/2021,Community Wellbeing GF,Browne Jacobson LLP,Legal Costs,"1,035.00 ",n/a,Legal Services
26/07/2021,Housing GF,Tunstall Telecom Ltd,Tunstall Purchases,"1,124.10 ",n/a,Utilities
26/07/2021,Housing HRA,Power Property Services Ltd,Building Defects - Damp,"1,150.00 ",n/a,Building Construction and Maintenance
26/07/2021,Environment and Planning,Park Avenue Recruitment,Contract & Agency Staff,"1,480.00 ",n/a,Staff Agencies and Consultants
26/07/2021,Environment and Planning,Browne Jacobson LLP,Legal Costs,"1,800.00 ",n/a,Legal Services
26/07/2021,Community Wellbeing GF,The Printsave Group,"Advertising, Marketing, Publicity & Printing","1,920.00 ",n/a,Printing and Signage
26/07/2021,Environment and Planning,Browne Jacobson LLP,Legal Costs,"2,073.00 ",n/a,Legal Services
26/07/2021,Housing HRA,Injectorseal Preservation Ltd,Building Defects - Damp,"2,970.00 ",n/a,Management and Administrative Services
26/07/2021,Environment and Planning,Browne Jacobson LLP,Legal Costs,"3,258.00 ",n/a,Legal Services
26/07/2021,Environment and Planning,Browne Jacobson LLP,Legal Costs,"3,619.50 ",n/a,Legal Services
26/07/2021,Governance,The National Leaflet Company,Harlow Times,"3,951.21 ",n/a,Publishing and Advertising
26/07/2021,Environment and Planning,HSG Facilities Management t/a National Enforcement Solutions,Professional Fees,"6,962.50 ",n/a,"Security and Safety Equipment, Lighting"
27/07/2021,Community Wellbeing GF,Chart Lane,Development Work,500.00 ,n/a,Management and Administrative Services
27/07/2021,Community Wellbeing GF,The Gibberd Garden Trust,Grants to Voluntary Organisations,500.00 ,n/a,Organisations and Clubs
27/07/2021,Environment and Planning,Cornerstone Barristers,Legal Costs,590.00 ,n/a,Legal Services
27/07/2021,Housing HRA,Kendal Tree Surgery Ltd,Outside Contractors - Housing,600.00 ,n/a,Plants Animals Gardens Farming
27/07/2021,Housing HRA,Axis Mobility,Stair Lift Maintenance,637.60 ,n/a,Healthcare Medical
27/07/2021,Housing HRA,James Andrew Recruitment Solutions Ltd,Contract & Agency Staff,925.00 ,n/a,Staff Agencies and Consultants
27/07/2021,Housing HRA,James Andrew Recruitment Solutions Ltd,Contract & Agency Staff,937.50 ,n/a,Staff Agencies and Consultants
27/07/2021,Environment and Planning,Redactive Publishing Ltd,Recruitment Costs Including Police Checks,995.00 ,n/a,Publishing and Advertising
27/07/2021,Housing GF,James Andrew Recruitment Solutions Ltd,Contract & Agency Staff,"1,012.50 ",n/a,Staff Agencies and Consultants
27/07/2021,Housing HRA,James Andrew Recruitment Solutions Ltd,Contract & Agency Staff,"1,080.00 ",n/a,Staff Agencies and Consultants
27/07/2021,Housing GF,James Andrew Recruitment Solutions Ltd,Contract & Agency Staff,"1,142.40 ",n/a,Staff Agencies and Consultants
27/07/2021,Housing HRA,Kendal Tree Surgery Ltd,Maintenance Buildings - External Contracts,"1,150.00 ",n/a,Plants Animals Gardens Farming
27/07/2021,Housing HRA,Kendal Tree Surgery Ltd,Maintenance Buildings - External Contracts,"1,150.00 ",n/a,Plants Animals Gardens Farming
27/07/2021,Housing GF,James Andrew Recruitment Solutions Ltd,Contract & Agency Staff,"1,170.00 ",n/a,Staff Agencies and Consultants
27/07/2021,Housing GF,James Andrew Recruitment Solutions Ltd,Contract & Agency Staff,"1,170.00 ",n/a,Staff Agencies and Consultants
27/07/2021,Housing GF,James Andrew Recruitment Solutions Ltd,Contract & Agency Staff,"1,209.00 ",n/a,Staff Agencies and Consultants
27/07/2021,Housing HRA,Kendal Tree Surgery Ltd,Maintenance Buildings - External Contracts,"1,250.00 ",n/a,Plants Animals Gardens Farming
27/07/2021,Housing HRA,James Andrew Recruitment Solutions Ltd,Contract & Agency Staff,"1,292.16 ",n/a,Staff Agencies and Consultants
27/07/2021,Housing HRA,James Andrew Recruitment Solutions Ltd,Contract & Agency Staff,"1,350.00 ",n/a,Staff Agencies and Consultants
27/07/2021,Housing HRA,MMP Consultancy Ltd,Contract & Agency Staff,"1,368.75 ",n/a,Staff Agencies and Consultants
27/07/2021,Housing HRA,Kendal Tree Surgery Ltd,Maintenance Buildings - External Contracts,"1,450.00 ",n/a,Plants Animals Gardens Farming
27/07/2021,Housing HRA,James Andrew Recruitment Solutions Ltd,Contract & Agency Staff,"1,640.25 ",n/a,Staff Agencies and Consultants
27/07/2021,Housing HRA,Kendal Tree Surgery Ltd,Maintenance Buildings - External Contracts,"1,650.00 ",n/a,Plants Animals Gardens Farming
27/07/2021,Housing HRA,MMP Consultancy Ltd,Contract & Agency Staff,"1,750.00 ",n/a,Staff Agencies and Consultants
27/07/2021,Finance,SRMcHugh Limited,Security Fees,"3,019.32 ",n/a,Building Construction and Maintenance
27/07/2021,Housing HRA,Urban Change Group Ltd,Outside Contractors,"5,000.00 ",n/a,Building Construction and Maintenance
27/07/2021,Housing HRA,Colwin Construction Ltd,Outside Contractors,"6,457.80 ",n/a,Building Construction and Maintenance
27/07/2021,Housing HRA,Lamya Construction Ltd,Outside Contractors,"7,120.00 ",n/a,Building Construction and Maintenance
27/07/2021,Housing HRA,Lamya Construction Ltd,Outside Contractors,"7,124.00 ",n/a,Building Construction and Maintenance
27/07/2021,Housing HRA,Atkins Ltd,Professional Fees,"11,148.25 ",n/a,Staff Agencies and Consultants
27/07/2021,Community Wellbeing GF,McBains Ltd,Consultancy Fees & Consultation costs,"14,446.11 ",n/a,Building Construction and Maintenance
27/07/2021,Housing HRA,Lamya Construction Ltd,Outside Contractors,"31,000.00 ",n/a,Building Construction and Maintenance
28/07/2021,Finance,Withers Thomas,Valuation of Assets Fees,612.00 ,n/a,Legal Services
28/07/2021,Finance,Image Property Cleaning,Maintenance Buildings - External Contracts,925.00 ,n/a,Building Construction and Maintenance
28/07/2021,Housing GF,Nickolds HMO Management & Maintenance Ltd,Bed & Breakfast & Other Expenses,996.00 ,n/a,Management and Administrative Services
28/07/2021,Environment and Planning,R B Whitbread (Plant Hire) Ltd,Outside Contractors,"1,000.00 ",n/a,Building Construction and Maintenance
28/07/2021,Housing HRA,HTS (Property & Environment) Ltd,Outside Contractors,"1,185.58 ",n/a,Building Construction and Maintenance
28/07/2021,Housing HRA,Marks Consulting Partners Ltd,Contract & Agency Staff,"1,580.40 ",n/a,Staff Agencies and Consultants
28/07/2021,Environment and Planning,Vivid Resourcing,Contract & Agency Staff,"2,146.00 ",n/a,Staff Agencies and Consultants
28/07/2021,Environment and Planning,R B Whitbread (Plant Hire) Ltd,Outside Contractors,"2,400.00 ",n/a,Building Construction and Maintenance
28/07/2021,Environment and Planning,R B Whitbread (Plant Hire) Ltd,Outside Contractors,"2,450.00 ",n/a,Building Construction and Maintenance
28/07/2021,Finance,Hays Plc,Contract & Agency Staff,"3,175.00 ",n/a,Staff Agencies and Consultants
28/07/2021,Unallocated,Smith & O'Sullivan Ltd,Retentions,"5,108.71 ",n/a,Building Construction and Maintenance
28/07/2021,Housing HRA,HTS (Property & Environment) Ltd,Outside Contractors,"114,823.19 ",n/a,Building Construction and Maintenance
29/07/2021,Governance,Royal Mail Group Plc,Postage,579.36 ,n/a,Transport Storage and Mail Services
29/07/2021,Housing HRA,HTS (Property & Environment) Ltd,Outside Contractors,581.54 ,n/a,Building Construction and Maintenance
29/07/2021,Housing HRA,HTS (Property & Environment) Ltd,Outside Contractors,596.28 ,n/a,Building Construction and Maintenance
29/07/2021,Housing HRA,Stace LLP,Outside Contractors,605.00 ,n/a,Management and Administrative Services
29/07/2021,Housing HRA,Cundall Johnston & Partners LLP,Consultancy Fees & Consultation costs,754.00 ,n/a,Building Construction and Maintenance
29/07/2021,Finance,Royal Mail Group Plc,Postage,843.42 ,n/a,Transport Storage and Mail Services
29/07/2021,Finance,Contract Security Services Ltd,Security Fees,"1,556.17 ",n/a,"Security and Safety Equipment, Lighting"
29/07/2021,Housing HRA,D T Flooring Ltd,Equipment Materials & Maintenance incl.Lighting,"2,140.00 ",n/a,Furniture Furnishings Decorating
29/07/2021,Finance,Hays Plc,Contract & Agency Staff,"2,150.00 ",n/a,Staff Agencies and Consultants
29/07/2021,Finance,Civica UK Ltd,IT Support and IT Consumables,"3,180.00 ",n/a,IT Services and Supplies
29/07/2021,Finance,Complete Data Ltd,Equipment Materials & Maintenance incl.Lighting,"3,195.00 ",n/a,IT Services and Supplies
29/07/2021,Housing HRA,HTS (Property & Environment) Ltd,Outside Contractors,"3,983.31 ",n/a,Building Construction and Maintenance
29/07/2021,Finance,Derrick Wade Waters Ltd,Valuation of Assets Fees,"4,009.93 ",n/a,Management and Administrative Services
29/07/2021,Housing HRA,HTS (Property & Environment) Ltd,Outside Contractors,"4,172.49 ",n/a,Building Construction and Maintenance
29/07/2021,Housing HRA,HTS (Property & Environment) Ltd,Outside Contractors,"7,606.30 ",n/a,Building Construction and Maintenance
29/07/2021,Housing HRA,HTS (Property & Environment) Ltd,Outside Contractors,"8,357.70 ",n/a,Building Construction and Maintenance
29/07/2021,Housing HRA,HTS (Property & Environment) Ltd,Outside Contractors,"9,356.26 ",n/a,Building Construction and Maintenance
29/07/2021,Housing HRA,HTS (Property & Environment) Ltd,Outside Contractors,"9,601.97 ",n/a,Building Construction and Maintenance
29/07/2021,Housing HRA,HTS (Property & Environment) Ltd,Outside Contractors,"10,618.23 ",n/a,Building Construction and Maintenance
29/07/2021,Housing HRA,HTS (Property & Environment) Ltd,Outside Contractors,"10,846.19 ",n/a,Building Construction and Maintenance
29/07/2021,Housing HRA,Rhodar Ltd,Outside Contractors,"11,627.00 ",n/a,Building Construction and Maintenance
29/07/2021,Environment and Planning,Jewel Property Maintenance,Outside Contractors,"13,250.00 ",n/a,Building Construction and Maintenance
29/07/2021,Housing HRA,HTS (Property & Environment) Ltd,Outside Contractors,"14,429.75 ",n/a,Building Construction and Maintenance
29/07/2021,Housing HRA,HTS (Property & Environment) Ltd,Outside Contractors,"14,687.03 ",n/a,Building Construction and Maintenance
29/07/2021,Housing HRA,HTS (Property & Environment) Ltd,Outside Contractors,"15,185.19 ",n/a,Building Construction and Maintenance
29/07/2021,Housing HRA,HTS (Property & Environment) Ltd,Outside Contractors,"17,032.26 ",n/a,Building Construction and Maintenance
29/07/2021,Community Wellbeing GF,Courtenay Building Contractors,Outside Contractors,"77,513.70 ",n/a,Building Construction and Maintenance
30/07/2021,Governance,JMH Technology UK Ltd,Outside Contractors,551.68 ,n/a,"Security and Safety Equipment, Lighting"
30/07/2021,Finance,General Security Services Ltd,Security Fees,896.33 ,n/a,"Security and Safety Equipment, Lighting"
30/07/2021,Environment and Planning,RCA Structures Ltd,Consultancy Fees & Consultation costs,"1,085.00 ",n/a,Management and Administrative Services
30/07/2021,Finance,Derrick Wade Waters Ltd,Outside Contractors,"1,315.89 ",n/a,Management and Administrative Services
30/07/2021,Community Wellbeing GF,Derrick Wade Waters Ltd,Professional Fees,"1,490.00 ",n/a,Management and Administrative Services
30/07/2021,Finance,Derrick Wade Waters Ltd,Outside Contractors,"1,625.10 ",n/a,Management and Administrative Services
30/07/2021,Housing HRA,Ridge & Partners LLP,Outside Contractors,"1,680.00 ",n/a,"Security and Safety Equipment, Lighting"
30/07/2021,Finance,Hays Plc,Contract & Agency Staff,"2,507.50 ",n/a,Staff Agencies and Consultants
30/07/2021,Housing HRA,Ridge & Partners LLP,Outside Contractors,"2,678.40 ",n/a,"Security and Safety Equipment, Lighting"
30/07/2021,Housing HRA,Ridge & Partners LLP,Outside Contractors,"3,960.00 ",n/a,"Security and Safety Equipment, Lighting"
30/07/2021,Housing HRA,Ridge & Partners LLP,Outside Contractors,"4,000.00 ",n/a,"Security and Safety Equipment, Lighting"
30/07/2021,Community Wellbeing GF,General Security Services Ltd,Security Fees,"4,033.46 ",n/a,"Security and Safety Equipment, Lighting"
30/07/2021,Housing HRA,General Security Services Ltd,Void Security,"4,033.46 ",n/a,"Security and Safety Equipment, Lighting"
30/07/2021,Housing HRA,NIFES Property Ltd,Outside Contractors,"4,560.00 ",n/a,Building Construction and Maintenance
30/07/2021,Housing HRA,Omnisoft Designs Ltd,Consultancy Fees & Consultation costs,"4,800.00 ",n/a,Building Construction and Maintenance
30/07/2021,Housing HRA,NIFES Property Ltd,Outside Contractors,"5,160.00 ",n/a,Building Construction and Maintenance
30/07/2021,Community Wellbeing GF,Derrick Wade Waters Ltd,Professional Fees,"5,345.44 ",n/a,Management and Administrative Services
30/07/2021,Housing HRA,NIFES Property Ltd,Outside Contractors,"5,800.00 ",n/a,Building Construction and Maintenance
30/07/2021,Housing HRA,Omnisoft Designs Ltd,Consultancy Fees & Consultation costs,"6,440.00 ",n/a,Building Construction and Maintenance
30/07/2021,Housing HRA,Mac Environmental Ltd,Asbestos Revenue,"7,440.00 ",n/a,Building Construction and Maintenance
30/07/2021,Housing HRA,First Prospect Ltd,Outside Contractors,"8,325.00 ",n/a,Building Construction and Maintenance
30/07/2021,Governance,Rhodar Ltd,Outside Contractors,"15,850.00 ",n/a,Building Construction and Maintenance
31/07/2021,Finance,Barclay Card Merchant Services (Global Payment),Bank Charges,500.00 ,n/a,Financial Services
31/07/2021,Finance,Allpay,Post Office & Paypoint Payments,504.18 ,n/a,Financial Services
31/07/2021,Housing HRA,JBA Management Ltd trading as John Burke Associate,Outside Contractors,525.00 ,n/a,Building Construction and Maintenance
31/07/2021,Finance,Chess Ltd,External Contracts,545.50 ,n/a,Utilities
31/07/2021,Finance,HTS (Property & Environment) Ltd,Payment for Fuel,555.02 ,n/a,Building Construction and Maintenance
31/07/2021,Finance,Waterlogic GB Ltd,Rental and Leasing costs of Vending Machines,567.00 ,n/a,Food and Drink
31/07/2021,Finance,Allpay,Post Office & Paypoint Payments,574.48 ,n/a,Financial Services
31/07/2021,Finance,General Security Services Ltd,Contract & Agency Staff,624.75 ,n/a,"Security and Safety Equipment, Lighting"
31/07/2021,Environment and Planning,Disclosure & Barring Service,Crime Rec. Bureau Expenditure,726.00 ,n/a,Organisations and Clubs
31/07/2021,Governance,Harlow Occupational Health Service Ltd,"Employee Welfare-EyeTests,Medicals,Physio,Counsell",739.98 ,n/a,Healthcare Medical
31/07/2021,Housing HRA,Barker Associates,Outside Contractors,774.00 ,n/a,Education Training Interpreting
31/07/2021,Finance,Veolia Es UK Ltd,Trade Refuse Collection,884.11 ,n/a,Utilities
31/07/2021,Finance,Veolia Es UK Ltd,Trade Refuse Collection,"1,421.90 ",n/a,Utilities
31/07/2021,Environment and Planning,Haymarket Media Group,Recruitment Costs Including Police Checks,"1,460.00 ",n/a,Publishing and Advertising
31/07/2021,Environment and Planning,Park Avenue Recruitment,Contract & Agency Staff,"1,480.00 ",n/a,Staff Agencies and Consultants
31/07/2021,Housing HRA,Barker Associates,Outside Contractors,"1,518.75 ",n/a,Education Training Interpreting
31/07/2021,Housing HRA,JBA Management Ltd trading as John Burke Associate,Outside Contractors,"1,690.00 ",n/a,Building Construction and Maintenance
31/07/2021,Housing HRA,JBA Management Ltd trading as John Burke Associate,Outside Contractors,"1,690.00 ",n/a,Building Construction and Maintenance
31/07/2021,Housing HRA,JBA Management Ltd trading as John Burke Associate,Outside Contractors,"1,690.00 ",n/a,Building Construction and Maintenance
31/07/2021,Housing HRA,JBA Management Ltd trading as John Burke Associate,Outside Contractors,"2,100.00 ",n/a,Building Construction and Maintenance
31/07/2021,Housing HRA,EMS Lifts Ltd,Outside Contractors,"2,200.00 ",n/a,Building Construction and Maintenance
31/07/2021,Housing HRA,JBA Management Ltd trading as John Burke Associate,Outside Contractors,"2,385.00 ",n/a,Building Construction and Maintenance
31/07/2021,Housing HRA,JBA Management Ltd trading as John Burke Associate,Outside Contractors,"2,658.75 ",n/a,Building Construction and Maintenance
31/07/2021,Housing HRA,JBA Management Ltd trading as John Burke Associate,Outside Contractors,"2,658.75 ",n/a,Building Construction and Maintenance
31/07/2021,Housing HRA,JBA Management Ltd trading as John Burke Associate,Outside Contractors,"2,658.75 ",n/a,Building Construction and Maintenance
31/07/2021,Housing HRA,Stace LLP,Outside Contractors,"3,360.00 ",n/a,Management and Administrative Services
31/07/2021,Governance,General Security Services Ltd,Security Fees,"4,268.05 ",n/a,"Security and Safety Equipment, Lighting"
31/07/2021,Environment and Planning,IHS Global Limited,IT Support and IT Consumables,"4,320.00 ",n/a,Building Construction and Maintenance
31/07/2021,Housing HRA,IHS Global Limited,IT Support and IT Consumables,"4,320.00 ",n/a,Building Construction and Maintenance
31/07/2021,Housing HRA,JBA Management Ltd trading as John Burke Associate,Outside Contractors,"4,500.00 ",n/a,Building Construction and Maintenance
31/07/2021,Finance,Waterlogic GB Ltd,Rental and Leasing costs of Vending Machines,"4,950.00 ",n/a,Food and Drink
31/07/2021,Housing HRA,JBA Management Ltd trading as John Burke Associate,Outside Contractors,"5,306.25 ",n/a,Building Construction and Maintenance
31/07/2021,Housing HRA,C & W (UK) Ltd LLP,Outside Contractors,"5,560.00 ",n/a,Management and Administrative Services
31/07/2021,Finance,Barclay Card Merchant Services (Global Payment),Bank Charges,"6,813.26 ",n/a,Financial Services
31/07/2021,Housing HRA,Caridon Management,Bed & Breakfast & Other Expenses,"7,483.84 ",n/a,Temporary Accomodation
31/07/2021,Finance,Simon Wasteney Consulting Ltd,Contract & Agency Staff,"8,800.00 ",n/a,Management and Administrative Services
31/07/2021,Housing HRA,General Security Services Ltd,Void Security,"9,486.00 ",n/a,"Security and Safety Equipment, Lighting"
31/07/2021,Finance,Barclay Card Merchant Services (Global Payment),Bank Charges,"11,319.19 ",n/a,Financial Services
31/07/2021,Housing GF,The Rent Guarantee Company Ltd,Bed & Breakfast & Other Expenses,"24,411.38 ",n/a,Temporary Accomodation
31/07/2021,Housing HRA,The Rent Guarantee Company Ltd,Bed & Breakfast & Other Expenses,"35,128.52 ",n/a,Temporary Accomodation
01/08/2021,Housing HRA,Aston Group,Building Defects - Damp,820.26 ,n/a,Building Construction and Maintenance
01/08/2021,Community Wellbeing GF,Friends of Harlow Pets Corner,Equipment Materials & Maintenance incl.Lighting,"1,135.00 ",n/a,Organisations and Clubs
01/08/2021,Finance,Morgan Hunt Public Sector Ltd,Contract & Agency Staff,"1,145.25 ",n/a,Staff Agencies and Consultants
01/08/2021,Housing HRA,Aston Group,Building Defects - Damp,"1,167.31 ",n/a,Building Construction and Maintenance
01/08/2021,Housing HRA,Aston Group,Building Defects - Damp,"1,423.50 ",n/a,Building Construction and Maintenance
01/08/2021,Environment and Planning,South Herts Developments,Outside Contractors,"4,650.00 ",n/a,Building Construction and Maintenance
01/08/2021,Unallocated,T Loughman & Co,Retentions,"6,213.86 ",n/a,Building Construction and Maintenance
01/08/2021,Finance,HTS (Property & Environment) Ltd,Routine Maintenance of Buildings,"6,214.20 ",n/a,Building Construction and Maintenance
01/08/2021,Finance,HTS (Property & Environment) Ltd,Routine Maintenance of Buildings,"6,849.45 ",n/a,Building Construction and Maintenance
01/08/2021,Finance,HTS (Property & Environment) Ltd,Maintenance Buildings - External Contracts,"7,867.00 ",n/a,Building Construction and Maintenance
01/08/2021,Community Wellbeing GF,T Loughman & Co,Outside Contractors,"7,934.25 ",n/a,Building Construction and Maintenance
01/08/2021,Finance,8x8 UK Limited,"Rental,Maintenance & Call Charges for Phone System","9,253.27 ",n/a,Utilities
01/08/2021,Finance,HTS (Property & Environment) Ltd,Routine Maintenance of Buildings,"29,059.26 ",n/a,Building Construction and Maintenance
01/08/2021,Community Wellbeing GF,T Loughman & Co,Outside Contractors,"60,881.28 ",n/a,Building Construction and Maintenance
01/08/2021,Housing HRA,HTS (Property & Environment) Ltd,Outside Contractors,"254,527.16 ",n/a,Building Construction and Maintenance
02/08/2021,Housing HRA,The Harlow Hotel by AccorHotels,Compensation to Tenants - General,533.33 ,n/a,Temporary Accomodation
02/08/2021,Housing HRA,The Harlow Hotel by AccorHotels,Compensation to Tenants - General,533.33 ,n/a,Temporary Accomodation
02/08/2021,Finance,Pristine Washroom Services,Maintenance Buildings - External Contracts,862.00 ,n/a,Cleaning Equipment and Supplies
02/08/2021,Housing HRA,Architecture & Design Services Ltd,Professional Fees,"1,666.67 ",n/a,Building Construction and Maintenance
02/08/2021,Finance,Pristine Washroom Services,Equipment Materials & Maintenance incl.Lighting,"2,436.00 ",n/a,Cleaning Equipment and Supplies
03/08/2021,Housing HRA,Power Property Services Ltd,Building Defects - Damp,560.00 ,n/a,Building Construction and Maintenance
03/08/2021,Housing HRA,MMP Consultancy Ltd,Contract & Agency Staff,"1,023.00 ",n/a,Staff Agencies and Consultants
03/08/2021,Housing HRA,MMP Consultancy Ltd,Contract & Agency Staff,"1,350.75 ",n/a,Staff Agencies and Consultants
03/08/2021,Finance,Keep IT Simple Stationery Ltd,Equipment Materials & Maintenance incl.Lighting,"1,690.00 ",n/a,IT Services and Supplies
03/08/2021,Housing HRA,MMP Consultancy Ltd,Contract & Agency Staff,"1,750.00 ",n/a,Staff Agencies and Consultants
03/08/2021,Finance,SRMcHugh Limited,Security Fees,"3,019.32 ",n/a,Building Construction and Maintenance
03/08/2021,Housing GF,Future Let Property Management,Bed & Breakfast & Other Expenses,"6,645.07 ",n/a,Temporary Accomodation
03/08/2021,Housing HRA,Future Let Property Management,Bed & Breakfast & Other Expenses,"11,507.20 ",n/a,Temporary Accomodation
04/08/2021,Community Wellbeing GF,The Reindeer Whisperer,Veterinary Fees,640.00 ,n/a,Plants Animals Gardens Farming
04/08/2021,Community Wellbeing GF,Harlow Wheelchair Racing Club,Development Work,750.00 ,n/a,Sports and Recreational
04/08/2021,Housing GF,James Andrew Recruitment Solutions Ltd,Contract & Agency Staff,967.20 ,n/a,Staff Agencies and Consultants
04/08/2021,Housing GF,James Andrew Recruitment Solutions Ltd,Contract & Agency Staff,"1,012.50 ",n/a,Staff Agencies and Consultants
04/08/2021,Housing GF,James Andrew Recruitment Solutions Ltd,Contract & Agency Staff,"1,012.50 ",n/a,Staff Agencies and Consultants
04/08/2021,Housing GF,James Andrew Recruitment Solutions Ltd,Contract & Agency Staff,"1,142.40 ",n/a,Staff Agencies and Consultants
04/08/2021,Housing GF,The Oyster Partnership Ltd,Contract & Agency Staff,"1,143.75 ",n/a,Staff Agencies and Consultants
04/08/2021,Housing HRA,James Andrew Recruitment Solutions Ltd,Contract & Agency Staff,"1,148.16 ",n/a,Staff Agencies and Consultants
04/08/2021,Housing GF,James Andrew Recruitment Solutions Ltd,Contract & Agency Staff,"1,170.00 ",n/a,Staff Agencies and Consultants
04/08/2021,Housing GF,James Andrew Recruitment Solutions Ltd,Contract & Agency Staff,"1,170.00 ",n/a,Staff Agencies and Consultants
04/08/2021,Housing HRA,James Andrew Recruitment Solutions Ltd,Contract & Agency Staff,"1,188.00 ",n/a,Staff Agencies and Consultants
04/08/2021,Finance,The Oyster Partnership Ltd,Contract & Agency Staff,"1,290.30 ",n/a,Staff Agencies and Consultants
04/08/2021,Finance,The Oyster Partnership Ltd,Contract & Agency Staff,"1,311.68 ",n/a,Staff Agencies and Consultants
04/08/2021,Housing HRA,James Andrew Recruitment Solutions Ltd,Contract & Agency Staff,"1,350.00 ",n/a,Staff Agencies and Consultants
04/08/2021,Housing HRA,Marks Consulting Partners Ltd,Contract & Agency Staff,"1,391.40 ",n/a,Staff Agencies and Consultants
04/08/2021,Environment and Planning,The Oyster Partnership Ltd,Contract & Agency Staff,"1,420.00 ",n/a,Staff Agencies and Consultants
04/08/2021,Housing HRA,James Andrew Recruitment Solutions Ltd,Contract & Agency Staff,"1,703.85 ",n/a,Staff Agencies and Consultants
04/08/2021,Environment and Planning,Vivid Resourcing,Contract & Agency Staff,"4,292.00 ",n/a,Staff Agencies and Consultants
05/08/2021,Finance,Keep IT Simple Stationery Ltd,Equipment Materials & Maintenance incl.Lighting,536.75 ,n/a,IT Services and Supplies
05/08/2021,Housing HRA,Apetito Ltd,Lunch Services Expenses,555.21 ,n/a,Food and Drink
05/08/2021,Housing HRA,Kendal Tree Surgery Ltd,Outside Contractors - Housing,"2,150.00 ",n/a,Plants Animals Gardens Farming
05/08/2021,Environment and Planning,Stannah Stairlifts,Outside Contractors,"2,571.00 ",n/a,Building Construction and Maintenance
05/08/2021,Housing HRA,Aston Group,HHRS Repairs,"2,974.24 ",n/a,Building Construction and Maintenance
05/08/2021,Environment and Planning,Stannah Stairlifts,Outside Contractors,"3,509.00 ",n/a,Building Construction and Maintenance
06/08/2021,Finance,O2 UK Ltd,External Contracts,695.00 ,n/a,Utilities
06/08/2021,Housing HRA,Tann Synchronome Limited,"Alarm Maintenance Burglar & Fire, Compliance",780.00 ,n/a,Building Construction and Maintenance
06/08/2021,Housing GF,Agincare Live in Care,Extra Care Provider,869.40 ,n/a,Healthcare Medical
06/08/2021,Housing HRA,J A Riley,Maintenance Buildings - External Contracts,"2,786.00 ",n/a,Building Construction and Maintenance
06/08/2021,Housing HRA,Aston Group,Building Defects - Damp,"2,928.00 ",n/a,Building Construction and Maintenance
06/08/2021,Housing HRA,J A Riley,Building Defects - Damp,"5,190.00 ",n/a,Building Construction and Maintenance
06/08/2021,Governance,Lexis Nexis UK,Subscriptions to Organisations & Periodicals,"5,532.32 ",n/a,Publishing and Advertising
06/08/2021,Housing HRA,J A Riley,Cyclical Maintenance,"6,953.00 ",n/a,Building Construction and Maintenance
06/08/2021,Finance,DSI Billing Services Ltd,Postage,"7,485.58 ",n/a,Transport Storage and Mail Services
08/08/2021,Finance,Morgan Hunt Public Sector Ltd,Contract & Agency Staff,"1,145.25 ",n/a,Staff Agencies and Consultants
08/08/2021,Environment and Planning,Park Avenue Recruitment,Contract & Agency Staff,"1,531.75 ",n/a,Staff Agencies and Consultants
09/08/2021,Housing HRA,The Harlow Hotel by AccorHotels,Compensation to Tenants - General,533.33 ,n/a,Temporary Accomodation
09/08/2021,Housing HRA,The Harlow Hotel by AccorHotels,Compensation to Tenants - General,533.33 ,n/a,Temporary Accomodation
09/08/2021,Housing HRA,Power Property Services Ltd,Building Defects - Damp,580.00 ,n/a,Building Construction and Maintenance
09/08/2021,Housing HRA,Power Property Services Ltd,Building Defects - Damp,580.00 ,n/a,Building Construction and Maintenance
09/08/2021,Governance,Vending Sense Group Limited,Provisions including Vending Machines,614.40 ,n/a,Food and Drink
09/08/2021,Finance,Pristine Washroom Services,Equipment Materials & Maintenance incl.Lighting,618.25 ,n/a,Cleaning Equipment and Supplies
09/08/2021,Community Wellbeing GF,Victoria Mathieson Yoga & Thai Yoga Massage,Development Work,750.00 ,n/a,Sports and Recreational
09/08/2021,Housing HRA,Lamya Construction Ltd,Outside Contractors,782.50 ,n/a,Building Construction and Maintenance
09/08/2021,Finance,Daisy Updata Communications Ltd,"Rental,Maintenance & Call Charges for Phone System","1,175.00 ",n/a,IT Services and Supplies
09/08/2021,Housing HRA,Chas Berger,Outside Contractors,"1,463.21 ",n/a,Building Construction and Maintenance
09/08/2021,Housing HRA,Aston Group,Outside Contractors,"4,483.28 ",n/a,Building Construction and Maintenance
09/08/2021,Unallocated,Chas Berger,Retentions,"6,812.78 ",n/a,Building Construction and Maintenance
09/08/2021,Finance,The Technology Forge Ltd,Software Licences,"8,385.00 ",n/a,IT Services and Supplies
09/08/2021,Housing HRA,Lamya Construction Ltd,Outside Contractors,"8,490.16 ",n/a,Building Construction and Maintenance
09/08/2021,Finance,Total Constructive Solutions,Outside Contractors,"11,766.10 ",n/a,Building Construction and Maintenance
09/08/2021,Housing HRA,Lamya Construction Ltd,Outside Contractors,"13,578.16 ",n/a,Building Construction and Maintenance
09/08/2021,Housing HRA,Lamya Construction Ltd,Cyclical Maintenance,"17,000.00 ",n/a,Building Construction and Maintenance
09/08/2021,Housing HRA,Chas Berger,Outside Contractors,"27,800.87 ",n/a,Building Construction and Maintenance
09/08/2021,Housing HRA,Lengard Ltd,Outside Contractors,"105,948.56 ",n/a,Building Construction and Maintenance
10/08/2021,Environment and Planning,Fluke UK Ltd,Equipment Materials & Maintenance incl.Lighting,560.00 ,n/a,Laboratory and Testing Services
10/08/2021,Housing HRA,Power Property Services Ltd,Building Defects - Damp,875.00 ,n/a,Building Construction and Maintenance
10/08/2021,Community Wellbeing GF,One Nucleus Ltd,Membership Fees,915.00 ,n/a,Engineering and Research
10/08/2021,Housing HRA,James Andrew Recruitment Solutions Ltd,Contract & Agency Staff,937.50 ,n/a,Staff Agencies and Consultants
10/08/2021,Housing HRA,James Andrew Recruitment Solutions Ltd,Contract & Agency Staff,937.50 ,n/a,Staff Agencies and Consultants
10/08/2021,Housing GF,James Andrew Recruitment Solutions Ltd,Contract & Agency Staff,"1,012.50 ",n/a,Staff Agencies and Consultants
10/08/2021,Housing GF,James Andrew Recruitment Solutions Ltd,Contract & Agency Staff,"1,012.50 ",n/a,Staff Agencies and Consultants
10/08/2021,Housing HRA,James Andrew Recruitment Solutions Ltd,Contract & Agency Staff,"1,148.16 ",n/a,Staff Agencies and Consultants
10/08/2021,Housing HRA,MMP Consultancy Ltd,Contract & Agency Staff,"1,162.50 ",n/a,Staff Agencies and Consultants
10/08/2021,Finance,HM Land Registry,GIS Expenditure,"1,200.00 ",n/a,Organisations and Clubs
10/08/2021,Housing HRA,MMP Consultancy Ltd,Contract & Agency Staff,"1,349.40 ",n/a,Staff Agencies and Consultants
10/08/2021,Housing HRA,James Andrew Recruitment Solutions Ltd,Contract & Agency Staff,"1,350.00 ",n/a,Staff Agencies and Consultants
10/08/2021,Housing HRA,James Andrew Recruitment Solutions Ltd,Contract & Agency Staff,"1,350.00 ",n/a,Staff Agencies and Consultants
10/08/2021,Housing HRA,James Andrew Recruitment Solutions Ltd,Contract & Agency Staff,"1,640.25 ",n/a,Staff Agencies and Consultants
10/08/2021,Housing HRA,MMP Consultancy Ltd,Contract & Agency Staff,"1,750.00 ",n/a,Staff Agencies and Consultants
10/08/2021,Finance,Hays Plc,Contract & Agency Staff,"2,150.00 ",n/a,Staff Agencies and Consultants
10/08/2021,Finance,Hays Plc,Contract & Agency Staff,"3,175.00 ",n/a,Staff Agencies and Consultants
10/08/2021,Unallocated,Aon Limited,Group Household Insurance,"3,542.24 ",n/a,Financial Services
10/08/2021,Housing HRA,Lamya Construction Ltd,Outside Contractors,"6,001.00 ",n/a,Building Construction and Maintenance
10/08/2021,Community Wellbeing GF,Stewart Landscape Construction Ltd,Development Work,"11,865.60 ",n/a,Building Construction and Maintenance
11/08/2021,Housing HRA,Mac Environmental Ltd,Outside Contractors,534.00 ,n/a,Building Construction and Maintenance
11/08/2021,Finance,R B Whitbread (Plant Hire) Ltd,Car Park Maintenance,540.00 ,n/a,Building Construction and Maintenance
11/08/2021,Housing HRA,J A Riley,Maintenance Buildings - External Contracts,550.00 ,n/a,Building Construction and Maintenance
11/08/2021,Finance,Pitney Bowes Ltd,Equipment Materials & Maintenance incl.Lighting,670.74 ,n/a,Office Equipment and Stationery
11/08/2021,Housing HRA,Mac Environmental Ltd,Outside Contractors,830.00 ,n/a,Building Construction and Maintenance
11/08/2021,Housing HRA,Mac Environmental Ltd,Outside Contractors,"1,040.00 ",n/a,Building Construction and Maintenance
11/08/2021,Environment and Planning,The Oyster Partnership Ltd,Contract & Agency Staff,"1,300.00 ",n/a,Staff Agencies and Consultants
11/08/2021,Finance,The Oyster Partnership Ltd,Contract & Agency Staff,"1,347.23 ",n/a,Staff Agencies and Consultants
11/08/2021,Finance,Hays Plc,Contract & Agency Staff,"1,504.50 ",n/a,Staff Agencies and Consultants
11/08/2021,Housing HRA,Mac Environmental Ltd,Asbestos Revenue,"1,520.00 ",n/a,Building Construction and Maintenance
11/08/2021,Housing HRA,Marks Consulting Partners Ltd,Contract & Agency Staff,"1,582.20 ",n/a,Staff Agencies and Consultants
11/08/2021,Community Wellbeing GF,Trowers & Hamlins,Legal Costs,"1,660.50 ",n/a,Legal Services
11/08/2021,Housing HRA,Mac Environmental Ltd,Outside Contractors,"2,700.00 ",n/a,Building Construction and Maintenance
11/08/2021,Finance,SRMcHugh Limited,Security Fees,"3,019.32 ",n/a,Building Construction and Maintenance
11/08/2021,Housing HRA,Mac Environmental Ltd,Asbestos Revenue,"6,720.00 ",n/a,Building Construction and Maintenance
11/08/2021,Housing HRA,United Living (South)  Ltd,Outside Contractors,"99,225.80 ",n/a,Building Construction and Maintenance
12/08/2021,Housing HRA,Apetito Ltd,Lunch Services Expenses,532.14 ,n/a,Food and Drink
12/08/2021,Governance,Carve Productions - ACDE Media Ltd,"Advertising, Marketing, Publicity & Printing","1,100.00 ",n/a,Publishing and Advertising
12/08/2021,Governance,Carve Productions - ACDE Media Ltd,Pantomime Production,"1,250.00 ",n/a,Publishing and Advertising
12/08/2021,Housing HRA,Lamya Construction Ltd,Outside Contractors,"1,525.00 ",n/a,Building Construction and Maintenance
12/08/2021,Housing HRA,R B Whitbread (Plant Hire) Ltd,Garage Responsive Repairs,"1,628.00 ",n/a,Building Construction and Maintenance
12/08/2021,Finance,R B Whitbread (Plant Hire) Ltd,ECC Highways Rangers,"2,000.00 ",n/a,Building Construction and Maintenance
12/08/2021,Housing HRA,R B Whitbread (Plant Hire) Ltd,HHRS Repairs,"2,072.00 ",n/a,Building Construction and Maintenance
12/08/2021,Housing HRA,R B Whitbread (Plant Hire) Ltd,HHRS Repairs,"2,336.00 ",n/a,Building Construction and Maintenance
12/08/2021,Environment and Planning,Stannah Stairlifts,Outside Contractors,"2,476.00 ",n/a,Building Construction and Maintenance
12/08/2021,Finance,R B Whitbread (Plant Hire) Ltd,ECC Highways Rangers,"3,250.00 ",n/a,Building Construction and Maintenance
12/08/2021,Housing HRA,Lamya Construction Ltd,Outside Contractors,"5,844.18 ",n/a,Building Construction and Maintenance
12/08/2021,Housing HRA,Lamya Construction Ltd,Outside Contractors,"7,771.50 ",n/a,Building Construction and Maintenance
13/08/2021,Housing HRA,Lamya Construction Ltd,Outside Contractors,790.00 ,n/a,Building Construction and Maintenance
13/08/2021,Housing HRA,Lamya Construction Ltd,Outside Contractors,875.00 ,n/a,Building Construction and Maintenance
13/08/2021,Community Wellbeing GF,Corporate Document Services Ltd,"Advertising, Marketing, Publicity & Printing","1,204.52 ",n/a,Printing and Signage
13/08/2021,Finance,Hays Plc,Contract & Agency Staff,"1,935.00 ",n/a,Staff Agencies and Consultants
13/08/2021,Finance,Hays Plc,Contract & Agency Staff,"2,507.50 ",n/a,Staff Agencies and Consultants
13/08/2021,Finance,Hays Plc,Contract & Agency Staff,"3,175.00 ",n/a,Staff Agencies and Consultants
13/08/2021,Finance,R B Whitbread (Plant Hire) Ltd,ECC Highways Rangers,"7,420.00 ",n/a,Building Construction and Maintenance
13/08/2021,Housing HRA,HTS (Property & Environment) Ltd,Outside Contractors,"16,030.77 ",n/a,Building Construction and Maintenance
14/08/2021,Housing HRA,The Rent Guarantee Company Ltd,Bed & Breakfast & Other Expenses,"15,749.11 ",n/a,Temporary Accomodation
14/08/2021,Housing GF,The Rent Guarantee Company Ltd,Bed & Breakfast & Other Expenses,"32,360.45 ",n/a,Temporary Accomodation
15/08/2021,Finance,Morgan Hunt Public Sector Ltd,Contract & Agency Staff,"1,145.25 ",n/a,Staff Agencies and Consultants
16/08/2021,Governance,Mosaic Recruitment,Contract & Agency Staff,649.06 ,n/a,Staff Agencies and Consultants
16/08/2021,Housing HRA,Sycous Ltd,Postage,810.00 ,n/a,Management and Administrative Services
16/08/2021,Finance,Zoocha Limited,Software Licences,"1,100.00 ",n/a,IT Services and Supplies
16/08/2021,Environment and Planning,EMS Lifts Ltd,Outside Contractors,"1,100.00 ",n/a,Building Construction and Maintenance
16/08/2021,Finance,Complete Data Ltd,Equipment Materials & Maintenance incl.Lighting,"1,171.00 ",n/a,IT Services and Supplies
16/08/2021,Housing GF,Nickolds HMO Management & Maintenance Ltd,Bed & Breakfast & Other Expenses,"1,384.61 ",n/a,Management and Administrative Services
16/08/2021,Environment and Planning,Besure Building & maintenance Services Ltd,Outside Contractors,"1,830.00 ",n/a,Building Construction and Maintenance
16/08/2021,Housing HRA,Borras Construction Ltd,Outside Contractors,"6,101.17 ",n/a,Building Construction and Maintenance
16/08/2021,Housing HRA,Stace LLP,Outside Contractors,"8,581.25 ",n/a,Management and Administrative Services
16/08/2021,Housing HRA,Borras Construction Ltd,Outside Contractors,"115,920.28 ",n/a,Building Construction and Maintenance
17/08/2021,Finance,Insight Direct UK Ltd,Software Licences,994.50 ,n/a,IT Services and Supplies
17/08/2021,General Fund Summary Items,Keep IT Simple Stationery Ltd,Equipment Materials & Maintenance incl.Lighting,"1,078.80 ",n/a,IT Services and Supplies
17/08/2021,Housing HRA,MMP Consultancy Ltd,Contract & Agency Staff,"1,162.50 ",n/a,Staff Agencies and Consultants
17/08/2021,Housing HRA,MMP Consultancy Ltd,Contract & Agency Staff,"1,312.50 ",n/a,Staff Agencies and Consultants
17/08/2021,Housing GF,Nickolds HMO Management & Maintenance Ltd,Bed & Breakfast & Other Expenses,"1,470.00 ",n/a,Management and Administrative Services
17/08/2021,Housing GF,Nickolds HMO Management & Maintenance Ltd,Bed & Breakfast & Other Expenses,"1,710.00 ",n/a,Management and Administrative Services
17/08/2021,Housing HRA,MMP Consultancy Ltd,Contract & Agency Staff,"1,750.00 ",n/a,Staff Agencies and Consultants
17/08/2021,Housing GF,Nickolds HMO Management & Maintenance Ltd,Bed & Breakfast & Other Expenses,"1,760.00 ",n/a,Management and Administrative Services
17/08/2021,Finance,Automated Payments Transfer Ltd,Software Licences,"1,899.00 ",n/a,Financial Services
17/08/2021,Finance,Centre Security Innovations Ltd,Equipment Materials & Maintenance incl.Lighting,"2,615.00 ",n/a,"Security and Safety Equipment, Lighting"
17/08/2021,Environment and Planning,Stannah Stairlifts,Outside Contractors,"6,893.00 ",n/a,Building Construction and Maintenance
17/08/2021,Housing HRA,Aston Group,Outside Contractors,"7,188.74 ",n/a,Building Construction and Maintenance
17/08/2021,Finance,Insight Direct UK Ltd,Software Licences,"7,322.00 ",n/a,IT Services and Supplies
17/08/2021,Community Wellbeing GF,Light Angels Ltd,Equipment Materials & Maintenance incl.Lighting,"8,987.85 ",n/a,Entertainment Services
17/08/2021,Community Wellbeing GF,Deyton Bell Ltd,Consultancy Fees & Consultation costs,"10,550.00 ",n/a,Management and Administrative Services
18/08/2021,Environment and Planning,Osborne Richardson,Contract & Agency Staff,530.00 ,n/a,Staff Agencies and Consultants
18/08/2021,Community Wellbeing GF,Modes Users Association,Bank Bureau Charges,650.00 ,n/a,Organisations and Clubs
18/08/2021,Housing GF,James Andrew Recruitment Solutions Ltd,Contract & Agency Staff,920.40 ,n/a,Staff Agencies and Consultants
18/08/2021,Housing HRA,James Andrew Recruitment Solutions Ltd,Contract & Agency Staff,937.50 ,n/a,Staff Agencies and Consultants
18/08/2021,Housing GF,James Andrew Recruitment Solutions Ltd,Contract & Agency Staff,"1,012.50 ",n/a,Staff Agencies and Consultants
18/08/2021,Housing GF,James Andrew Recruitment Solutions Ltd,Contract & Agency Staff,"1,012.50 ",n/a,Staff Agencies and Consultants
18/08/2021,Housing GF,The Oyster Partnership Ltd,Contract & Agency Staff,"1,143.75 ",n/a,Staff Agencies and Consultants
18/08/2021,Housing HRA,James Andrew Recruitment Solutions Ltd,Contract & Agency Staff,"1,148.16 ",n/a,Staff Agencies and Consultants
18/08/2021,Housing GF,James Andrew Recruitment Solutions Ltd,Contract & Agency Staff,"1,170.00 ",n/a,Staff Agencies and Consultants
18/08/2021,Housing GF,James Andrew Recruitment Solutions Ltd,Contract & Agency Staff,"1,170.00 ",n/a,Staff Agencies and Consultants
18/08/2021,Environment and Planning,The Oyster Partnership Ltd,Contract & Agency Staff,"1,240.00 ",n/a,Staff Agencies and Consultants
18/08/2021,Housing GF,James Andrew Recruitment Solutions Ltd,Contract & Agency Staff,"1,260.00 ",n/a,Staff Agencies and Consultants
18/08/2021,Housing HRA,Marks Consulting Partners Ltd,Contract & Agency Staff,"1,286.40 ",n/a,Staff Agencies and Consultants
18/08/2021,Housing HRA,James Andrew Recruitment Solutions Ltd,Contract & Agency Staff,"1,350.00 ",n/a,Staff Agencies and Consultants
18/08/2021,Housing HRA,James Andrew Recruitment Solutions Ltd,Contract & Agency Staff,"1,640.25 ",n/a,Staff Agencies and Consultants
18/08/2021,Finance,Hays Plc,Contract & Agency Staff,"1,935.00 ",n/a,Staff Agencies and Consultants
18/08/2021,Housing HRA,HTS (Property & Environment) Ltd,Outside Contractors,"2,077.60 ",n/a,Building Construction and Maintenance
18/08/2021,Environment and Planning,Vivid Resourcing,Contract & Agency Staff,"2,146.00 ",n/a,Staff Agencies and Consultants
18/08/2021,Housing HRA,Lamya Construction Ltd,Outside Contractors,"2,821.32 ",n/a,Building Construction and Maintenance
18/08/2021,Finance,SRMcHugh Limited,Security Fees,"3,019.32 ",n/a,Building Construction and Maintenance
18/08/2021,Housing HRA,HTS (Property & Environment) Ltd,Outside Contractors,"3,524.50 ",n/a,Building Construction and Maintenance
18/08/2021,Housing HRA,HTS (Property & Environment) Ltd,Outside Contractors,"3,994.61 ",n/a,Building Construction and Maintenance
18/08/2021,Housing HRA,HTS (Property & Environment) Ltd,Outside Contractors,"4,022.17 ",n/a,Building Construction and Maintenance
18/08/2021,Housing HRA,HTS (Property & Environment) Ltd,Outside Contractors,"4,585.98 ",n/a,Building Construction and Maintenance
18/08/2021,Housing HRA,HTS (Property & Environment) Ltd,Outside Contractors,"4,782.99 ",n/a,Building Construction and Maintenance
18/08/2021,Housing HRA,HTS (Property & Environment) Ltd,Outside Contractors,"5,093.30 ",n/a,Building Construction and Maintenance
18/08/2021,Housing HRA,Lamya Construction Ltd,Outside Contractors,"5,700.18 ",n/a,Building Construction and Maintenance
18/08/2021,Housing HRA,HTS (Property & Environment) Ltd,Outside Contractors,"6,023.98 ",n/a,Building Construction and Maintenance
18/08/2021,Finance,UK Power Networks,Outside Contractors,"6,130.00 ",n/a,Utilities
18/08/2021,Housing HRA,Lamya Construction Ltd,Outside Contractors,"8,085.38 ",n/a,Building Construction and Maintenance
18/08/2021,Housing HRA,Lamya Construction Ltd,Outside Contractors,"8,490.16 ",n/a,Building Construction and Maintenance
18/08/2021,Housing HRA,Lamya Construction Ltd,Outside Contractors,"8,490.16 ",n/a,Building Construction and Maintenance
18/08/2021,Housing HRA,HTS (Property & Environment) Ltd,Outside Contractors,"10,536.40 ",n/a,Building Construction and Maintenance
18/08/2021,Housing HRA,HTS (Property & Environment) Ltd,Outside Contractors,"11,378.57 ",n/a,Building Construction and Maintenance
19/08/2021,Housing HRA,Apetito Ltd,Lunch Services Expenses,509.51 ,n/a,Food and Drink
19/08/2021,Finance,D S Lloyd,Maintenance Buildings - External Contracts,565.00 ,n/a,Building Construction and Maintenance
19/08/2021,Environment and Planning,GRM Mapping Ltd,Harlow Local Plan,750.00 ,n/a,IT Services and Supplies
19/08/2021,Housing HRA,Kendal Tree Surgery Ltd,Outside Contractors,750.00 ,n/a,Plants Animals Gardens Farming
19/08/2021,Housing HRA,Kendal Tree Surgery Ltd,Maintenance Buildings - External Contracts,850.00 ,n/a,Plants Animals Gardens Farming
19/08/2021,Housing HRA,Kendal Tree Surgery Ltd,Maintenance Buildings - External Contracts,850.00 ,n/a,Plants Animals Gardens Farming
19/08/2021,Housing HRA,Kendal Tree Surgery Ltd,Outside Contractors - Housing,850.00 ,n/a,Plants Animals Gardens Farming
19/08/2021,Governance,Anchor Press,"Advertising, Marketing, Publicity & Printing",871.00 ,n/a,Printing and Signage
19/08/2021,Environment and Planning,Cornerstone Barristers,Legal Costs,"1,000.00 ",n/a,Legal Services
19/08/2021,Community Wellbeing GF,Rainbow Services,Grants to Voluntary Organisations,"1,000.00 ",n/a,Organisations and Clubs
19/08/2021,Housing HRA,Kendal Tree Surgery Ltd,Building Defects - Damp,"1,145.00 ",n/a,Plants Animals Gardens Farming
19/08/2021,Environment and Planning,Gough Square Chambers,Legal Costs,"1,550.00 ",n/a,Legal Services
19/08/2021,Environment and Planning,Stannah Stairlifts,Outside Contractors,"2,909.00 ",n/a,Building Construction and Maintenance
19/08/2021,Environment and Planning,Farm & Country Supplies Ltd,Outside Contractors,"43,247.00 ",n/a,Plants Animals Gardens Farming
19/08/2021,Housing HRA,Durkan Ltd,Outside Contractors,"80,178.05 ",n/a,Building Construction and Maintenance
20/08/2021,Finance,Keep IT Simple Stationery Ltd,Equipment Materials & Maintenance incl.Lighting,549.50 ,n/a,IT Services and Supplies
20/08/2021,Housing HRA,The Harlow Hotel by AccorHotels,Compensation to Tenants - General,680.95 ,n/a,Temporary Accomodation
20/08/2021,Housing GF,Nickolds HMO Management & Maintenance Ltd,Bed & Breakfast & Other Expenses,996.00 ,n/a,Management and Administrative Services
20/08/2021,Housing GF,Nickolds HMO Management & Maintenance Ltd,Bed & Breakfast & Other Expenses,996.00 ,n/a,Management and Administrative Services
20/08/2021,Governance,Signs Express,"Advertising, Marketing, Publicity & Printing","1,640.00 ",n/a,Printing and Signage
20/08/2021,Unallocated,Aston Group,Retentions,"5,841.53 ",n/a,Building Construction and Maintenance
20/08/2021,Community Wellbeing GF,Derrick Wade Waters Ltd,Professional Fees,"5,995.00 ",n/a,Management and Administrative Services
20/08/2021,Housing HRA,Aston Group,Outside Contractors,"11,683.06 ",n/a,Building Construction and Maintenance
20/08/2021,Housing HRA,Aston Group,Outside Contractors,"18,037.50 ",n/a,Building Construction and Maintenance
22/08/2021,Finance,Morgan Hunt Public Sector Ltd,Contract & Agency Staff,"1,145.25 ",n/a,Staff Agencies and Consultants
23/08/2021,Environment and Planning,Matthews Plants,Equipment Materials & Maintenance incl.Lighting,570.00 ,n/a,Plants Animals Gardens Farming
23/08/2021,Housing GF,The Harlow Hotel by AccorHotels,Bed & Breakfast & Other Expenses,910.00 ,n/a,Temporary Accomodation
23/08/2021,Environment and Planning,Browne Jacobson LLP,Legal Costs,"1,602.00 ",n/a,Legal Services
23/08/2021,Finance,T & J Bird  t/a Big Day Graphics,Outside Contractors,"1,715.00 ",n/a,Printing and Signage
23/08/2021,Finance,Zurich Municipal,Policy Excesses,"3,009.50 ",n/a,Financial Services
23/08/2021,Housing HRA,AK Design Partnership LLP,Outside Contractors,"3,140.00 ",n/a,Building Construction and Maintenance
23/08/2021,Environment and Planning,Stuart & Co Solicitors,Legal Costs,"4,975.00 ",n/a,Legal Services
23/08/2021,Housing HRA,Lamya Construction Ltd,HHRS Repairs,"6,980.00 ",n/a,Building Construction and Maintenance
24/08/2021,Finance,Civica UK Ltd,Software Licences,529.89 ,n/a,IT Services and Supplies
24/08/2021,Finance,Civica UK Ltd,Software Licences,529.89 ,n/a,IT Services and Supplies
24/08/2021,Housing HRA,Davies Burton Sweetlove Ltd,Outside Contractors,720.00 ,n/a,Engineering and Research
24/08/2021,Finance,Withers Thomas,Valuation of Assets Fees,734.00 ,n/a,Legal Services
24/08/2021,Finance,Civica UK Ltd,Software Licences,809.98 ,n/a,IT Services and Supplies
24/08/2021,Housing GF,James Andrew Recruitment Solutions Ltd,Contract & Agency Staff,"1,012.50 ",n/a,Staff Agencies and Consultants
24/08/2021,Housing GF,James Andrew Recruitment Solutions Ltd,Contract & Agency Staff,"1,012.50 ",n/a,Staff Agencies and Consultants
24/08/2021,Finance,Civica UK Ltd,Software Licences,"1,133.81 ",n/a,IT Services and Supplies
24/08/2021,Housing GF,James Andrew Recruitment Solutions Ltd,Contract & Agency Staff,"1,138.80 ",n/a,Staff Agencies and Consultants
24/08/2021,Housing HRA,James Andrew Recruitment Solutions Ltd,Contract & Agency Staff,"1,148.16 ",n/a,Staff Agencies and Consultants
24/08/2021,Housing HRA,MMP Consultancy Ltd,Contract & Agency Staff,"1,162.50 ",n/a,Staff Agencies and Consultants
24/08/2021,Housing GF,James Andrew Recruitment Solutions Ltd,Contract & Agency Staff,"1,170.00 ",n/a,Staff Agencies and Consultants
24/08/2021,Housing GF,James Andrew Recruitment Solutions Ltd,Contract & Agency Staff,"1,170.00 ",n/a,Staff Agencies and Consultants
24/08/2021,Finance,Civica UK Ltd,Software Licences,"1,217.42 ",n/a,IT Services and Supplies
24/08/2021,Finance,Civica UK Ltd,Software Licences,"1,235.91 ",n/a,IT Services and Supplies
24/08/2021,Housing GF,James Andrew Recruitment Solutions Ltd,Contract & Agency Staff,"1,260.00 ",n/a,Staff Agencies and Consultants
24/08/2021,Housing HRA,MMP Consultancy Ltd,Contract & Agency Staff,"1,344.00 ",n/a,Staff Agencies and Consultants
24/08/2021,Housing HRA,James Andrew Recruitment Solutions Ltd,Contract & Agency Staff,"1,350.00 ",n/a,Staff Agencies and Consultants
24/08/2021,Housing HRA,MMP Consultancy Ltd,Contract & Agency Staff,"1,750.00 ",n/a,Staff Agencies and Consultants
24/08/2021,Housing HRA,Davies Burton Sweetlove Ltd,Outside Contractors,"2,041.84 ",n/a,Engineering and Research
24/08/2021,Finance,Keep IT Simple Stationery Ltd,Equipment Materials & Maintenance incl.Lighting,"2,070.00 ",n/a,IT Services and Supplies
24/08/2021,Governance,Civica Electoral Services,Canvass,"3,885.16 ",n/a,Organisations and Clubs
24/08/2021,Environment and Planning,Gardenscape Ltd,Outside Contractors,"4,150.00 ",n/a,Plants Animals Gardens Farming
24/08/2021,Environment and Planning,Gardenscape Ltd,Outside Contractors,"4,700.00 ",n/a,Plants Animals Gardens Farming
24/08/2021,Finance,Civica UK Ltd,Software Licences,"4,861.25 ",n/a,IT Services and Supplies
24/08/2021,Housing HRA,Davies Burton Sweetlove Ltd,Outside Contractors,"5,036.56 ",n/a,Engineering and Research
24/08/2021,Community Wellbeing GF,McBains Ltd,Professional Fees,"5,257.00 ",n/a,Building Construction and Maintenance
24/08/2021,Housing HRA,McBains Ltd,Professional Fees,"5,257.00 ",n/a,Building Construction and Maintenance
24/08/2021,Community Wellbeing GF,McBains Ltd,Professional Fees,"5,468.00 ",n/a,Building Construction and Maintenance
24/08/2021,Finance,Arthur J Gallagher,Insurance,"7,000.00 ",n/a,Financial Services
24/08/2021,Housing HRA,Atkins Ltd,Professional Fees,"9,040.13 ",n/a,Staff Agencies and Consultants
24/08/2021,Housing HRA,McBains Ltd,Professional Fees,"9,500.00 ",n/a,Building Construction and Maintenance
24/08/2021,Finance,Civica UK Ltd,Bank Bureau Charges,"10,359.13 ",n/a,IT Services and Supplies
24/08/2021,Governance,Civica Electoral Services,Canvass,"12,540.88 ",n/a,Organisations and Clubs
24/08/2021,Community Wellbeing GF,McBains Ltd,Consultancy Fees & Consultation costs,"46,332.00 ",n/a,Building Construction and Maintenance
25/08/2021,Environment and Planning,Osborne Richardson,Contract & Agency Staff,570.00 ,n/a,Staff Agencies and Consultants
25/08/2021,Housing HRA,Power Property Services Ltd,Building Defects - Damp,600.00 ,n/a,Building Construction and Maintenance
25/08/2021,Finance,Churchill Environmental Services,Maintenance Buildings - External Contracts,648.00 ,n/a,Engineering and Research
25/08/2021,Finance,The Oyster Partnership Ltd,Contract & Agency Staff,"1,349.63 ",n/a,Staff Agencies and Consultants
25/08/2021,Finance,The Oyster Partnership Ltd,Contract & Agency Staff,"1,446.10 ",n/a,Staff Agencies and Consultants
25/08/2021,Finance,R B Whitbread (Plant Hire) Ltd,Footpath Maintenance,"1,550.00 ",n/a,Building Construction and Maintenance
25/08/2021,Housing HRA,Marks Consulting Partners Ltd,Contract & Agency Staff,"1,584.90 ",n/a,Staff Agencies and Consultants
25/08/2021,Finance,Hays Plc,Contract & Agency Staff,"2,150.00 ",n/a,Staff Agencies and Consultants
25/08/2021,Community Wellbeing GF,McBains Ltd,Consultant Architects,"2,804.79 ",n/a,Building Construction and Maintenance
25/08/2021,Finance,Hays Plc,Contract & Agency Staff,"3,175.00 ",n/a,Staff Agencies and Consultants
25/08/2021,Finance,Hays Plc,Contract & Agency Staff,"3,175.00 ",n/a,Staff Agencies and Consultants
25/08/2021,Finance,UK Power Networks,Outside Contractors,"5,510.45 ",n/a,Utilities
25/08/2021,Community Wellbeing GF,McBains Ltd,Outside Contractors,"28,538.67 ",n/a,Building Construction and Maintenance
26/08/2021,Community Wellbeing GF,Heygate & Sons Ltd,Provisions including Vending Machines,560.92 ,n/a,Plants Animals Gardens Farming
26/08/2021,Housing HRA,Apetito Ltd,Lunch Services Expenses,563.67 ,n/a,Food and Drink
26/08/2021,Housing HRA,Davies Burton Sweetlove Ltd,Building Defects - Damp,640.00 ,n/a,Engineering and Research
26/08/2021,Community Wellbeing GF,Farm & Country Supplies Ltd,Outside Contractors,821.72 ,n/a,Plants Animals Gardens Farming
26/08/2021,Community Wellbeing GF,McBains Ltd,Professional Fees,895.75 ,n/a,Building Construction and Maintenance
26/08/2021,Housing HRA,McBains Ltd,Professional Fees,895.75 ,n/a,Building Construction and Maintenance
26/08/2021,Environment and Planning,Hays Plc,Contract & Agency Staff,"1,361.10 ",n/a,Staff Agencies and Consultants
26/08/2021,Environment and Planning,Hays Plc,Contract & Agency Staff,"1,423.25 ",n/a,Staff Agencies and Consultants
26/08/2021,Environment and Planning,Tim Moya  Associates,Contract & Agency Staff,"1,458.33 ",n/a,Plants Animals Gardens Farming
26/08/2021,Environment and Planning,Hays Plc,Contract & Agency Staff,"1,505.04 ",n/a,Staff Agencies and Consultants
26/08/2021,Environment and Planning,Stanton Hope,Equipment Materials & Maintenance incl.Lighting,"1,622.94 ",n/a,Plants Animals Gardens Farming
26/08/2021,Community Wellbeing GF,McBains Ltd,Professional Fees,"2,200.00 ",n/a,Building Construction and Maintenance
26/08/2021,Environment and Planning,Hays Plc,Contract & Agency Staff,"2,330.65 ",n/a,Staff Agencies and Consultants
26/08/2021,Housing HRA,R J Lift Services Ltd,Lift Repair Costs,"3,345.85 ",n/a,Building Construction and Maintenance
26/08/2021,Community Wellbeing GF,McBains Ltd,Consultancy Fees & Consultation costs,"6,750.00 ",n/a,Building Construction and Maintenance
26/08/2021,Community Wellbeing GF,McBains Ltd,Consultancy Fees & Consultation costs,"18,463.56 ",n/a,Building Construction and Maintenance
27/08/2021,Finance,HTS (Property & Environment) Ltd,Cleaning Contract,537.42 ,n/a,Building Construction and Maintenance
27/08/2021,Finance,HTS (Property & Environment) Ltd,Routine Maintenance of Buildings,696.33 ,n/a,Building Construction and Maintenance
27/08/2021,Community Wellbeing GF,HTS (Property & Environment) Ltd,Cleaning Contract,"1,129.33 ",n/a,Building Construction and Maintenance
27/08/2021,Finance,HTS (Property & Environment) Ltd,Cleaning Contract,"1,665.99 ",n/a,Building Construction and Maintenance
27/08/2021,Housing HRA,HTS (Property & Environment) Ltd,Outside Contractors,"2,010.00 ",n/a,Building Construction and Maintenance
27/08/2021,Finance,HTS (Property & Environment) Ltd,Cleaning Contract,"3,009.53 ",n/a,Building Construction and Maintenance
27/08/2021,Housing HRA,HTS (Property & Environment) Ltd,Outside Contractors,"5,983.97 ",n/a,Building Construction and Maintenance
27/08/2021,Finance,HTS (Property & Environment) Ltd,Routine Maintenance of Buildings,"6,098.25 ",n/a,Building Construction and Maintenance
27/08/2021,Finance,HTS (Property & Environment) Ltd,Cleaning Contract,"7,685.06 ",n/a,Building Construction and Maintenance
27/08/2021,Finance,TechQuarters,Software Licences,"10,200.00 ",n/a,IT Services and Supplies
27/08/2021,Finance,Metaphor IT Ltd,Software Licences,"14,400.00 ",n/a,IT Services and Supplies
27/08/2021,Housing HRA,HTS (Property & Environment) Ltd,Outside Contractors,"109,843.56 ",n/a,Building Construction and Maintenance
29/08/2021,Housing HRA,The Harlow Hotel by AccorHotels,Compensation to Tenants - General,518.00 ,n/a,Temporary Accomodation
29/08/2021,Housing HRA,The Harlow Hotel by AccorHotels,Compensation to Tenants - General,518.00 ,n/a,Temporary Accomodation
29/08/2021,Finance,Morgan Hunt Public Sector Ltd,Contract & Agency Staff,"1,145.25 ",n/a,Staff Agencies and Consultants
30/08/2021,Housing HRA,Omnisoft Designs Ltd,RTB Admin - Plans,960.00 ,n/a,Building Construction and Maintenance
30/08/2021,Governance,Blue Lemon Health & Safety Ltd,"Licence Fees inc PRS, PPL & Public Entertainment","1,920.00 ",n/a,IT Services and Supplies
30/08/2021,Finance,David Miles & Partners Ltd,Professional Fees,"3,264.46 ",n/a,Building Construction and Maintenance
30/08/2021,Housing HRA,Omnisoft Designs Ltd,Consultancy Fees & Consultation costs,"3,400.00 ",n/a,Building Construction and Maintenance
30/08/2021,Housing HRA,Omnisoft Designs Ltd,Consultancy Fees & Consultation costs,"10,420.00 ",n/a,Building Construction and Maintenance
31/08/2021,Finance,Chess Ltd,External Contracts,545.50 ,n/a,Utilities
31/08/2021,Housing HRA,Power Property Services Ltd,Building Defects - Damp,580.00 ,n/a,Building Construction and Maintenance
31/08/2021,Housing HRA,Power Property Services Ltd,Building Defects - Damp,630.00 ,n/a,Building Construction and Maintenance
31/08/2021,Environment and Planning,RCA Structures Ltd,Consultancy Fees & Consultation costs,630.00 ,n/a,Management and Administrative Services
31/08/2021,Housing HRA,Ridge & Partners LLP,Outside Contractors,684.45 ,n/a,"Security and Safety Equipment, Lighting"
31/08/2021,Governance,Worldpay,Credit Card Charge,729.26 ,n/a,Financial Services
31/08/2021,Housing HRA,Cundall Johnston & Partners LLP,Consultancy Fees & Consultation costs,754.00 ,n/a,Building Construction and Maintenance
31/08/2021,Housing HRA,Lamya Construction Ltd,Outside Contractors,815.00 ,n/a,Building Construction and Maintenance
31/08/2021,Housing HRA,Lamya Construction Ltd,Outside Contractors,815.00 ,n/a,Building Construction and Maintenance
31/08/2021,Housing HRA,JBA Management Ltd trading as John Burke Associate,Outside Contractors,886.25 ,n/a,Building Construction and Maintenance
31/08/2021,Housing HRA,JBA Management Ltd trading as John Burke Associate,Outside Contractors,886.25 ,n/a,Building Construction and Maintenance
31/08/2021,Housing HRA,JBA Management Ltd trading as John Burke Associate,Outside Contractors,886.25 ,n/a,Building Construction and Maintenance
31/08/2021,Finance,Veolia Es UK Ltd,Trade Refuse Collection,929.71 ,n/a,Utilities
31/08/2021,Housing GF,Caridon Management,Bed & Breakfast & Other Expenses,993.60 ,n/a,Temporary Accomodation
31/08/2021,Governance,MWDW Sound,Pantomime Production,"1,000.00 ",n/a,Entertainment Services
31/08/2021,Community Wellbeing GF,Derrick Wade Waters Ltd,Professional Fees,"1,000.00 ",n/a,Management and Administrative Services
31/08/2021,Community Wellbeing GF,Derrick Wade Waters Ltd,Professional Fees,"1,040.00 ",n/a,Management and Administrative Services
31/08/2021,Housing HRA,MMP Consultancy Ltd,Contract & Agency Staff,"1,079.70 ",n/a,Staff Agencies and Consultants
31/08/2021,Housing HRA,MMP Consultancy Ltd,Contract & Agency Staff,"1,162.50 ",n/a,Staff Agencies and Consultants
31/08/2021,Housing HRA,Ridge & Partners LLP,Outside Contractors,"1,260.00 ",n/a,"Security and Safety Equipment, Lighting"
31/08/2021,Finance,R B Whitbread (Plant Hire) Ltd,ECC Highways Rangers,"1,334.00 ",n/a,Building Construction and Maintenance
31/08/2021,Environment and Planning,Hays Plc,Contract & Agency Staff,"1,337.81 ",n/a,Staff Agencies and Consultants
31/08/2021,Environment and Planning,Hays Plc,Contract & Agency Staff,"1,398.39 ",n/a,Staff Agencies and Consultants
31/08/2021,Finance,Veolia Es UK Ltd,Trade Refuse Collection,"1,421.90 ",n/a,Utilities
31/08/2021,Finance,Contract Security Services Ltd,Security Fees,"1,435.20 ",n/a,"Security and Safety Equipment, Lighting"
31/08/2021,Environment and Planning,Park Avenue Recruitment,Contract & Agency Staff,"1,480.00 ",n/a,Staff Agencies and Consultants
31/08/2021,Housing HRA,First Prospect Ltd,Energy Certificates,"1,495.00 ",n/a,Building Construction and Maintenance
31/08/2021,Environment and Planning,Hays Plc,Contract & Agency Staff,"1,505.04 ",n/a,Staff Agencies and Consultants
31/08/2021,Environment and Planning,Hays Plc,Contract & Agency Staff,"1,505.04 ",n/a,Staff Agencies and Consultants
31/08/2021,Housing HRA,JBA Management Ltd trading as John Burke Associate,Outside Contractors,"1,575.00 ",n/a,Building Construction and Maintenance
31/08/2021,Housing HRA,MMP Consultancy Ltd,Contract & Agency Staff,"1,750.00 ",n/a,Staff Agencies and Consultants
31/08/2021,Housing HRA,Lamya Construction Ltd,Outside Contractors,"1,750.00 ",n/a,Building Construction and Maintenance
31/08/2021,Finance,General Security Services Ltd,Contract & Agency Staff,"1,810.50 ",n/a,"Security and Safety Equipment, Lighting"
31/08/2021,Finance,Greenford Ltd,Outside Contractors,"1,821.45 ",n/a,Building Construction and Maintenance
31/08/2021,Finance,Civica UK Ltd,Software Licences,"1,855.97 ",n/a,IT Services and Supplies
31/08/2021,Environment and Planning,Hays Plc,Contract & Agency Staff,"1,895.59 ",n/a,Staff Agencies and Consultants
31/08/2021,Housing HRA,JBA Management Ltd trading as John Burke Associate,Outside Contractors,"2,000.00 ",n/a,Building Construction and Maintenance
31/08/2021,Housing HRA,JBA Management Ltd trading as John Burke Associate,Outside Contractors,"2,100.00 ",n/a,Building Construction and Maintenance
31/08/2021,Housing HRA,JBA Management Ltd trading as John Burke Associate,Outside Contractors,"2,112.50 ",n/a,Building Construction and Maintenance
31/08/2021,Housing HRA,JBA Management Ltd trading as John Burke Associate,Outside Contractors,"2,112.50 ",n/a,Building Construction and Maintenance
31/08/2021,Housing HRA,JBA Management Ltd trading as John Burke Associate,Outside Contractors,"2,112.50 ",n/a,Building Construction and Maintenance
31/08/2021,Finance,Derrick Wade Waters Ltd,Outside Contractors,"2,184.08 ",n/a,Management and Administrative Services
31/08/2021,Housing HRA,JBA Management Ltd trading as John Burke Associate,Outside Contractors,"2,212.50 ",n/a,Building Construction and Maintenance
31/08/2021,Housing HRA,JBA Management Ltd trading as John Burke Associate,Outside Contractors,"2,250.00 ",n/a,Building Construction and Maintenance
31/08/2021,Housing HRA,JBA Management Ltd trading as John Burke Associate,Outside Contractors,"2,450.00 ",n/a,Building Construction and Maintenance
31/08/2021,Housing HRA,Lamya Construction Ltd,Outside Contractors,"2,602.62 ",n/a,Building Construction and Maintenance
31/08/2021,Housing HRA,Ridge & Partners LLP,Outside Contractors,"2,970.00 ",n/a,"Security and Safety Equipment, Lighting"
31/08/2021,Governance,General Security Services Ltd,Security Fees,"3,170.58 ",n/a,"Security and Safety Equipment, Lighting"
31/08/2021,Finance,Hays Plc,Contract & Agency Staff,"3,175.00 ",n/a,Staff Agencies and Consultants
31/08/2021,Housing HRA,JBA Management Ltd trading as John Burke Associate,Outside Contractors,"3,278.75 ",n/a,Building Construction and Maintenance
31/08/2021,Housing HRA,JBA Management Ltd trading as John Burke Associate,Outside Contractors,"3,637.50 ",n/a,Building Construction and Maintenance
31/08/2021,Community Wellbeing GF,Hometrack Data Systems,IT Support and IT Consumables,"3,900.00 ",n/a,Financial Services
31/08/2021,Environment and Planning,GB Adaptions Ltd,Outside Contractors,"4,108.00 ",n/a,Building Construction and Maintenance
31/08/2021,Housing HRA,JBA Management Ltd trading as John Burke Associate,Outside Contractors,"5,107.50 ",n/a,Building Construction and Maintenance
31/08/2021,Housing HRA,Caridon Management,Bed & Breakfast & Other Expenses,"5,914.56 ",n/a,Temporary Accomodation
31/08/2021,Housing HRA,Jewel Property Maintenance,Outside Contractors,"8,677.00 ",n/a,Building Construction and Maintenance
31/08/2021,Housing HRA,General Security Services Ltd,Void Security,"9,638.88 ",n/a,"Security and Safety Equipment, Lighting"
31/08/2021,Finance,Simon Wasteney Consulting Ltd,Contract & Agency Staff,"11,000.00 ",n/a,Management and Administrative Services
31/08/2021,Housing HRA,Lamya Construction Ltd,Outside Contractors,"15,355.02 ",n/a,Building Construction and Maintenance
31/08/2021,Housing GF,The Rent Guarantee Company Ltd,Bed & Breakfast & Other Expenses,"24,469.76 ",n/a,Temporary Accomodation
31/08/2021,Finance,Greenford Ltd,Outside Contractors,"34,607.55 ",n/a,Building Construction and Maintenance
31/08/2021,Housing HRA,The Rent Guarantee Company Ltd,Bed & Breakfast & Other Expenses,"36,978.24 ",n/a,Temporary Accomodation
01/09/2021,Housing HRA,HTS (Property & Environment) Ltd,Outside Contractors,636.00 ,n/a,Building Construction and Maintenance
01/09/2021,Finance,T Loughman & Co,Footpath Maintenance,697.75 ,n/a,Building Construction and Maintenance
01/09/2021,Finance,T Loughman & Co,Town Centre - Small Works,730.97 ,n/a,Building Construction and Maintenance
01/09/2021,Finance,Security Image Solutions Ltd,Maintenance Buildings - External Contracts,950.00 ,n/a,"Security and Safety Equipment, Lighting"
01/09/2021,Housing GF,The Oyster Partnership Ltd,Contract & Agency Staff,"1,143.75 ",n/a,Staff Agencies and Consultants
01/09/2021,Housing GF,James Andrew Recruitment Solutions Ltd,Contract & Agency Staff,"1,146.60 ",n/a,Staff Agencies and Consultants
01/09/2021,Housing GF,James Andrew Recruitment Solutions Ltd,Contract & Agency Staff,"1,170.00 ",n/a,Staff Agencies and Consultants
01/09/2021,Housing GF,James Andrew Recruitment Solutions Ltd,Contract & Agency Staff,"1,170.00 ",n/a,Staff Agencies and Consultants
01/09/2021,Environment and Planning,The Oyster Partnership Ltd,Contract & Agency Staff,"1,280.00 ",n/a,Staff Agencies and Consultants
01/09/2021,Housing HRA,James Andrew Recruitment Solutions Ltd,Contract & Agency Staff,"1,350.00 ",n/a,Staff Agencies and Consultants
01/09/2021,Housing HRA,James Andrew Recruitment Solutions Ltd,Contract & Agency Staff,"1,350.00 ",n/a,Staff Agencies and Consultants
01/09/2021,Housing HRA,James Andrew Recruitment Solutions Ltd,Contract & Agency Staff,"1,350.00 ",n/a,Staff Agencies and Consultants
01/09/2021,Finance,The Oyster Partnership Ltd,Contract & Agency Staff,"1,366.20 ",n/a,Staff Agencies and Consultants
01/09/2021,Housing HRA,Marks Consulting Partners Ltd,Contract & Agency Staff,"1,394.10 ",n/a,Staff Agencies and Consultants
01/09/2021,Finance,Security Image Solutions Ltd,Equipment Materials & Maintenance incl.Lighting,"1,404.00 ",n/a,"Security and Safety Equipment, Lighting"
01/09/2021,Community Wellbeing GF,CB Richard Ellis Ltd,Service Charges - Landlord,"1,494.50 ",n/a,Management and Administrative Services
01/09/2021,Finance,SRMcHugh Limited,Security Fees,"3,019.32 ",n/a,Building Construction and Maintenance
01/09/2021,Governance,Insight Direct UK Ltd,Software Licences,"3,125.00 ",n/a,IT Services and Supplies
01/09/2021,Finance,Love Accounting Ltd,Consultancy Fees & Consultation costs,"7,350.00 ",n/a,Staff Agencies and Consultants
01/09/2021,Finance,Love Accounting Ltd,Consultancy Fees & Consultation costs,"8,400.00 ",n/a,Staff Agencies and Consultants
01/09/2021,Finance,8x8 UK Limited,"Rental,Maintenance & Call Charges for Phone System","9,256.10 ",n/a,Utilities
01/09/2021,Housing HRA,Lamya Construction Ltd,Outside Contractors,"10,000.00 ",n/a,Building Construction and Maintenance
01/09/2021,Housing HRA,Lamya Construction Ltd,Outside Contractors,"14,200.00 ",n/a,Building Construction and Maintenance
02/09/2021,Housing HRA,Apetito Ltd,Lunch Services Expenses,594.34 ,n/a,Food and Drink
02/09/2021,Housing HRA,J A Riley,Maintenance Buildings - External Contracts,843.00 ,n/a,Building Construction and Maintenance
02/09/2021,Housing HRA,J A Riley,Building Defects - Damp,875.00 ,n/a,Building Construction and Maintenance
02/09/2021,Housing GF,James Andrew Recruitment Solutions Ltd,Contract & Agency Staff,924.00 ,n/a,Staff Agencies and Consultants
02/09/2021,Finance,Pristine Washroom Services,Rental and Leasing costs of Vending Machines,986.70 ,n/a,Cleaning Equipment and Supplies
02/09/2021,Finance,Pristine Washroom Services,Rental and Leasing costs of Vending Machines,"3,037.50 ",n/a,Cleaning Equipment and Supplies
02/09/2021,Environment and Planning,Storm Environmental Ltd,Bins for Flats,"6,222.40 ",n/a,Environmental Services
02/09/2021,Environment and Planning,Stannah Stairlifts,Outside Contractors,"6,589.00 ",n/a,Building Construction and Maintenance
03/09/2021,Housing HRA,Mac Environmental Ltd,Outside Contractors,840.00 ,n/a,Building Construction and Maintenance
03/09/2021,Finance,R B Whitbread (Plant Hire) Ltd,ECC Highways Rangers,950.00 ,n/a,Building Construction and Maintenance
03/09/2021,Housing HRA,Mac Environmental Ltd,Outside Contractors,"1,050.00 ",n/a,Building Construction and Maintenance
03/09/2021,Finance,Hays Plc,Contract & Agency Staff,"1,720.00 ",n/a,Staff Agencies and Consultants
03/09/2021,Unallocated,Canons Brook Golf Club Ltd,Chairs Charity Account 2021/22  - Cllr Clive Souter,"1,856.00 ",n/a,Sports and Recreational
03/09/2021,Housing HRA,Lamya Construction Ltd,Outside Contractors,"2,100.00 ",n/a,Building Construction and Maintenance
03/09/2021,Housing HRA,Mac Environmental Ltd,Asbestos Revenue,"2,480.00 ",n/a,Building Construction and Maintenance
03/09/2021,Housing HRA,Durkan Ltd,Outside Contractors,"70,023.99 ",n/a,Building Construction and Maintenance
04/09/2021,Housing HRA,The Harlow Hotel by AccorHotels,Compensation to Tenants - General,"1,205.30 ",n/a,Temporary Accomodation
05/09/2021,Housing HRA,Mobifi Messaging Ltd,Subscriptions to Organisations & Periodicals,600.00 ,n/a,IT Services and Supplies
05/09/2021,Finance,Morgan Hunt Public Sector Ltd,Contract & Agency Staff,"1,129.98 ",n/a,Staff Agencies and Consultants
06/09/2021,Housing HRA,The Harlow Hotel by AccorHotels,Compensation to Tenants - General,518.00 ,n/a,Temporary Accomodation
06/09/2021,Housing HRA,The Harlow Hotel by AccorHotels,Compensation to Tenants - General,518.00 ,n/a,Temporary Accomodation
06/09/2021,Environment and Planning,Veolia Es UK Ltd,External Contracts,882.73 ,n/a,Utilities
06/09/2021,Housing GF,Oasis Hotel,Bed & Breakfast & Other Expenses,"1,157.14 ",n/a,Temporary Accomodation
06/09/2021,Housing GF,Oasis Hotel,Bed & Breakfast & Other Expenses,"1,157.14 ",n/a,Temporary Accomodation
06/09/2021,Environment and Planning,The Dove Partnership,Contract & Agency Staff,"1,455.80 ",n/a,Staff Agencies and Consultants
06/09/2021,Environment and Planning,Veolia Es UK Ltd,External Contracts,"10,642.80 ",n/a,Utilities
06/09/2021,Environment and Planning,Veolia Es UK Ltd,External Contracts,"13,505.74 ",n/a,Utilities
06/09/2021,Environment and Planning,Veolia Es UK Ltd,External Contracts,"43,200.86 ",n/a,Utilities
06/09/2021,Environment and Planning,Veolia Es UK Ltd,External Contracts,"70,111.39 ",n/a,Utilities
06/09/2021,Environment and Planning,Veolia Es UK Ltd,External Contracts,"130,431.82 ",n/a,Utilities
07/09/2021,Finance,Paul Wallace Professional,Valuation of Assets Fees,500.00 ,n/a,Management and Administrative Services
07/09/2021,Environment and Planning,Daniel Robinson & Sons Ltd,Health Act Burial,525.00 ,n/a,Environmental Services
07/09/2021,Housing HRA,Davies Burton Sweetlove Ltd,Maintenance Buildings - External Contracts,570.50 ,n/a,Engineering and Research
07/09/2021,Housing HRA,Davies Burton Sweetlove Ltd,Maintenance Buildings - External Contracts,640.00 ,n/a,Engineering and Research
07/09/2021,Housing HRA,MMP Consultancy Ltd,Contract & Agency Staff,930.00 ,n/a,Staff Agencies and Consultants
07/09/2021,Housing HRA,MMP Consultancy Ltd,Contract & Agency Staff,"1,085.10 ",n/a,Staff Agencies and Consultants
07/09/2021,Housing HRA,Davies Burton Sweetlove Ltd,Maintenance Buildings - External Contracts,"1,120.00 ",n/a,Engineering and Research
07/09/2021,Governance,Lacons Brewery Ltd,Bar & Vending Costs,"1,130.65 ",n/a,Food and Drink
07/09/2021,Housing HRA,Hays Plc,Contract & Agency Staff,"1,200.00 ",n/a,Staff Agencies and Consultants
07/09/2021,Environment and Planning,Park Avenue Recruitment,Contract & Agency Staff,"1,200.00 ",n/a,Staff Agencies and Consultants
07/09/2021,Housing HRA,MMP Consultancy Ltd,Contract & Agency Staff,"1,400.00 ",n/a,Staff Agencies and Consultants
07/09/2021,Housing HRA,JBA Management Ltd trading as John Burke Associate,Outside Contractors,"1,527.27 ",n/a,Building Construction and Maintenance
07/09/2021,Housing HRA,Hays Plc,Contract & Agency Staff,"1,600.00 ",n/a,Staff Agencies and Consultants
07/09/2021,Housing HRA,Hays Plc,Contract & Agency Staff,"1,600.00 ",n/a,Staff Agencies and Consultants
07/09/2021,Housing HRA,JBA Management Ltd trading as John Burke Associate,Outside Contractors,"1,909.09 ",n/a,Building Construction and Maintenance
07/09/2021,Housing HRA,JBA Management Ltd trading as John Burke Associate,Outside Contractors,"1,909.09 ",n/a,Building Construction and Maintenance
07/09/2021,Housing HRA,Hays Plc,Contract & Agency Staff,"2,000.00 ",n/a,Staff Agencies and Consultants
07/09/2021,Finance,TRG UK Ltd,Contract & Agency Staff,"2,160.00 ",n/a,Staff Agencies and Consultants
07/09/2021,Community Wellbeing GF,Greenford Ltd,Outside Contractors,"2,925.00 ",n/a,Building Construction and Maintenance
07/09/2021,Environment and Planning,VIP System,Equipment Materials & Maintenance incl.Lighting,"3,011.26 ",n/a,Office Equipment and Stationery
08/09/2021,Housing HRA,James Andrew Recruitment Solutions Ltd,Contract & Agency Staff,562.50 ,n/a,Staff Agencies and Consultants
08/09/2021,Environment and Planning,Osborne Richardson,Contract & Agency Staff,580.00 ,n/a,Staff Agencies and Consultants
08/09/2021,Governance,Canon UK Ltd,Photocopier Usage,660.20 ,n/a,Office Equipment and Stationery
08/09/2021,Housing HRA,James Andrew Recruitment Solutions Ltd,Contract & Agency Staff,750.00 ,n/a,Staff Agencies and Consultants
08/09/2021,Environment and Planning,Osborne Richardson,Contract & Agency Staff,877.50 ,n/a,Staff Agencies and Consultants
08/09/2021,Housing GF,The Oyster Partnership Ltd,Contract & Agency Staff,915.00 ,n/a,Staff Agencies and Consultants
08/09/2021,Housing GF,James Andrew Recruitment Solutions Ltd,Contract & Agency Staff,936.00 ,n/a,Staff Agencies and Consultants
08/09/2021,Housing GF,James Andrew Recruitment Solutions Ltd,Contract & Agency Staff,936.00 ,n/a,Staff Agencies and Consultants
08/09/2021,Environment and Planning,The Oyster Partnership Ltd,Contract & Agency Staff,960.00 ,n/a,Staff Agencies and Consultants
08/09/2021,Housing GF,James Andrew Recruitment Solutions Ltd,Contract & Agency Staff,998.40 ,n/a,Staff Agencies and Consultants
08/09/2021,Housing HRA,James Andrew Recruitment Solutions Ltd,Contract & Agency Staff,"1,080.00 ",n/a,Staff Agencies and Consultants
08/09/2021,Housing HRA,James Andrew Recruitment Solutions Ltd,Contract & Agency Staff,"1,080.00 ",n/a,Staff Agencies and Consultants
08/09/2021,Finance,The Oyster Partnership Ltd,Contract & Agency Staff,"1,140.90 ",n/a,Staff Agencies and Consultants
08/09/2021,Housing GF,James Andrew Recruitment Solutions Ltd,Contract & Agency Staff,"1,159.20 ",n/a,Staff Agencies and Consultants
08/09/2021,Housing HRA,James Andrew Recruitment Solutions Ltd,Contract & Agency Staff,"1,196.16 ",n/a,Staff Agencies and Consultants
08/09/2021,Finance,Hays Plc,Contract & Agency Staff,"1,270.00 ",n/a,Staff Agencies and Consultants
08/09/2021,Housing HRA,James Andrew Recruitment Solutions Ltd,Contract & Agency Staff,"1,433.00 ",n/a,Staff Agencies and Consultants
08/09/2021,Governance,Canon UK Ltd,Colour Copier,"1,919.75 ",n/a,Office Equipment and Stationery
08/09/2021,Housing HRA,Lamya Construction Ltd,Outside Contractors,"1,966.16 ",n/a,Building Construction and Maintenance
08/09/2021,Housing HRA,Kendal Tree Surgery Ltd,Outside Contractors,"2,250.00 ",n/a,Plants Animals Gardens Farming
08/09/2021,Housing HRA,Lamya Construction Ltd,Outside Contractors,"2,694.32 ",n/a,Building Construction and Maintenance
08/09/2021,Housing HRA,Lamya Construction Ltd,Outside Contractors,"3,033.99 ",n/a,Building Construction and Maintenance
08/09/2021,Finance,DSI Billing Services Ltd,Postage,"3,305.17 ",n/a,Transport Storage and Mail Services
08/09/2021,Finance,SRMcHugh Limited,Security Fees,"3,396.72 ",n/a,Building Construction and Maintenance
08/09/2021,Governance,Harves Interiors Ltd,Outside Contractors,"3,462.79 ",n/a,Building Construction and Maintenance
08/09/2021,Housing HRA,Lamya Construction Ltd,Outside Contractors,"4,131.64 ",n/a,Building Construction and Maintenance
08/09/2021,Housing HRA,Kendal Tree Surgery Ltd,Maintenance Buildings - External Contracts,"4,200.00 ",n/a,Plants Animals Gardens Farming
08/09/2021,Governance,Harves Interiors Ltd,Outside Contractors,"4,266.00 ",n/a,Building Construction and Maintenance
08/09/2021,Environment and Planning,Plan B Management Solutions Ltd,Consultancy Fees & Consultation costs,"4,500.00 ",n/a,Management and Administrative Services
08/09/2021,Housing HRA,Lamya Construction Ltd,Building Defects - Damp,"4,800.00 ",n/a,Building Construction and Maintenance
08/09/2021,Housing HRA,Lamya Construction Ltd,Outside Contractors,"6,879.50 ",n/a,Building Construction and Maintenance
08/09/2021,Housing HRA,Lamya Construction Ltd,Outside Contractors,"8,016.50 ",n/a,Building Construction and Maintenance
09/09/2021,Governance,Institute of Licensing (Events) Ltd,Course Fees,641.75 ,n/a,Organisations and Clubs
09/09/2021,Environment and Planning,Hays Plc,Contract & Agency Staff,"1,398.39 ",n/a,Staff Agencies and Consultants
09/09/2021,Environment and Planning,Hays Plc,Contract & Agency Staff,"1,505.04 ",n/a,Staff Agencies and Consultants
09/09/2021,Finance,Hays Plc,Contract & Agency Staff,"1,720.00 ",n/a,Staff Agencies and Consultants
10/09/2021,Governance,Newsquest London & Essex Ltd,Statutory Advertising - use by Communications only,841.68 ,n/a,Publishing and Advertising
10/09/2021,Housing HRA,Mac Environmental Ltd,Outside Contractors,"1,030.00 ",n/a,Building Construction and Maintenance
10/09/2021,Housing HRA,Mac Environmental Ltd,Outside Contractors,"1,150.00 ",n/a,Building Construction and Maintenance
10/09/2021,Housing HRA,Omnisoft Designs Ltd,Outside Contractors,"1,150.00 ",n/a,Building Construction and Maintenance
10/09/2021,Housing HRA,Mac Environmental Ltd,Outside Contractors,"1,350.00 ",n/a,Building Construction and Maintenance
10/09/2021,Housing HRA,First Prospect Ltd,Outside Contractors,"1,442.50 ",n/a,Building Construction and Maintenance
10/09/2021,Finance,Optec IT Solutions Ltd,Software Licences,"1,500.00 ",n/a,IT Services and Supplies
10/09/2021,Housing HRA,Mac Environmental Ltd,Asbestos Revenue,"2,480.00 ",n/a,Building Construction and Maintenance
10/09/2021,Environment and Planning,Enable Access,Outside Contractors,"3,988.00 ",n/a,Building Construction and Maintenance
10/09/2021,Housing HRA,Courtenay Building Contractors,Building Defects - Damp,"4,802.00 ",n/a,Building Construction and Maintenance
10/09/2021,Finance,ROYAL BANK OF SCOTLAND,Equipment Materials & Maintenance incl.Lighting,500.00 ,n/a,Financial Services
10/09/2021,Governance,ROYAL BANK OF SCOTLAND,Equipment Materials & Maintenance incl.Lighting,538.80 ,n/a,Financial Services
10/09/2021,Governance,ROYAL BANK OF SCOTLAND,Training Course Personal Expenses - Travel etc,916.48 ,n/a,Financial Services
10/09/2021,Governance,ROYAL BANK OF SCOTLAND,Equipment Materials & Maintenance incl.Lighting,"1,100.00 ",n/a,Financial Services
12/09/2021,Finance,Morgan Hunt Public Sector Ltd,Contract & Agency Staff,"1,145.25 ",n/a,Staff Agencies and Consultants
12/09/2021,Finance,Springclay Services Ltd,Service Charges - Landlord,"8,460.04 ",n/a,Management and Administrative Services
13/09/2021,Housing HRA,The Harlow Hotel by AccorHotels,Compensation to Tenants - General,518.00 ,n/a,Temporary Accomodation
13/09/2021,Environment and Planning,Matthews Plants,Equipment Materials & Maintenance incl.Lighting,520.00 ,n/a,Plants Animals Gardens Farming
13/09/2021,Governance,Mosaic Recruitment,Contract & Agency Staff,767.41 ,n/a,Staff Agencies and Consultants
13/09/2021,Housing HRA,Hays Plc,Contract & Agency Staff,"2,000.00 ",n/a,Staff Agencies and Consultants
13/09/2021,Housing HRA,HTS (Property & Environment) Ltd,Outside Contractors,"2,620.00 ",n/a,Building Construction and Maintenance
13/09/2021,Finance,HTS (Property & Environment) Ltd,Routine Maintenance of Buildings,"9,628.23 ",n/a,Building Construction and Maintenance
14/09/2021,Governance,Anchor Press,Paper Costs,720.00 ,n/a,Printing and Signage
14/09/2021,Housing HRA,James Andrew Recruitment Solutions Ltd,Contract & Agency Staff,937.50 ,n/a,Staff Agencies and Consultants
14/09/2021,Housing GF,James Andrew Recruitment Solutions Ltd,Contract & Agency Staff,"1,012.50 ",n/a,Staff Agencies and Consultants
14/09/2021,Housing GF,James Andrew Recruitment Solutions Ltd,Contract & Agency Staff,"1,012.50 ",n/a,Staff Agencies and Consultants
14/09/2021,Governance,Lacons Brewery Ltd,Bar & Vending Costs,"1,037.56 ",n/a,Food and Drink
14/09/2021,Housing GF,James Andrew Recruitment Solutions Ltd,Contract & Agency Staff,"1,099.80 ",n/a,Staff Agencies and Consultants
14/09/2021,Housing GF,James Andrew Recruitment Solutions Ltd,Contract & Agency Staff,"1,170.00 ",n/a,Staff Agencies and Consultants
14/09/2021,Housing GF,James Andrew Recruitment Solutions Ltd,Contract & Agency Staff,"1,260.00 ",n/a,Staff Agencies and Consultants
14/09/2021,Housing HRA,James Andrew Recruitment Solutions Ltd,Contract & Agency Staff,"1,340.96 ",n/a,Staff Agencies and Consultants
14/09/2021,Housing HRA,MMP Consultancy Ltd,Contract & Agency Staff,"1,346.25 ",n/a,Staff Agencies and Consultants
14/09/2021,Housing HRA,James Andrew Recruitment Solutions Ltd,Contract & Agency Staff,"1,350.00 ",n/a,Staff Agencies and Consultants
14/09/2021,Housing HRA,James Andrew Recruitment Solutions Ltd,Contract & Agency Staff,"1,350.00 ",n/a,Staff Agencies and Consultants
14/09/2021,Environment and Planning,Park Avenue Recruitment,Contract & Agency Staff,"1,480.00 ",n/a,Staff Agencies and Consultants
14/09/2021,Housing HRA,MMP Consultancy Ltd,Contract & Agency Staff,"1,750.00 ",n/a,Staff Agencies and Consultants
14/09/2021,Housing HRA,James Andrew Recruitment Solutions Ltd,Contract & Agency Staff,"1,771.45 ",n/a,Staff Agencies and Consultants
14/09/2021,Finance,Inphase Software UK Ltd,Software Licences,"9,885.00 ",n/a,IT Services and Supplies
14/09/2021,Housing GF,The Rent Guarantee Company Ltd,Bed & Breakfast & Other Expenses,"19,136.83 ",n/a,Temporary Accomodation
14/09/2021,Housing HRA,The Rent Guarantee Company Ltd,Bed & Breakfast & Other Expenses,"31,861.28 ",n/a,Temporary Accomodation
15/09/2021,Finance,Zoocha Limited,Software Licences,"1,100.00 ",n/a,IT Services and Supplies
15/09/2021,Housing GF,The Oyster Partnership Ltd,Contract & Agency Staff,"1,143.75 ",n/a,Staff Agencies and Consultants
15/09/2021,Environment and Planning,Osborne Richardson,Contract & Agency Staff,"1,170.00 ",n/a,Staff Agencies and Consultants
15/09/2021,Finance,The Oyster Partnership Ltd,Contract & Agency Staff,"1,385.18 ",n/a,Staff Agencies and Consultants
15/09/2021,Housing HRA,Marks Consulting Partners Ltd,Contract & Agency Staff,"1,583.10 ",n/a,Staff Agencies and Consultants
15/09/2021,Finance,SRMcHugh Limited,Security Fees,"3,019.32 ",n/a,Building Construction and Maintenance
15/09/2021,Environment and Planning,Vivid Resourcing,Contract & Agency Staff,"4,292.00 ",n/a,Staff Agencies and Consultants
15/09/2021,Housing HRA,Lamya Construction Ltd,Garage Responsive Repairs,"4,530.00 ",n/a,Building Construction and Maintenance
16/09/2021,Governance,Biopac (UK) Ltd,Bar & Vending Costs,"1,362.08 ",n/a,Food and Drink
16/09/2021,Finance,R B Whitbread (Plant Hire) Ltd,Footpath Maintenance,"1,480.00 ",n/a,Building Construction and Maintenance
16/09/2021,Governance,Harves Interiors Ltd,Outside Contractors,"1,482.00 ",n/a,Building Construction and Maintenance
16/09/2021,Finance,Hays Plc,Contract & Agency Staff,"2,150.00 ",n/a,Staff Agencies and Consultants
16/09/2021,Finance,Insight Direct UK Ltd,Software Licences,"4,133.00 ",n/a,IT Services and Supplies
17/09/2021,Housing HRA,Mac Environmental Ltd,Outside Contractors,600.00 ,n/a,Building Construction and Maintenance
17/09/2021,Environment and Planning,Matthews Plants,Equipment Materials & Maintenance incl.Lighting,825.00 ,n/a,Plants Animals Gardens Farming
17/09/2021,Governance,Jordan Environmental Ltd,Maintenance Buildings - External Contracts,888.00 ,n/a,"Security and Safety Equipment, Lighting"
17/09/2021,Governance,Newsquest London & Essex Ltd,Statutory Advertising - use by Communications only,911.82 ,n/a,Publishing and Advertising
17/09/2021,Housing HRA,J A Riley,Maintenance Buildings - External Contracts,"1,622.00 ",n/a,Building Construction and Maintenance
17/09/2021,Finance,HTS (Property & Environment) Ltd,Cleaning Contract,"1,736.00 ",n/a,Building Construction and Maintenance
17/09/2021,Housing HRA,Architecture & Design Services Ltd,Professional Fees,"1,944.44 ",n/a,Building Construction and Maintenance
17/09/2021,Community Wellbeing GF,Carringtons Ltd,Outside Contractors,"3,000.00 ",n/a,Building Construction and Maintenance
17/09/2021,Housing HRA,Mac Environmental Ltd,Asbestos Revenue,"3,040.00 ",n/a,Building Construction and Maintenance
17/09/2021,Housing HRA,HTS (Property & Environment) Ltd,Outside Contractors,"30,133.68 ",n/a,Building Construction and Maintenance
20/09/2021,Finance,HTS (Property & Environment) Ltd,Cleaning Contract,537.42 ,n/a,Building Construction and Maintenance
20/09/2021,Finance,HTS (Property & Environment) Ltd,Routine Maintenance of Buildings,696.33 ,n/a,Building Construction and Maintenance
20/09/2021,Governance,Mosaic Recruitment,Contract & Agency Staff,778.00 ,n/a,Staff Agencies and Consultants
20/09/2021,Housing GF,Nickolds HMO Management & Maintenance Ltd,Bed & Breakfast & Other Expenses,"1,020.00 ",n/a,Management and Administrative Services
20/09/2021,Community Wellbeing GF,HTS (Property & Environment) Ltd,Cleaning Contract,"1,129.33 ",n/a,Building Construction and Maintenance
20/09/2021,Environment and Planning,Park Avenue Recruitment,Contract & Agency Staff,"1,506.10 ",n/a,Staff Agencies and Consultants
20/09/2021,Finance,HTS (Property & Environment) Ltd,Cleaning Contract,"1,665.99 ",n/a,Building Construction and Maintenance
20/09/2021,Environment and Planning,HTS (Property & Environment) Ltd,Subscriptions to Organisations & Periodicals,"1,996.00 ",n/a,Building Construction and Maintenance
20/09/2021,Finance,HTS (Property & Environment) Ltd,Cleaning Contract,"3,009.53 ",n/a,Building Construction and Maintenance
20/09/2021,Finance,HTS (Property & Environment) Ltd,Routine Maintenance of Buildings,"6,098.25 ",n/a,Building Construction and Maintenance
20/09/2021,Finance,HTS (Property & Environment) Ltd,Cleaning Contract,"7,681.06 ",n/a,Building Construction and Maintenance
20/09/2021,Housing HRA,Rhodar Ltd,Outside Contractors,"9,719.50 ",n/a,Building Construction and Maintenance
20/09/2021,Housing HRA,Borras Construction Ltd,Outside Contractors,"11,726.17 ",n/a,Building Construction and Maintenance
20/09/2021,Housing HRA,Borras Construction Ltd,Outside Contractors,"222,797.29 ",n/a,Building Construction and Maintenance
21/09/2021,Environment and Planning,Socotec UK Ltd,Equipment Materials & Maintenance incl.Lighting,522.00 ,n/a,Environmental Services
21/09/2021,Housing HRA,James Andrew Recruitment Solutions Ltd,Contract & Agency Staff,850.00 ,n/a,Staff Agencies and Consultants
21/09/2021,Housing HRA,James Andrew Recruitment Solutions Ltd,Contract & Agency Staff,937.50 ,n/a,Staff Agencies and Consultants
21/09/2021,Housing HRA,Atkins Ltd,Estate Environment (outside contractor),"1,200.00 ",n/a,Staff Agencies and Consultants
21/09/2021,Governance,Flashlight Ltd,Pantomime Production,"3,303.25 ",n/a,Entertainment Services
21/09/2021,Governance,Lacons Brewery Ltd,Bar & Vending Costs,"4,327.54 ",n/a,Food and Drink
21/09/2021,Governance,Harves Interiors Ltd,Outside Contractors,"4,406.46 ",n/a,Building Construction and Maintenance
21/09/2021,Environment and Planning,EMS Lifts Ltd,Outside Contractors,"7,550.00 ",n/a,Building Construction and Maintenance
22/09/2021,Housing HRA,CBT Electrical Ltd,Maintenance Buildings - External Contracts,600.00 ,n/a,Building Construction and Maintenance
22/09/2021,Environment and Planning,Osborne Richardson,Contract & Agency Staff,610.00 ,n/a,Staff Agencies and Consultants
22/09/2021,Housing GF,Tunstall Telecom Ltd,Tunstall Purchases,900.00 ,n/a,Utilities
22/09/2021,Environment and Planning,Browne Jacobson LLP,Legal Costs,"1,024.50 ",n/a,Legal Services
22/09/2021,Environment and Planning,The Oyster Partnership Ltd,Contract & Agency Staff,"1,280.00 ",n/a,Staff Agencies and Consultants
22/09/2021,Finance,The Oyster Partnership Ltd,Contract & Agency Staff,"1,423.13 ",n/a,Staff Agencies and Consultants
22/09/2021,Finance,CBT Electrical Ltd,Outside Contractors,"2,138.72 ",n/a,Building Construction and Maintenance
22/09/2021,Finance,SRMcHugh Limited,Security Fees,"3,019.32 ",n/a,Building Construction and Maintenance
22/09/2021,Housing HRA,Lamya Construction Ltd,Outside Contractors,"6,880.00 ",n/a,Building Construction and Maintenance
23/09/2021,Finance,HTS (Property & Environment) Ltd,"Alarm Maintenance Burglar & Fire, Compliance",512.00 ,n/a,Building Construction and Maintenance
23/09/2021,Finance,HTS (Property & Environment) Ltd,"Alarm Maintenance Burglar & Fire, Compliance",525.00 ,n/a,Building Construction and Maintenance
23/09/2021,Finance,Withers Thomas,Valuation of Assets Fees,612.00 ,n/a,Legal Services
23/09/2021,Finance,HTS (Property & Environment) Ltd,Equipment Materials & Maintenance incl.Lighting,670.00 ,n/a,Building Construction and Maintenance
23/09/2021,Housing GF,Impact Marketing & Publicity Ltd,"Advertising, Marketing, Publicity & Printing",695.00 ,n/a,Publishing and Advertising
23/09/2021,Finance,HTS (Property & Environment) Ltd,Maintenance Buildings - External Contracts,740.00 ,n/a,Building Construction and Maintenance
23/09/2021,Finance,HTS (Property & Environment) Ltd,Maintenance Buildings - External Contracts,918.00 ,n/a,Building Construction and Maintenance
23/09/2021,Finance,HTS (Property & Environment) Ltd,Maintenance Buildings - External Contracts,994.00 ,n/a,Building Construction and Maintenance
23/09/2021,Finance,Hays Plc,Contract & Agency Staff,"1,505.00 ",n/a,Staff Agencies and Consultants
23/09/2021,Community Wellbeing GF,Harlow Art Trust,Grants to Voluntary Organisations,"15,000.00 ",n/a,Organisations and Clubs
23/09/2021,Finance,HTS (Property & Environment) Ltd,HTS Pension Charge,"54,631.00 ",n/a,Building Construction and Maintenance
24/09/2021,Finance,CIPFA Business Ltd,Conference Expenses,580.00 ,n/a,Financial Services
24/09/2021,Governance,D & L London Ltd,Bar & Vending Costs,"1,187.34 ",n/a,Food and Drink
24/09/2021,Housing HRA,United Living (South)  Ltd,Outside Contractors,"10,349.35 ",n/a,Building Construction and Maintenance
24/09/2021,Housing HRA,United Living (South)  Ltd,Outside Contractors,"196,637.64 ",n/a,Building Construction and Maintenance
27/09/2021,Housing HRA,Mac Environmental Ltd,Outside Contractors,600.00 ,n/a,Building Construction and Maintenance
27/09/2021,Housing HRA,Mac Environmental Ltd,Outside Contractors,720.00 ,n/a,Building Construction and Maintenance
27/09/2021,Housing HRA,Mac Environmental Ltd,Asbestos Revenue,"1,760.00 ",n/a,Building Construction and Maintenance
27/09/2021,Finance,Hays Plc,Contract & Agency Staff,"2,222.50 ",n/a,Staff Agencies and Consultants
27/09/2021,Finance,Hays Plc,Contract & Agency Staff,"3,175.00 ",n/a,Staff Agencies and Consultants
27/09/2021,Finance,Hays Plc,Contract & Agency Staff,"3,175.00 ",n/a,Staff Agencies and Consultants
28/09/2021,Environment and Planning,Daniel Robinson & Sons Ltd,Health Act Burial,525.00 ,n/a,Environmental Services
28/09/2021,Housing HRA,James Andrew Recruitment Solutions Ltd,Contract & Agency Staff,740.00 ,n/a,Staff Agencies and Consultants
28/09/2021,Housing HRA,James Andrew Recruitment Solutions Ltd,Contract & Agency Staff,875.00 ,n/a,Staff Agencies and Consultants
28/09/2021,Housing HRA,James Andrew Recruitment Solutions Ltd,Contract & Agency Staff,"1,875.00 ",n/a,Staff Agencies and Consultants
28/09/2021,Unallocated,Aon Limited,Group Household Insurance,"4,023.94 ",n/a,Financial Services
28/09/2021,Governance,ADS Events & Promotions Ltd,Production Costs,"4,988.03 ",n/a,Entertainment Services
28/09/2021,Housing HRA,Atkins Ltd,Professional Fees,"10,157.92 ",n/a,Staff Agencies and Consultants
29/09/2021,Finance,Springclay Services Ltd,Rent,"2,843.75 ",n/a,Management and Administrative Services
30/09/2021,Housing HRA,Sycous Ltd,Postage,"1,460.00 ",n/a,Management and Administrative Services
30/09/2021,Finance,Hays Plc,Contract & Agency Staff,"2,150.00 ",n/a,Staff Agencies and Consultants
01/10/2021,Finance,Borough Of Broxbourne,External Contracts,"32,436.00 ",n/a,Staff
